{"text_format":"1","workbook":"xlsx","n_sheets":4,"sheets":["نموذج تعبئة فواتير السلف","Barcode","جزء خاص بالمستودع","عبدالرحمن السالم"],"not_rendered":{"charts":0,"images":2,"macros":1,"external_links":2,"defined_names":7,"comments":0,"pivot_tables":0},"unopened":[],"bounds":{"document_bytes":16777216,"sheet_cells":100000,"rows_first":2000,"rows_last":500,"rows_between":2000,"halvings":0,"cell_chars":16384,"cell_head_chars":4096},"cells_cut":0,"cells_raw":0,"read":"whole","date_system":"1900"}

{"sheet":"نموذج تعبئة فواتير السلف","index":0,"n_rows":359,"n_cols":11,"rows_kept":359,"cut":false,"hidden":false,"merged":[[5,0,5,3],[357,8,357,9],[358,0,358,2],[358,5,358,9],[358,3,358,4],[357,0,357,1],[357,2,357,3],[4,0,4,7],[0,2,0,6],[1,0,1,1],[2,0,2,1],[3,0,3,1],[0,7,0,9],[1,3,1,6],[1,8,1,9],[2,7,2,9],[2,2,2,4],[3,6,3,7]]}
[null,"جامعة الملك سعود\nكلية الصيدلة","نموذج تسجيل فواتير السلف لإدخالها في نظام ( مدار )",null,null,null,null,"اعداد الموظف: عبدالرحمن عبدالعزيز السالم\nللملاحظات على النموذج: aaalsalem@ksu.edu.sa",null,null,2]
["أدخل الرقم الوظيفي للمستلم",null,null,{"$f":"IFERROR(VLOOKUP(C2,'عبدالرحمن السالم'!$B$2:$C$870,2,0),\"اسم المستلم\")","v":"اسم المستلم"},null,null,null,"رقم الجوال"]
["نوع السلفة أو اسم المشروع",null,null,null,null,"مبلغ السلفة",99999,{"$f":"NumberToText(G3,\"ريال\",\"هللة\")","v":"تسعة وتسعون ألف وتسعمائة وتسعة وتسعون ريال"}]
["الرقم الخاص",null,"تاريخ طباعة المحضر",{"$f":"IF(C2<>\"\",TODAY(),\"\")","v":""},"تاريخ انتهاء صلاحية المحضر",{"$f":"IF(C2<>\"\",(D4)+15,\"\")","v":""},"يرجى الإنتباه بأن صلاحية المحضر ستنتهي بعد",null,{"$f":"IF(C2<>\"\",F4-J5,\"(     )\")","v":"(     )"},"يوم من تاريخ طباعة المحضر"]
["يتم ارسال النموذج إلى بريد الإلكتروني التالي: aaalsalem@ksu.edu.sa بعد تعبئة الخانات المحددة باللون الأخضر فقط",null,null,null,null,null,null,null,"تاريخ اليوم",{"$f":"TODAY()","v":"2021-07-20"}]
["الـــــمـــــــجـــــمــــــــوع",null,null,null,{"$f":"SUBTOTAL(109,الجدول1[الإجمالي بدون ضريبة])","v":0},null,{"$f":"SUBTOTAL(109,الجدول1[مبلغ الضريبة])","v":0},{"$f":"SUBTOTAL(109,الجدول1[الإجمالي شامل الضريبة])","v":0},"الوقت الآن",{"$f":"NOW()","v":44397.826102314815}]
["م","أسم الصنف","الكمية","المبلغ الإفرادي","الإجمالي بدون ضريبة","اختر نسبة الضريبة","مبلغ الضريبة","الإجمالي شامل الضريبة","اختر نوع الصنف","رقم التعريف"]
[{"$f":"ROW(الجدول1[[#This Row],[أسم الصنف]])-7","v":1},"صنف رقم 1",null,null,{"$f":"C8*D8","v":0},"15%",{"$f":"H8-E8","v":0},{"$f":"E8+(E8*F8)","v":0},"مستهلك"]
[{"$f":"ROW(الجدول1[[#This Row],[أسم الصنف]])-7","v":2},"صنف رقم 2",null,null,0,"15%",0,0,"مستهلك"]
[{"$f":"ROW(الجدول1[[#This Row],[أسم الصنف]])-7","v":3},"صنف رقم 3",null,null,0,"15%",0,0,"مستهلك"]
[{"$f":"ROW(الجدول1[[#This Row],[أسم الصنف]])-7","v":4},"صنف رقم 4",null,null,0,"15%",0,0,"مستهلك"]
[{"$f":"ROW(الجدول1[[#This Row],[أسم الصنف]])-7","v":5},"صنف رقم 5",null,null,0,"15%",0,0,"مستهلك"]
[{"$f":"ROW(الجدول1[[#This Row],[أسم الصنف]])-7","v":6},"صنف رقم 6",null,null,0,"15%",0,0,"مستهلك"]
[{"$f":"ROW(الجدول1[[#This Row],[أسم الصنف]])-7","v":7},"صنف رقم 7",null,null,0,"15%",0,0,"مستهلك"]
[{"$f":"ROW(الجدول1[[#This Row],[أسم الصنف]])-7","v":8},"صنف رقم 8",null,null,0,"15%",0,0,"مستهلك"]
[{"$f":"ROW(الجدول1[[#This Row],[أسم الصنف]])-7","v":9},"صنف رقم 9",null,null,0,"15%",0,0,"مستهلك"]
[{"$f":"ROW(الجدول1[[#This Row],[أسم الصنف]])-7","v":10},"صنف رقم 10",null,null,0,"15%",0,0,"مستهلك"]
[{"$f":"ROW(الجدول1[[#This Row],[أسم الصنف]])-7","v":11},"صنف رقم 11",null,null,0,"15%",0,0,"مستهلك"]
[{"$f":"ROW(الجدول1[[#This Row],[أسم الصنف]])-7","v":12},"صنف رقم 12",null,null,0,"15%",0,0,"مستهلك"]
[{"$f":"ROW(الجدول1[[#This Row],[أسم الصنف]])-7","v":13},"صنف رقم 13",null,null,0,"15%",0,0,"مستهلك"]
[{"$f":"ROW(الجدول1[[#This Row],[أسم الصنف]])-7","v":14},"صنف رقم 14",null,null,0,"15%",0,0,"مستهلك"]
[{"$f":"ROW(الجدول1[[#This Row],[أسم الصنف]])-7","v":15},"صنف رقم 15",null,null,0,"15%",0,0,"مستهلك"]
[{"$f":"ROW(الجدول1[[#This Row],[أسم الصنف]])-7","v":16},"صنف رقم 16",null,null,0,"15%",0,0,"مستهلك"]
[{"$f":"ROW(الجدول1[[#This Row],[أسم الصنف]])-7","v":17},"صنف رقم 17",null,null,0,"15%",0,0,"مستهلك"]
[{"$f":"ROW(الجدول1[[#This Row],[أسم الصنف]])-7","v":18},"صنف رقم 18",null,null,0,"15%",0,0,"مستهلك"]
[{"$f":"ROW(الجدول1[[#This Row],[أسم الصنف]])-7","v":19},"صنف رقم 19",null,null,0,"15%",0,0,"مستهلك"]
[{"$f":"ROW(الجدول1[[#This Row],[أسم الصنف]])-7","v":20},"صنف رقم 20",null,null,0,"15%",0,0,"مستهلك"]
[{"$f":"ROW(الجدول1[[#This Row],[أسم الصنف]])-7","v":21},"صنف رقم 21",null,null,0,"15%",0,0,"مستهلك"]
[{"$f":"ROW(الجدول1[[#This Row],[أسم الصنف]])-7","v":22},"صنف رقم 22",null,null,0,"15%",0,0,"مستهلك"]
[{"$f":"ROW(الجدول1[[#This Row],[أسم الصنف]])-7","v":23},"صنف رقم 23",null,null,0,"15%",0,0,"مستهلك"]
[{"$f":"ROW(الجدول1[[#This Row],[أسم الصنف]])-7","v":24},"صنف رقم 24",null,null,0,"15%",0,0,"مستهلك"]
[{"$f":"ROW(الجدول1[[#This Row],[أسم الصنف]])-7","v":25},"صنف رقم 25",null,null,0,"15%",0,0,"مستهلك"]
[{"$f":"ROW(الجدول1[[#This Row],[أسم الصنف]])-7","v":26},"صنف رقم 26",null,null,0,"15%",0,0,"مستهلك"]
[{"$f":"ROW(الجدول1[[#This Row],[أسم الصنف]])-7","v":27},"صنف رقم 27",null,null,0,"15%",0,0,"مستهلك"]
[{"$f":"ROW(الجدول1[[#This Row],[أسم الصنف]])-7","v":28},"صنف رقم 28",null,null,0,"15%",0,0,"مستهلك"]
[{"$f":"ROW(الجدول1[[#This Row],[أسم الصنف]])-7","v":29},"صنف رقم 29",null,null,0,"15%",0,0,"مستهلك"]
[{"$f":"ROW(الجدول1[[#This Row],[أسم الصنف]])-7","v":30},"صنف رقم 30",null,null,0,"15%",0,0,"مستهلك"]
[{"$f":"ROW(الجدول1[[#This Row],[أسم الصنف]])-7","v":31},"صنف رقم 31",null,null,0,"15%",0,0,"مستهلك"]
[{"$f":"ROW(الجدول1[[#This Row],[أسم الصنف]])-7","v":32},"صنف رقم 32",null,null,0,"15%",0,0,"مستهلك"]
[{"$f":"ROW(الجدول1[[#This Row],[أسم الصنف]])-7","v":33},"صنف رقم 33",null,null,0,"15%",0,0,"مستهلك"]
[{"$f":"ROW(الجدول1[[#This Row],[أسم الصنف]])-7","v":34},"صنف رقم 34",null,null,0,"15%",0,0,"مستهلك"]
[{"$f":"ROW(الجدول1[[#This Row],[أسم الصنف]])-7","v":35},"صنف رقم 35",null,null,0,"15%",0,0,"مستهلك"]
[{"$f":"ROW(الجدول1[[#This Row],[أسم الصنف]])-7","v":36},"صنف رقم 36",null,null,0,"15%",0,0,"مستهلك"]
[{"$f":"ROW(الجدول1[[#This Row],[أسم الصنف]])-7","v":37},"صنف رقم 37",null,null,0,"15%",0,0,"مستهلك"]
[{"$f":"ROW(الجدول1[[#This Row],[أسم الصنف]])-7","v":38},"صنف رقم 38",null,null,0,"15%",0,0,"مستهلك"]
[{"$f":"ROW(الجدول1[[#This Row],[أسم الصنف]])-7","v":39},"صنف رقم 39",null,null,0,"15%",0,0,"مستهلك"]
[{"$f":"ROW(الجدول1[[#This Row],[أسم الصنف]])-7","v":40},"صنف رقم 40",null,null,0,"15%",0,0,"مستهلك"]
[{"$f":"ROW(الجدول1[[#This Row],[أسم الصنف]])-7","v":41},"صنف رقم 41",null,null,0,"15%",0,0,"مستهلك"]
[{"$f":"ROW(الجدول1[[#This Row],[أسم الصنف]])-7","v":42},"صنف رقم 42",null,null,0,"15%",0,0,"مستهلك"]
[{"$f":"ROW(الجدول1[[#This Row],[أسم الصنف]])-7","v":43},"صنف رقم 43",null,null,0,"15%",0,0,"مستهلك"]
[{"$f":"ROW(الجدول1[[#This Row],[أسم الصنف]])-7","v":44},"صنف رقم 44",null,null,0,"15%",0,0,"مستهلك"]
[{"$f":"ROW(الجدول1[[#This Row],[أسم الصنف]])-7","v":45},"صنف رقم 45",null,null,0,"15%",0,0,"مستهلك"]
[{"$f":"ROW(الجدول1[[#This Row],[أسم الصنف]])-7","v":46},"صنف رقم 46",null,null,0,"15%",0,0,"مستهلك"]
[{"$f":"ROW(الجدول1[[#This Row],[أسم الصنف]])-7","v":47},"صنف رقم 47",null,null,0,"15%",0,0,"مستهلك"]
[{"$f":"ROW(الجدول1[[#This Row],[أسم الصنف]])-7","v":48},"صنف رقم 48",null,null,0,"15%",0,0,"مستهلك"]
[{"$f":"ROW(الجدول1[[#This Row],[أسم الصنف]])-7","v":49},"صنف رقم 49",null,null,0,"15%",0,0,"مستهلك"]
[{"$f":"ROW(الجدول1[[#This Row],[أسم الصنف]])-7","v":50},"صنف رقم 50",null,null,0,"15%",0,0,"مستهلك"]
[{"$f":"ROW(الجدول1[[#This Row],[أسم الصنف]])-7","v":51},"صنف رقم 51",null,null,0,"15%",0,0,"مستهلك"]
[{"$f":"ROW(الجدول1[[#This Row],[أسم الصنف]])-7","v":52},"صنف رقم 52",null,null,0,"15%",0,0,"مستهلك"]
[{"$f":"ROW(الجدول1[[#This Row],[أسم الصنف]])-7","v":53},"صنف رقم 53",null,null,0,"15%",0,0,"مستهلك"]
[{"$f":"ROW(الجدول1[[#This Row],[أسم الصنف]])-7","v":54},"صنف رقم 54",null,null,0,"15%",0,0,"مستهلك"]
[{"$f":"ROW(الجدول1[[#This Row],[أسم الصنف]])-7","v":55},"صنف رقم 55",null,null,0,"15%",0,0,"مستهلك"]
[{"$f":"ROW(الجدول1[[#This Row],[أسم الصنف]])-7","v":56},"صنف رقم 56",null,null,0,"15%",0,0,"مستهلك"]
[{"$f":"ROW(الجدول1[[#This Row],[أسم الصنف]])-7","v":57},"صنف رقم 57",null,null,0,"15%",0,0,"مستهلك"]
[{"$f":"ROW(الجدول1[[#This Row],[أسم الصنف]])-7","v":58},"صنف رقم 58",null,null,0,"15%",0,0,"مستهلك"]
[{"$f":"ROW(الجدول1[[#This Row],[أسم الصنف]])-7","v":59},"صنف رقم 59",null,null,0,"15%",0,0,"مستهلك"]
[{"$f":"ROW(الجدول1[[#This Row],[أسم الصنف]])-7","v":60},"صنف رقم 60",null,null,0,"15%",0,0,"مستهلك"]
[{"$f":"ROW(الجدول1[[#This Row],[أسم الصنف]])-7","v":61},"صنف رقم 61",null,null,0,"15%",0,0,"مستهلك"]
[{"$f":"ROW(الجدول1[[#This Row],[أسم الصنف]])-7","v":62},"صنف رقم 62",null,null,0,"15%",0,0,"مستهلك"]
[{"$f":"ROW(الجدول1[[#This Row],[أسم الصنف]])-7","v":63},"صنف رقم 63",null,null,0,"15%",0,0,"مستهلك"]
[{"$f":"ROW(الجدول1[[#This Row],[أسم الصنف]])-7","v":64},"صنف رقم 64",null,null,0,"15%",0,0,"مستهلك"]
[{"$f":"ROW(الجدول1[[#This Row],[أسم الصنف]])-7","v":65},"صنف رقم 65",null,null,{"$f":"C72*D72","v":0},"15%",{"$f":"H72-E72","v":0},{"$f":"E72+(E72*F72)","v":0},"مستهلك"]
[{"$f":"ROW(الجدول1[[#This Row],[أسم الصنف]])-7","v":66},"صنف رقم 66",null,null,0,"15%",0,0,"مستهلك"]
[{"$f":"ROW(الجدول1[[#This Row],[أسم الصنف]])-7","v":67},"صنف رقم 67",null,null,0,"15%",0,0,"مستهلك"]
[{"$f":"ROW(الجدول1[[#This Row],[أسم الصنف]])-7","v":68},"صنف رقم 68",null,null,0,"15%",0,0,"مستهلك"]
[{"$f":"ROW(الجدول1[[#This Row],[أسم الصنف]])-7","v":69},"صنف رقم 69",null,null,0,"15%",0,0,"مستهلك"]
[{"$f":"ROW(الجدول1[[#This Row],[أسم الصنف]])-7","v":70},"صنف رقم 70",null,null,0,"15%",0,0,"مستهلك"]
[{"$f":"ROW(الجدول1[[#This Row],[أسم الصنف]])-7","v":71},"صنف رقم 71",null,null,0,"15%",0,0,"مستهلك"]
[{"$f":"ROW(الجدول1[[#This Row],[أسم الصنف]])-7","v":72},"صنف رقم 72",null,null,0,"15%",0,0,"مستهلك"]
[{"$f":"ROW(الجدول1[[#This Row],[أسم الصنف]])-7","v":73},"صنف رقم 73",null,null,0,"15%",0,0,"مستهلك"]
[{"$f":"ROW(الجدول1[[#This Row],[أسم الصنف]])-7","v":74},"صنف رقم 74",null,null,0,"15%",0,0,"مستهلك"]
[{"$f":"ROW(الجدول1[[#This Row],[أسم الصنف]])-7","v":75},"صنف رقم 75",null,null,0,"15%",0,0,"مستهلك"]
[{"$f":"ROW(الجدول1[[#This Row],[أسم الصنف]])-7","v":76},"صنف رقم 76",null,null,0,"15%",0,0,"مستهلك"]
[{"$f":"ROW(الجدول1[[#This Row],[أسم الصنف]])-7","v":77},"صنف رقم 77",null,null,0,"15%",0,0,"مستهلك"]
[{"$f":"ROW(الجدول1[[#This Row],[أسم الصنف]])-7","v":78},"صنف رقم 78",null,null,0,"15%",0,0,"مستهلك"]
[{"$f":"ROW(الجدول1[[#This Row],[أسم الصنف]])-7","v":79},"صنف رقم 79",null,null,0,"15%",0,0,"مستهلك"]
[{"$f":"ROW(الجدول1[[#This Row],[أسم الصنف]])-7","v":80},"صنف رقم 80",null,null,0,"15%",0,0,"مستهلك"]
[{"$f":"ROW(الجدول1[[#This Row],[أسم الصنف]])-7","v":81},"صنف رقم 81",null,null,0,"15%",0,0,"مستهلك"]
[{"$f":"ROW(الجدول1[[#This Row],[أسم الصنف]])-7","v":82},"صنف رقم 82",null,null,0,"15%",0,0,"مستهلك"]
[{"$f":"ROW(الجدول1[[#This Row],[أسم الصنف]])-7","v":83},"صنف رقم 83",null,null,0,"15%",0,0,"مستهلك"]
[{"$f":"ROW(الجدول1[[#This Row],[أسم الصنف]])-7","v":84},"صنف رقم 84",null,null,0,"15%",0,0,"مستهلك"]
[{"$f":"ROW(الجدول1[[#This Row],[أسم الصنف]])-7","v":85},"صنف رقم 85",null,null,0,"15%",0,0,"مستهلك"]
[{"$f":"ROW(الجدول1[[#This Row],[أسم الصنف]])-7","v":86},"صنف رقم 86",null,null,0,"15%",0,0,"مستهلك"]
[{"$f":"ROW(الجدول1[[#This Row],[أسم الصنف]])-7","v":87},"صنف رقم 87",null,null,0,"15%",0,0,"مستهلك"]
[{"$f":"ROW(الجدول1[[#This Row],[أسم الصنف]])-7","v":88},"صنف رقم 88",null,null,0,"15%",0,0,"مستهلك"]
[{"$f":"ROW(الجدول1[[#This Row],[أسم الصنف]])-7","v":89},"صنف رقم 89",null,null,0,"15%",0,0,"مستهلك"]
[{"$f":"ROW(الجدول1[[#This Row],[أسم الصنف]])-7","v":90},"صنف رقم 90",null,null,0,"15%",0,0,"مستهلك"]
[{"$f":"ROW(الجدول1[[#This Row],[أسم الصنف]])-7","v":91},"صنف رقم 91",null,null,0,"15%",0,0,"مستهلك"]
[{"$f":"ROW(الجدول1[[#This Row],[أسم الصنف]])-7","v":92},"صنف رقم 92",null,null,0,"15%",0,0,"مستهلك"]
[{"$f":"ROW(الجدول1[[#This Row],[أسم الصنف]])-7","v":93},"صنف رقم 93",null,null,0,"15%",0,0,"مستهلك"]
[{"$f":"ROW(الجدول1[[#This Row],[أسم الصنف]])-7","v":94},"صنف رقم 94",null,null,0,"15%",0,0,"مستهلك"]
[{"$f":"ROW(الجدول1[[#This Row],[أسم الصنف]])-7","v":95},"صنف رقم 95",null,null,0,"15%",0,0,"مستهلك"]
[{"$f":"ROW(الجدول1[[#This Row],[أسم الصنف]])-7","v":96},"صنف رقم 96",null,null,0,"15%",0,0,"مستهلك"]
[{"$f":"ROW(الجدول1[[#This Row],[أسم الصنف]])-7","v":97},"صنف رقم 97",null,null,0,"15%",0,0,"مستهلك"]
[{"$f":"ROW(الجدول1[[#This Row],[أسم الصنف]])-7","v":98},"صنف رقم 98",null,null,0,"15%",0,0,"مستهلك"]
[{"$f":"ROW(الجدول1[[#This Row],[أسم الصنف]])-7","v":99},"صنف رقم 99",null,null,0,"15%",0,0,"مستهلك"]
[{"$f":"ROW(الجدول1[[#This Row],[أسم الصنف]])-7","v":100},"صنف رقم 100",null,null,0,"15%",0,0,"مستهلك"]
[{"$f":"ROW(الجدول1[[#This Row],[أسم الصنف]])-7","v":101},"صنف رقم 101",null,null,0,"15%",0,0,"مستهلك"]
[{"$f":"ROW(الجدول1[[#This Row],[أسم الصنف]])-7","v":102},"صنف رقم 102",null,null,0,"15%",0,0,"مستهلك"]
[{"$f":"ROW(الجدول1[[#This Row],[أسم الصنف]])-7","v":103},"صنف رقم 103",null,null,0,"15%",0,0,"مستهلك"]
[{"$f":"ROW(الجدول1[[#This Row],[أسم الصنف]])-7","v":104},"صنف رقم 104",null,null,0,"15%",0,0,"مستهلك"]
[{"$f":"ROW(الجدول1[[#This Row],[أسم الصنف]])-7","v":105},"صنف رقم 105",null,null,0,"15%",0,0,"مستهلك"]
[{"$f":"ROW(الجدول1[[#This Row],[أسم الصنف]])-7","v":106},"صنف رقم 106",null,null,0,"15%",0,0,"مستهلك"]
[{"$f":"ROW(الجدول1[[#This Row],[أسم الصنف]])-7","v":107},"صنف رقم 107",null,null,0,"15%",0,0,"مستهلك"]
[{"$f":"ROW(الجدول1[[#This Row],[أسم الصنف]])-7","v":108},"صنف رقم 108",null,null,0,"15%",0,0,"مستهلك"]
[{"$f":"ROW(الجدول1[[#This Row],[أسم الصنف]])-7","v":109},"صنف رقم 109",null,null,0,"15%",0,0,"مستهلك"]
[{"$f":"ROW(الجدول1[[#This Row],[أسم الصنف]])-7","v":110},"صنف رقم 110",null,null,0,"15%",0,0,"مستهلك"]
[{"$f":"ROW(الجدول1[[#This Row],[أسم الصنف]])-7","v":111},"صنف رقم 111",null,null,0,"15%",0,0,"مستهلك"]
[{"$f":"ROW(الجدول1[[#This Row],[أسم الصنف]])-7","v":112},"صنف رقم 112",null,null,0,"15%",0,0,"مستهلك"]
[{"$f":"ROW(الجدول1[[#This Row],[أسم الصنف]])-7","v":113},"صنف رقم 113",null,null,0,"15%",0,0,"مستهلك"]
[{"$f":"ROW(الجدول1[[#This Row],[أسم الصنف]])-7","v":114},"صنف رقم 114",null,null,0,"15%",0,0,"مستهلك"]
[{"$f":"ROW(الجدول1[[#This Row],[أسم الصنف]])-7","v":115},"صنف رقم 115",null,null,0,"15%",0,0,"مستهلك"]
[{"$f":"ROW(الجدول1[[#This Row],[أسم الصنف]])-7","v":116},"صنف رقم 116",null,null,0,"15%",0,0,"مستهلك"]
[{"$f":"ROW(الجدول1[[#This Row],[أسم الصنف]])-7","v":117},"صنف رقم 117",null,null,0,"15%",0,0,"مستهلك"]
[{"$f":"ROW(الجدول1[[#This Row],[أسم الصنف]])-7","v":118},"صنف رقم 118",null,null,0,"15%",0,0,"مستهلك"]
[{"$f":"ROW(الجدول1[[#This Row],[أسم الصنف]])-7","v":119},"صنف رقم 119",null,null,0,"15%",0,0,"مستهلك"]
[{"$f":"ROW(الجدول1[[#This Row],[أسم الصنف]])-7","v":120},"صنف رقم 120",null,null,0,"15%",0,0,"مستهلك"]
[{"$f":"ROW(الجدول1[[#This Row],[أسم الصنف]])-7","v":121},"صنف رقم 121",null,null,0,"15%",0,0,"مستهلك"]
[{"$f":"ROW(الجدول1[[#This Row],[أسم الصنف]])-7","v":122},"صنف رقم 122",null,null,0,"15%",0,0,"مستهلك"]
[{"$f":"ROW(الجدول1[[#This Row],[أسم الصنف]])-7","v":123},"صنف رقم 123",null,null,0,"15%",0,0,"مستهلك"]
[{"$f":"ROW(الجدول1[[#This Row],[أسم الصنف]])-7","v":124},"صنف رقم 124",null,null,0,"15%",0,0,"مستهلك"]
[{"$f":"ROW(الجدول1[[#This Row],[أسم الصنف]])-7","v":125},"صنف رقم 125",null,null,0,"15%",0,0,"مستهلك"]
[{"$f":"ROW(الجدول1[[#This Row],[أسم الصنف]])-7","v":126},"صنف رقم 126",null,null,0,"15%",0,0,"مستهلك"]
[{"$f":"ROW(الجدول1[[#This Row],[أسم الصنف]])-7","v":127},"صنف رقم 127",null,null,0,"15%",0,0,"مستهلك"]
[{"$f":"ROW(الجدول1[[#This Row],[أسم الصنف]])-7","v":128},"صنف رقم 128",null,null,0,"15%",0,0,"مستهلك"]
[{"$f":"ROW(الجدول1[[#This Row],[أسم الصنف]])-7","v":129},"صنف رقم 129",null,null,{"$f":"C136*D136","v":0},"15%",{"$f":"H136-E136","v":0},{"$f":"E136+(E136*F136)","v":0},"مستهلك"]
[{"$f":"ROW(الجدول1[[#This Row],[أسم الصنف]])-7","v":130},"صنف رقم 130",null,null,0,"15%",0,0,"مستهلك"]
[{"$f":"ROW(الجدول1[[#This Row],[أسم الصنف]])-7","v":131},"صنف رقم 131",null,null,0,"15%",0,0,"مستهلك"]
[{"$f":"ROW(الجدول1[[#This Row],[أسم الصنف]])-7","v":132},"صنف رقم 132",null,null,0,"15%",0,0,"مستهلك"]
[{"$f":"ROW(الجدول1[[#This Row],[أسم الصنف]])-7","v":133},"صنف رقم 133",null,null,0,"15%",0,0,"مستهلك"]
[{"$f":"ROW(الجدول1[[#This Row],[أسم الصنف]])-7","v":134},"صنف رقم 134",null,null,0,"15%",0,0,"مستهلك"]
[{"$f":"ROW(الجدول1[[#This Row],[أسم الصنف]])-7","v":135},"صنف رقم 135",null,null,0,"15%",0,0,"مستهلك"]
[{"$f":"ROW(الجدول1[[#This Row],[أسم الصنف]])-7","v":136},"صنف رقم 136",null,null,0,"15%",0,0,"مستهلك"]
[{"$f":"ROW(الجدول1[[#This Row],[أسم الصنف]])-7","v":137},"صنف رقم 137",null,null,0,"15%",0,0,"مستهلك"]
[{"$f":"ROW(الجدول1[[#This Row],[أسم الصنف]])-7","v":138},"صنف رقم 138",null,null,0,"15%",0,0,"مستهلك"]
[{"$f":"ROW(الجدول1[[#This Row],[أسم الصنف]])-7","v":139},"صنف رقم 139",null,null,0,"15%",0,0,"مستهلك"]
[{"$f":"ROW(الجدول1[[#This Row],[أسم الصنف]])-7","v":140},"صنف رقم 140",null,null,0,"15%",0,0,"مستهلك"]
[{"$f":"ROW(الجدول1[[#This Row],[أسم الصنف]])-7","v":141},"صنف رقم 141",null,null,0,"15%",0,0,"مستهلك"]
[{"$f":"ROW(الجدول1[[#This Row],[أسم الصنف]])-7","v":142},"صنف رقم 142",null,null,0,"15%",0,0,"مستهلك"]
[{"$f":"ROW(الجدول1[[#This Row],[أسم الصنف]])-7","v":143},"صنف رقم 143",null,null,0,"15%",0,0,"مستهلك"]
[{"$f":"ROW(الجدول1[[#This Row],[أسم الصنف]])-7","v":144},"صنف رقم 144",null,null,0,"15%",0,0,"مستهلك"]
[{"$f":"ROW(الجدول1[[#This Row],[أسم الصنف]])-7","v":145},"صنف رقم 145",null,null,0,"15%",0,0,"مستهلك"]
[{"$f":"ROW(الجدول1[[#This Row],[أسم الصنف]])-7","v":146},"صنف رقم 146",null,null,0,"15%",0,0,"مستهلك"]
[{"$f":"ROW(الجدول1[[#This Row],[أسم الصنف]])-7","v":147},"صنف رقم 147",null,null,0,"15%",0,0,"مستهلك"]
[{"$f":"ROW(الجدول1[[#This Row],[أسم الصنف]])-7","v":148},"صنف رقم 148",null,null,0,"15%",0,0,"مستهلك"]
[{"$f":"ROW(الجدول1[[#This Row],[أسم الصنف]])-7","v":149},"صنف رقم 149",null,null,0,"15%",0,0,"مستهلك"]
[{"$f":"ROW(الجدول1[[#This Row],[أسم الصنف]])-7","v":150},"صنف رقم 150",null,null,0,"15%",0,0,"مستهلك"]
[{"$f":"ROW(الجدول1[[#This Row],[أسم الصنف]])-7","v":151},"صنف رقم 151",null,null,0,"15%",0,0,"مستهلك"]
[{"$f":"ROW(الجدول1[[#This Row],[أسم الصنف]])-7","v":152},"صنف رقم 152",null,null,0,"15%",0,0,"مستهلك"]
[{"$f":"ROW(الجدول1[[#This Row],[أسم الصنف]])-7","v":153},"صنف رقم 153",null,null,0,"15%",0,0,"مستهلك"]
[{"$f":"ROW(الجدول1[[#This Row],[أسم الصنف]])-7","v":154},"صنف رقم 154",null,null,0,"15%",0,0,"مستهلك"]
[{"$f":"ROW(الجدول1[[#This Row],[أسم الصنف]])-7","v":155},"صنف رقم 155",null,null,0,"15%",0,0,"مستهلك"]
[{"$f":"ROW(الجدول1[[#This Row],[أسم الصنف]])-7","v":156},"صنف رقم 156",null,null,0,"15%",0,0,"مستهلك"]
[{"$f":"ROW(الجدول1[[#This Row],[أسم الصنف]])-7","v":157},"صنف رقم 157",null,null,0,"15%",0,0,"مستهلك"]
[{"$f":"ROW(الجدول1[[#This Row],[أسم الصنف]])-7","v":158},"صنف رقم 158",null,null,0,"15%",0,0,"مستهلك"]
[{"$f":"ROW(الجدول1[[#This Row],[أسم الصنف]])-7","v":159},"صنف رقم 159",null,null,0,"15%",0,0,"مستهلك"]
[{"$f":"ROW(الجدول1[[#This Row],[أسم الصنف]])-7","v":160},"صنف رقم 160",null,null,0,"15%",0,0,"مستهلك"]
[{"$f":"ROW(الجدول1[[#This Row],[أسم الصنف]])-7","v":161},"صنف رقم 161",null,null,0,"15%",0,0,"مستهلك"]
[{"$f":"ROW(الجدول1[[#This Row],[أسم الصنف]])-7","v":162},"صنف رقم 162",null,null,0,"15%",0,0,"مستهلك"]
[{"$f":"ROW(الجدول1[[#This Row],[أسم الصنف]])-7","v":163},"صنف رقم 163",null,null,0,"15%",0,0,"مستهلك"]
[{"$f":"ROW(الجدول1[[#This Row],[أسم الصنف]])-7","v":164},"صنف رقم 164",null,null,0,"15%",0,0,"مستهلك"]
[{"$f":"ROW(الجدول1[[#This Row],[أسم الصنف]])-7","v":165},"صنف رقم 165",null,null,0,"15%",0,0,"مستهلك"]
[{"$f":"ROW(الجدول1[[#This Row],[أسم الصنف]])-7","v":166},"صنف رقم 166",null,null,0,"15%",0,0,"مستهلك"]
[{"$f":"ROW(الجدول1[[#This Row],[أسم الصنف]])-7","v":167},"صنف رقم 167",null,null,0,"15%",0,0,"مستهلك"]
[{"$f":"ROW(الجدول1[[#This Row],[أسم الصنف]])-7","v":168},"صنف رقم 168",null,null,0,"15%",0,0,"مستهلك"]
[{"$f":"ROW(الجدول1[[#This Row],[أسم الصنف]])-7","v":169},"صنف رقم 169",null,null,0,"15%",0,0,"مستهلك"]
[{"$f":"ROW(الجدول1[[#This Row],[أسم الصنف]])-7","v":170},"صنف رقم 170",null,null,0,"15%",0,0,"مستهلك"]
[{"$f":"ROW(الجدول1[[#This Row],[أسم الصنف]])-7","v":171},"صنف رقم 171",null,null,0,"15%",0,0,"مستهلك"]
[{"$f":"ROW(الجدول1[[#This Row],[أسم الصنف]])-7","v":172},"صنف رقم 172",null,null,0,"15%",0,0,"مستهلك"]
[{"$f":"ROW(الجدول1[[#This Row],[أسم الصنف]])-7","v":173},"صنف رقم 173",null,null,0,"15%",0,0,"مستهلك"]
[{"$f":"ROW(الجدول1[[#This Row],[أسم الصنف]])-7","v":174},"صنف رقم 174",null,null,0,"15%",0,0,"مستهلك"]
[{"$f":"ROW(الجدول1[[#This Row],[أسم الصنف]])-7","v":175},"صنف رقم 175",null,null,0,"15%",0,0,"مستهلك"]
[{"$f":"ROW(الجدول1[[#This Row],[أسم الصنف]])-7","v":176},"صنف رقم 176",null,null,0,"15%",0,0,"مستهلك"]
[{"$f":"ROW(الجدول1[[#This Row],[أسم الصنف]])-7","v":177},"صنف رقم 177",null,null,0,"15%",0,0,"مستهلك"]
[{"$f":"ROW(الجدول1[[#This Row],[أسم الصنف]])-7","v":178},"صنف رقم 178",null,null,0,"15%",0,0,"مستهلك"]
[{"$f":"ROW(الجدول1[[#This Row],[أسم الصنف]])-7","v":179},"صنف رقم 179",null,null,0,"15%",0,0,"مستهلك"]
[{"$f":"ROW(الجدول1[[#This Row],[أسم الصنف]])-7","v":180},"صنف رقم 180",null,null,0,"15%",0,0,"مستهلك"]
[{"$f":"ROW(الجدول1[[#This Row],[أسم الصنف]])-7","v":181},"صنف رقم 181",null,null,0,"15%",0,0,"مستهلك"]
[{"$f":"ROW(الجدول1[[#This Row],[أسم الصنف]])-7","v":182},"صنف رقم 182",null,null,0,"15%",0,0,"مستهلك"]
[{"$f":"ROW(الجدول1[[#This Row],[أسم الصنف]])-7","v":183},"صنف رقم 183",null,null,0,"15%",0,0,"مستهلك"]
[{"$f":"ROW(الجدول1[[#This Row],[أسم الصنف]])-7","v":184},"صنف رقم 184",null,null,0,"15%",0,0,"مستهلك"]
[{"$f":"ROW(الجدول1[[#This Row],[أسم الصنف]])-7","v":185},"صنف رقم 185",null,null,0,"15%",0,0,"مستهلك"]
[{"$f":"ROW(الجدول1[[#This Row],[أسم الصنف]])-7","v":186},"صنف رقم 186",null,null,0,"15%",0,0,"مستهلك"]
[{"$f":"ROW(الجدول1[[#This Row],[أسم الصنف]])-7","v":187},"صنف رقم 187",null,null,0,"15%",0,0,"مستهلك"]
[{"$f":"ROW(الجدول1[[#This Row],[أسم الصنف]])-7","v":188},"صنف رقم 188",null,null,0,"15%",0,0,"مستهلك"]
[{"$f":"ROW(الجدول1[[#This Row],[أسم الصنف]])-7","v":189},"صنف رقم 189",null,null,0,"15%",0,0,"مستهلك"]
[{"$f":"ROW(الجدول1[[#This Row],[أسم الصنف]])-7","v":190},"صنف رقم 190",null,null,0,"15%",0,0,"مستهلك"]
[{"$f":"ROW(الجدول1[[#This Row],[أسم الصنف]])-7","v":191},"صنف رقم 191",null,null,0,"15%",0,0,"مستهلك"]
[{"$f":"ROW(الجدول1[[#This Row],[أسم الصنف]])-7","v":192},"صنف رقم 192",null,null,0,"15%",0,0,"مستهلك"]
[{"$f":"ROW(الجدول1[[#This Row],[أسم الصنف]])-7","v":193},"صنف رقم 193",null,null,{"$f":"C200*D200","v":0},"15%",{"$f":"H200-E200","v":0},{"$f":"E200+(E200*F200)","v":0},"مستهلك"]
[{"$f":"ROW(الجدول1[[#This Row],[أسم الصنف]])-7","v":194},"صنف رقم 194",null,null,0,"15%",0,0,"مستهلك"]
[{"$f":"ROW(الجدول1[[#This Row],[أسم الصنف]])-7","v":195},"صنف رقم 195",null,null,0,"15%",0,0,"مستهلك"]
[{"$f":"ROW(الجدول1[[#This Row],[أسم الصنف]])-7","v":196},"صنف رقم 196",null,null,0,"15%",0,0,"مستهلك"]
[{"$f":"ROW(الجدول1[[#This Row],[أسم الصنف]])-7","v":197},"صنف رقم 197",null,null,0,"15%",0,0,"مستهلك"]
[{"$f":"ROW(الجدول1[[#This Row],[أسم الصنف]])-7","v":198},"صنف رقم 198",null,null,0,"15%",0,0,"مستهلك"]
[{"$f":"ROW(الجدول1[[#This Row],[أسم الصنف]])-7","v":199},"صنف رقم 199",null,null,0,"15%",0,0,"مستهلك"]
[{"$f":"ROW(الجدول1[[#This Row],[أسم الصنف]])-7","v":200},"صنف رقم 200",null,null,0,"15%",0,0,"مستهلك"]
[{"$f":"ROW(الجدول1[[#This Row],[أسم الصنف]])-7","v":201},"صنف رقم 201",null,null,0,"15%",0,0,"مستهلك"]
[{"$f":"ROW(الجدول1[[#This Row],[أسم الصنف]])-7","v":202},"صنف رقم 202",null,null,0,"15%",0,0,"مستهلك"]
[{"$f":"ROW(الجدول1[[#This Row],[أسم الصنف]])-7","v":203},"صنف رقم 203",null,null,0,"15%",0,0,"مستهلك"]
[{"$f":"ROW(الجدول1[[#This Row],[أسم الصنف]])-7","v":204},"صنف رقم 204",null,null,0,"15%",0,0,"مستهلك"]
[{"$f":"ROW(الجدول1[[#This Row],[أسم الصنف]])-7","v":205},"صنف رقم 205",null,null,0,"15%",0,0,"مستهلك"]
[{"$f":"ROW(الجدول1[[#This Row],[أسم الصنف]])-7","v":206},"صنف رقم 206",null,null,0,"15%",0,0,"مستهلك"]
[{"$f":"ROW(الجدول1[[#This Row],[أسم الصنف]])-7","v":207},"صنف رقم 207",null,null,0,"15%",0,0,"مستهلك"]
[{"$f":"ROW(الجدول1[[#This Row],[أسم الصنف]])-7","v":208},"صنف رقم 208",null,null,0,"15%",0,0,"مستهلك"]
[{"$f":"ROW(الجدول1[[#This Row],[أسم الصنف]])-7","v":209},"صنف رقم 209",null,null,0,"15%",0,0,"مستهلك"]
[{"$f":"ROW(الجدول1[[#This Row],[أسم الصنف]])-7","v":210},"صنف رقم 210",null,null,0,"15%",0,0,"مستهلك"]
[{"$f":"ROW(الجدول1[[#This Row],[أسم الصنف]])-7","v":211},"صنف رقم 211",null,null,0,"15%",0,0,"مستهلك"]
[{"$f":"ROW(الجدول1[[#This Row],[أسم الصنف]])-7","v":212},"صنف رقم 212",null,null,0,"15%",0,0,"مستهلك"]
[{"$f":"ROW(الجدول1[[#This Row],[أسم الصنف]])-7","v":213},"صنف رقم 213",null,null,0,"15%",0,0,"مستهلك"]
[{"$f":"ROW(الجدول1[[#This Row],[أسم الصنف]])-7","v":214},"صنف رقم 214",null,null,0,"15%",0,0,"مستهلك"]
[{"$f":"ROW(الجدول1[[#This Row],[أسم الصنف]])-7","v":215},"صنف رقم 215",null,null,0,"15%",0,0,"مستهلك"]
[{"$f":"ROW(الجدول1[[#This Row],[أسم الصنف]])-7","v":216},"صنف رقم 216",null,null,0,"15%",0,0,"مستهلك"]
[{"$f":"ROW(الجدول1[[#This Row],[أسم الصنف]])-7","v":217},"صنف رقم 217",null,null,0,"15%",0,0,"مستهلك"]
[{"$f":"ROW(الجدول1[[#This Row],[أسم الصنف]])-7","v":218},"صنف رقم 218",null,null,0,"15%",0,0,"مستهلك"]
[{"$f":"ROW(الجدول1[[#This Row],[أسم الصنف]])-7","v":219},"صنف رقم 219",null,null,0,"15%",0,0,"مستهلك"]
[{"$f":"ROW(الجدول1[[#This Row],[أسم الصنف]])-7","v":220},"صنف رقم 220",null,null,0,"15%",0,0,"مستهلك"]
[{"$f":"ROW(الجدول1[[#This Row],[أسم الصنف]])-7","v":221},"صنف رقم 221",null,null,0,"15%",0,0,"مستهلك"]
[{"$f":"ROW(الجدول1[[#This Row],[أسم الصنف]])-7","v":222},"صنف رقم 222",null,null,0,"15%",0,0,"مستهلك"]
[{"$f":"ROW(الجدول1[[#This Row],[أسم الصنف]])-7","v":223},"صنف رقم 223",null,null,0,"15%",0,0,"مستهلك"]
[{"$f":"ROW(الجدول1[[#This Row],[أسم الصنف]])-7","v":224},"صنف رقم 224",null,null,0,"15%",0,0,"مستهلك"]
[{"$f":"ROW(الجدول1[[#This Row],[أسم الصنف]])-7","v":225},"صنف رقم 225",null,null,0,"15%",0,0,"مستهلك"]
[{"$f":"ROW(الجدول1[[#This Row],[أسم الصنف]])-7","v":226},"صنف رقم 226",null,null,0,"15%",0,0,"مستهلك"]
[{"$f":"ROW(الجدول1[[#This Row],[أسم الصنف]])-7","v":227},"صنف رقم 227",null,null,0,"15%",0,0,"مستهلك"]
[{"$f":"ROW(الجدول1[[#This Row],[أسم الصنف]])-7","v":228},"صنف رقم 228",null,null,0,"15%",0,0,"مستهلك"]
[{"$f":"ROW(الجدول1[[#This Row],[أسم الصنف]])-7","v":229},"صنف رقم 229",null,null,0,"15%",0,0,"مستهلك"]
[{"$f":"ROW(الجدول1[[#This Row],[أسم الصنف]])-7","v":230},"صنف رقم 230",null,null,0,"15%",0,0,"مستهلك"]
[{"$f":"ROW(الجدول1[[#This Row],[أسم الصنف]])-7","v":231},"صنف رقم 231",null,null,0,"15%",0,0,"مستهلك"]
[{"$f":"ROW(الجدول1[[#This Row],[أسم الصنف]])-7","v":232},"صنف رقم 232",null,null,0,"15%",0,0,"مستهلك"]
[{"$f":"ROW(الجدول1[[#This Row],[أسم الصنف]])-7","v":233},"صنف رقم 233",null,null,0,"15%",0,0,"مستهلك"]
[{"$f":"ROW(الجدول1[[#This Row],[أسم الصنف]])-7","v":234},"صنف رقم 234",null,null,0,"15%",0,0,"مستهلك"]
[{"$f":"ROW(الجدول1[[#This Row],[أسم الصنف]])-7","v":235},"صنف رقم 235",null,null,0,"15%",0,0,"مستهلك"]
[{"$f":"ROW(الجدول1[[#This Row],[أسم الصنف]])-7","v":236},"صنف رقم 236",null,null,0,"15%",0,0,"مستهلك"]
[{"$f":"ROW(الجدول1[[#This Row],[أسم الصنف]])-7","v":237},"صنف رقم 237",null,null,0,"15%",0,0,"مستهلك"]
[{"$f":"ROW(الجدول1[[#This Row],[أسم الصنف]])-7","v":238},"صنف رقم 238",null,null,0,"15%",0,0,"مستهلك"]
[{"$f":"ROW(الجدول1[[#This Row],[أسم الصنف]])-7","v":239},"صنف رقم 239",null,null,0,"15%",0,0,"مستهلك"]
[{"$f":"ROW(الجدول1[[#This Row],[أسم الصنف]])-7","v":240},"صنف رقم 240",null,null,0,"15%",0,0,"مستهلك"]
[{"$f":"ROW(الجدول1[[#This Row],[أسم الصنف]])-7","v":241},"صنف رقم 241",null,null,0,"15%",0,0,"مستهلك"]
[{"$f":"ROW(الجدول1[[#This Row],[أسم الصنف]])-7","v":242},"صنف رقم 242",null,null,0,"15%",0,0,"مستهلك"]
[{"$f":"ROW(الجدول1[[#This Row],[أسم الصنف]])-7","v":243},"صنف رقم 243",null,null,0,"15%",0,0,"مستهلك"]
[{"$f":"ROW(الجدول1[[#This Row],[أسم الصنف]])-7","v":244},"صنف رقم 244",null,null,0,"15%",0,0,"مستهلك"]
[{"$f":"ROW(الجدول1[[#This Row],[أسم الصنف]])-7","v":245},"صنف رقم 245",null,null,0,"15%",0,0,"مستهلك"]
[{"$f":"ROW(الجدول1[[#This Row],[أسم الصنف]])-7","v":246},"صنف رقم 246",null,null,0,"15%",0,0,"مستهلك"]
[{"$f":"ROW(الجدول1[[#This Row],[أسم الصنف]])-7","v":247},"صنف رقم 247",null,null,0,"15%",0,0,"مستهلك"]
[{"$f":"ROW(الجدول1[[#This Row],[أسم الصنف]])-7","v":248},"صنف رقم 248",null,null,0,"15%",0,0,"مستهلك"]
[{"$f":"ROW(الجدول1[[#This Row],[أسم الصنف]])-7","v":249},"صنف رقم 249",null,null,0,"15%",0,0,"مستهلك"]
[{"$f":"ROW(الجدول1[[#This Row],[أسم الصنف]])-7","v":250},"صنف رقم 250",null,null,0,"15%",0,0,"مستهلك"]
[{"$f":"ROW(الجدول1[[#This Row],[أسم الصنف]])-7","v":251},"صنف رقم 251",null,null,0,"15%",0,0,"مستهلك"]
[{"$f":"ROW(الجدول1[[#This Row],[أسم الصنف]])-7","v":252},"صنف رقم 252",null,null,0,"15%",0,0,"مستهلك"]
[{"$f":"ROW(الجدول1[[#This Row],[أسم الصنف]])-7","v":253},"صنف رقم 253",null,null,0,"15%",0,0,"مستهلك"]
[{"$f":"ROW(الجدول1[[#This Row],[أسم الصنف]])-7","v":254},"صنف رقم 254",null,null,0,"15%",0,0,"مستهلك"]
[{"$f":"ROW(الجدول1[[#This Row],[أسم الصنف]])-7","v":255},"صنف رقم 255",null,null,0,"15%",0,0,"مستهلك"]
[{"$f":"ROW(الجدول1[[#This Row],[أسم الصنف]])-7","v":256},"صنف رقم 256",null,null,0,"15%",0,0,"مستهلك"]
[{"$f":"ROW(الجدول1[[#This Row],[أسم الصنف]])-7","v":257},"صنف رقم 257",null,null,{"$f":"C264*D264","v":0},"15%",{"$f":"H264-E264","v":0},{"$f":"E264+(E264*F264)","v":0},"مستهلك"]
[{"$f":"ROW(الجدول1[[#This Row],[أسم الصنف]])-7","v":258},"صنف رقم 258",null,null,0,"15%",0,0,"مستهلك"]
[{"$f":"ROW(الجدول1[[#This Row],[أسم الصنف]])-7","v":259},"صنف رقم 259",null,null,0,"15%",0,0,"مستهلك"]
[{"$f":"ROW(الجدول1[[#This Row],[أسم الصنف]])-7","v":260},"صنف رقم 260",null,null,0,"15%",0,0,"مستهلك"]
[{"$f":"ROW(الجدول1[[#This Row],[أسم الصنف]])-7","v":261},"صنف رقم 261",null,null,0,"15%",0,0,"مستهلك"]
[{"$f":"ROW(الجدول1[[#This Row],[أسم الصنف]])-7","v":262},"صنف رقم 262",null,null,0,"15%",0,0,"مستهلك"]
[{"$f":"ROW(الجدول1[[#This Row],[أسم الصنف]])-7","v":263},"صنف رقم 263",null,null,0,"15%",0,0,"مستهلك"]
[{"$f":"ROW(الجدول1[[#This Row],[أسم الصنف]])-7","v":264},"صنف رقم 264",null,null,0,"15%",0,0,"مستهلك"]
[{"$f":"ROW(الجدول1[[#This Row],[أسم الصنف]])-7","v":265},"صنف رقم 265",null,null,0,"15%",0,0,"مستهلك"]
[{"$f":"ROW(الجدول1[[#This Row],[أسم الصنف]])-7","v":266},"صنف رقم 266",null,null,0,"15%",0,0,"مستهلك"]
[{"$f":"ROW(الجدول1[[#This Row],[أسم الصنف]])-7","v":267},"صنف رقم 267",null,null,0,"15%",0,0,"مستهلك"]
[{"$f":"ROW(الجدول1[[#This Row],[أسم الصنف]])-7","v":268},"صنف رقم 268",null,null,0,"15%",0,0,"مستهلك"]
[{"$f":"ROW(الجدول1[[#This Row],[أسم الصنف]])-7","v":269},"صنف رقم 269",null,null,0,"15%",0,0,"مستهلك"]
[{"$f":"ROW(الجدول1[[#This Row],[أسم الصنف]])-7","v":270},"صنف رقم 270",null,null,0,"15%",0,0,"مستهلك"]
[{"$f":"ROW(الجدول1[[#This Row],[أسم الصنف]])-7","v":271},"صنف رقم 271",null,null,0,"15%",0,0,"مستهلك"]
[{"$f":"ROW(الجدول1[[#This Row],[أسم الصنف]])-7","v":272},"صنف رقم 272",null,null,0,"15%",0,0,"مستهلك"]
[{"$f":"ROW(الجدول1[[#This Row],[أسم الصنف]])-7","v":273},"صنف رقم 273",null,null,0,"15%",0,0,"مستهلك"]
[{"$f":"ROW(الجدول1[[#This Row],[أسم الصنف]])-7","v":274},"صنف رقم 274",null,null,0,"15%",0,0,"مستهلك"]
[{"$f":"ROW(الجدول1[[#This Row],[أسم الصنف]])-7","v":275},"صنف رقم 275",null,null,0,"15%",0,0,"مستهلك"]
[{"$f":"ROW(الجدول1[[#This Row],[أسم الصنف]])-7","v":276},"صنف رقم 276",null,null,0,"15%",0,0,"مستهلك"]
[{"$f":"ROW(الجدول1[[#This Row],[أسم الصنف]])-7","v":277},"صنف رقم 277",null,null,0,"15%",0,0,"مستهلك"]
[{"$f":"ROW(الجدول1[[#This Row],[أسم الصنف]])-7","v":278},"صنف رقم 278",null,null,0,"15%",0,0,"مستهلك"]
[{"$f":"ROW(الجدول1[[#This Row],[أسم الصنف]])-7","v":279},"صنف رقم 279",null,null,0,"15%",0,0,"مستهلك"]
[{"$f":"ROW(الجدول1[[#This Row],[أسم الصنف]])-7","v":280},"صنف رقم 280",null,null,0,"15%",0,0,"مستهلك"]
[{"$f":"ROW(الجدول1[[#This Row],[أسم الصنف]])-7","v":281},"صنف رقم 281",null,null,0,"15%",0,0,"مستهلك"]
[{"$f":"ROW(الجدول1[[#This Row],[أسم الصنف]])-7","v":282},"صنف رقم 282",null,null,0,"15%",0,0,"مستهلك"]
[{"$f":"ROW(الجدول1[[#This Row],[أسم الصنف]])-7","v":283},"صنف رقم 283",null,null,0,"15%",0,0,"مستهلك"]
[{"$f":"ROW(الجدول1[[#This Row],[أسم الصنف]])-7","v":284},"صنف رقم 284",null,null,0,"15%",0,0,"مستهلك"]
[{"$f":"ROW(الجدول1[[#This Row],[أسم الصنف]])-7","v":285},"صنف رقم 285",null,null,0,"15%",0,0,"مستهلك"]
[{"$f":"ROW(الجدول1[[#This Row],[أسم الصنف]])-7","v":286},"صنف رقم 286",null,null,0,"15%",0,0,"مستهلك"]
[{"$f":"ROW(الجدول1[[#This Row],[أسم الصنف]])-7","v":287},"صنف رقم 287",null,null,0,"15%",0,0,"مستهلك"]
[{"$f":"ROW(الجدول1[[#This Row],[أسم الصنف]])-7","v":288},"صنف رقم 288",null,null,0,"15%",0,0,"مستهلك"]
[{"$f":"ROW(الجدول1[[#This Row],[أسم الصنف]])-7","v":289},"صنف رقم 289",null,null,0,"15%",0,0,"مستهلك"]
[{"$f":"ROW(الجدول1[[#This Row],[أسم الصنف]])-7","v":290},"صنف رقم 290",null,null,0,"15%",0,0,"مستهلك"]
[{"$f":"ROW(الجدول1[[#This Row],[أسم الصنف]])-7","v":291},"صنف رقم 291",null,null,0,"15%",0,0,"مستهلك"]
[{"$f":"ROW(الجدول1[[#This Row],[أسم الصنف]])-7","v":292},"صنف رقم 292",null,null,0,"15%",0,0,"مستهلك"]
[{"$f":"ROW(الجدول1[[#This Row],[أسم الصنف]])-7","v":293},"صنف رقم 293",null,null,0,"15%",0,0,"مستهلك"]
[{"$f":"ROW(الجدول1[[#This Row],[أسم الصنف]])-7","v":294},"صنف رقم 294",null,null,0,"15%",0,0,"مستهلك"]
[{"$f":"ROW(الجدول1[[#This Row],[أسم الصنف]])-7","v":295},"صنف رقم 295",null,null,0,"15%",0,0,"مستهلك"]
[{"$f":"ROW(الجدول1[[#This Row],[أسم الصنف]])-7","v":296},"صنف رقم 296",null,null,0,"15%",0,0,"مستهلك"]
[{"$f":"ROW(الجدول1[[#This Row],[أسم الصنف]])-7","v":297},"صنف رقم 297",null,null,0,"15%",0,0,"مستهلك"]
[{"$f":"ROW(الجدول1[[#This Row],[أسم الصنف]])-7","v":298},"صنف رقم 298",null,null,0,"15%",0,0,"مستهلك"]
[{"$f":"ROW(الجدول1[[#This Row],[أسم الصنف]])-7","v":299},"صنف رقم 299",null,null,0,"15%",0,0,"مستهلك"]
[{"$f":"ROW(الجدول1[[#This Row],[أسم الصنف]])-7","v":300},"صنف رقم 300",null,null,0,"15%",0,0,"مستهلك"]
[{"$f":"ROW(الجدول1[[#This Row],[أسم الصنف]])-7","v":301},"صنف رقم 301",null,null,0,"15%",0,0,"مستهلك"]
[{"$f":"ROW(الجدول1[[#This Row],[أسم الصنف]])-7","v":302},"صنف رقم 302",null,null,0,"15%",0,0,"مستهلك"]
[{"$f":"ROW(الجدول1[[#This Row],[أسم الصنف]])-7","v":303},"صنف رقم 303",null,null,0,"15%",0,0,"مستهلك"]
[{"$f":"ROW(الجدول1[[#This Row],[أسم الصنف]])-7","v":304},"صنف رقم 304",null,null,0,"15%",0,0,"مستهلك"]
[{"$f":"ROW(الجدول1[[#This Row],[أسم الصنف]])-7","v":305},"صنف رقم 305",null,null,0,"15%",0,0,"مستهلك"]
[{"$f":"ROW(الجدول1[[#This Row],[أسم الصنف]])-7","v":306},"صنف رقم 306",null,null,0,"15%",0,0,"مستهلك"]
[{"$f":"ROW(الجدول1[[#This Row],[أسم الصنف]])-7","v":307},"صنف رقم 307",null,null,0,"15%",0,0,"مستهلك"]
[{"$f":"ROW(الجدول1[[#This Row],[أسم الصنف]])-7","v":308},"صنف رقم 308",null,null,0,"15%",0,0,"مستهلك"]
[{"$f":"ROW(الجدول1[[#This Row],[أسم الصنف]])-7","v":309},"صنف رقم 309",null,null,0,"15%",0,0,"مستهلك"]
[{"$f":"ROW(الجدول1[[#This Row],[أسم الصنف]])-7","v":310},"صنف رقم 310",null,null,0,"15%",0,0,"مستهلك"]
[{"$f":"ROW(الجدول1[[#This Row],[أسم الصنف]])-7","v":311},"صنف رقم 311",null,null,0,"15%",0,0,"مستهلك"]
[{"$f":"ROW(الجدول1[[#This Row],[أسم الصنف]])-7","v":312},"صنف رقم 312",null,null,0,"15%",0,0,"مستهلك"]
[{"$f":"ROW(الجدول1[[#This Row],[أسم الصنف]])-7","v":313},"صنف رقم 313",null,null,0,"15%",0,0,"مستهلك"]
[{"$f":"ROW(الجدول1[[#This Row],[أسم الصنف]])-7","v":314},"صنف رقم 314",null,null,0,"15%",0,0,"مستهلك"]
[{"$f":"ROW(الجدول1[[#This Row],[أسم الصنف]])-7","v":315},"صنف رقم 315",null,null,0,"15%",0,0,"مستهلك"]
[{"$f":"ROW(الجدول1[[#This Row],[أسم الصنف]])-7","v":316},"صنف رقم 316",null,null,0,"15%",0,0,"مستهلك"]
[{"$f":"ROW(الجدول1[[#This Row],[أسم الصنف]])-7","v":317},"صنف رقم 317",null,null,0,"15%",0,0,"مستهلك"]
[{"$f":"ROW(الجدول1[[#This Row],[أسم الصنف]])-7","v":318},"صنف رقم 318",null,null,0,"15%",0,0,"مستهلك"]
[{"$f":"ROW(الجدول1[[#This Row],[أسم الصنف]])-7","v":319},"صنف رقم 319",null,null,0,"15%",0,0,"مستهلك"]
[{"$f":"ROW(الجدول1[[#This Row],[أسم الصنف]])-7","v":320},"صنف رقم 320",null,null,0,"15%",0,0,"مستهلك"]
[{"$f":"ROW(الجدول1[[#This Row],[أسم الصنف]])-7","v":321},"صنف رقم 321",null,null,{"$f":"C328*D328","v":0},"15%",{"$f":"H328-E328","v":0},{"$f":"E328+(E328*F328)","v":0},"مستهلك"]
[{"$f":"ROW(الجدول1[[#This Row],[أسم الصنف]])-7","v":322},"صنف رقم 322",null,null,0,"15%",0,0,"مستهلك"]
[{"$f":"ROW(الجدول1[[#This Row],[أسم الصنف]])-7","v":323},"صنف رقم 323",null,null,0,"15%",0,0,"مستهلك"]
[{"$f":"ROW(الجدول1[[#This Row],[أسم الصنف]])-7","v":324},"صنف رقم 324",null,null,0,"15%",0,0,"مستهلك"]
[{"$f":"ROW(الجدول1[[#This Row],[أسم الصنف]])-7","v":325},"صنف رقم 325",null,null,0,"15%",0,0,"مستهلك"]
[{"$f":"ROW(الجدول1[[#This Row],[أسم الصنف]])-7","v":326},"صنف رقم 326",null,null,0,"15%",0,0,"مستهلك"]
[{"$f":"ROW(الجدول1[[#This Row],[أسم الصنف]])-7","v":327},"صنف رقم 327",null,null,0,"15%",0,0,"مستهلك"]
[{"$f":"ROW(الجدول1[[#This Row],[أسم الصنف]])-7","v":328},"صنف رقم 328",null,null,0,"15%",0,0,"مستهلك"]
[{"$f":"ROW(الجدول1[[#This Row],[أسم الصنف]])-7","v":329},"صنف رقم 329",null,null,0,"15%",0,0,"مستهلك"]
[{"$f":"ROW(الجدول1[[#This Row],[أسم الصنف]])-7","v":330},"صنف رقم 330",null,null,0,"15%",0,0,"مستهلك"]
[{"$f":"ROW(الجدول1[[#This Row],[أسم الصنف]])-7","v":331},"صنف رقم 331",null,null,0,"15%",0,0,"مستهلك"]
[{"$f":"ROW(الجدول1[[#This Row],[أسم الصنف]])-7","v":332},"صنف رقم 332",null,null,0,"15%",0,0,"مستهلك"]
[{"$f":"ROW(الجدول1[[#This Row],[أسم الصنف]])-7","v":333},"صنف رقم 333",null,null,0,"15%",0,0,"مستهلك"]
[{"$f":"ROW(الجدول1[[#This Row],[أسم الصنف]])-7","v":334},"صنف رقم 334",null,null,0,"15%",0,0,"مستهلك"]
[{"$f":"ROW(الجدول1[[#This Row],[أسم الصنف]])-7","v":335},"صنف رقم 335",null,null,0,"15%",0,0,"مستهلك"]
[{"$f":"ROW(الجدول1[[#This Row],[أسم الصنف]])-7","v":336},"صنف رقم 336",null,null,0,"15%",0,0,"مستهلك"]
[{"$f":"ROW(الجدول1[[#This Row],[أسم الصنف]])-7","v":337},"صنف رقم 337",null,null,0,"15%",0,0,"مستهلك"]
[{"$f":"ROW(الجدول1[[#This Row],[أسم الصنف]])-7","v":338},"صنف رقم 338",null,null,0,"15%",0,0,"مستهلك"]
[{"$f":"ROW(الجدول1[[#This Row],[أسم الصنف]])-7","v":339},"صنف رقم 339",null,null,0,"15%",0,0,"مستهلك"]
[{"$f":"ROW(الجدول1[[#This Row],[أسم الصنف]])-7","v":340},"صنف رقم 340",null,null,0,"15%",0,0,"مستهلك"]
[{"$f":"ROW(الجدول1[[#This Row],[أسم الصنف]])-7","v":341},"صنف رقم 341",null,null,0,"15%",0,0,"مستهلك"]
[{"$f":"ROW(الجدول1[[#This Row],[أسم الصنف]])-7","v":342},"صنف رقم 342",null,null,0,"15%",0,0,"مستهلك"]
[{"$f":"ROW(الجدول1[[#This Row],[أسم الصنف]])-7","v":343},"صنف رقم 343",null,null,0,"15%",0,0,"مستهلك"]
[{"$f":"ROW(الجدول1[[#This Row],[أسم الصنف]])-7","v":344},"صنف رقم 344",null,null,0,"15%",0,0,"مستهلك"]
[{"$f":"ROW(الجدول1[[#This Row],[أسم الصنف]])-7","v":345},"صنف رقم 345",null,null,0,"15%",0,0,"مستهلك"]
[{"$f":"ROW(الجدول1[[#This Row],[أسم الصنف]])-7","v":346},"صنف رقم 346",null,null,0,"15%",0,0,"مستهلك"]
[{"$f":"ROW(الجدول1[[#This Row],[أسم الصنف]])-7","v":347},"صنف رقم 347",null,null,0,"15%",0,0,"مستهلك"]
[{"$f":"ROW(الجدول1[[#This Row],[أسم الصنف]])-7","v":348},"صنف رقم 348",null,null,0,"15%",0,0,"مستهلك"]
[{"$f":"ROW(الجدول1[[#This Row],[أسم الصنف]])-7","v":349},"صنف رقم 349",null,null,0,"15%",0,0,"مستهلك"]
[{"$f":"ROW(الجدول1[[#This Row],[أسم الصنف]])-7","v":350},"صنف رقم 350",null,null,0,"15%",0,0,"مستهلك"]
[null,null,"الــــمـــجـــمــــوع",null,{"$f":"SUBTOTAL(109,الجدول1[الإجمالي بدون ضريبة])","v":0},null,{"$f":"SUBTOTAL(109,الجدول1[مبلغ الضريبة])","v":0},{"$f":"SUBTOTAL(109,الجدول1[الإجمالي شامل الضريبة])","v":0}]
["يرسل النموذج إلى البريد الإلكتروني التالي : aaalsalem@ksu.edu.sa بعد تعبئته.",null,null,"الإجمالي شامل الضريبة كتابة:",null,{"$f":"NumberToText(H358,\"ريال\",\"هللة\")","v":"صفر"}]

{"sheet":"Barcode","index":1,"n_rows":355,"n_cols":8,"rows_kept":355,"cut":false,"hidden":true,"merged":[[0,6,0,7],[1,6,1,7],[0,0,3,1],[0,2,3,5]]}
["إعداد الموظف:\nعبدالرحمن عبدالعزيز السالم\nجامعة الملك سعود - كلية الصيدلة\n0555178727\naaalsalem@ksu.edu.sa",null,"باركودات فواتير السلف\nBarcode"]
[]
[]
[]
["م","رقم التعريف","باركود رقم التعريف","باركود الكمية","الكمية","باركود السعر الإفرادي","السعر الإفرادي","المجموع"]
[1,{"$f":"'نموذج تعبئة فواتير السلف'!J8","v":0},{"$f":"\"*\"&B6&\"*\"","v":"*0*"},{"$f":"\"*\"&E6&\"*\"","v":"*0*"},{"$f":"'نموذج تعبئة فواتير السلف'!C8","v":0},{"$f":"\"*\"&G6&\"*\"","v":"*0*"},{"$f":"'نموذج تعبئة فواتير السلف'!D8","v":0},{"$f":"'نموذج تعبئة فواتير السلف'!E8","v":0}]
[2,{"$f":"'نموذج تعبئة فواتير السلف'!J9","v":0},"*0*",{"$f":"\"*\"&E7&\"*\"","v":"*0*"},{"$f":"'نموذج تعبئة فواتير السلف'!C9","v":0},{"$f":"\"*\"&G7&\"*\"","v":"*0*"},{"$f":"'نموذج تعبئة فواتير السلف'!D9","v":0},{"$f":"'نموذج تعبئة فواتير السلف'!E9","v":0}]
[3,{"$f":"'نموذج تعبئة فواتير السلف'!J10","v":0},"*0*","*0*",{"$f":"'نموذج تعبئة فواتير السلف'!C10","v":0},"*0*",{"$f":"'نموذج تعبئة فواتير السلف'!D10","v":0},{"$f":"'نموذج تعبئة فواتير السلف'!E10","v":0}]
[4,{"$f":"'نموذج تعبئة فواتير السلف'!J11","v":0},"*0*","*0*",{"$f":"'نموذج تعبئة فواتير السلف'!C11","v":0},"*0*",{"$f":"'نموذج تعبئة فواتير السلف'!D11","v":0},{"$f":"'نموذج تعبئة فواتير السلف'!E11","v":0}]
[5,{"$f":"'نموذج تعبئة فواتير السلف'!J12","v":0},"*0*","*0*",{"$f":"'نموذج تعبئة فواتير السلف'!C12","v":0},"*0*",{"$f":"'نموذج تعبئة فواتير السلف'!D12","v":0},{"$f":"'نموذج تعبئة فواتير السلف'!E12","v":0}]
[6,{"$f":"'نموذج تعبئة فواتير السلف'!J13","v":0},"*0*","*0*",{"$f":"'نموذج تعبئة فواتير السلف'!C13","v":0},"*0*",{"$f":"'نموذج تعبئة فواتير السلف'!D13","v":0},{"$f":"'نموذج تعبئة فواتير السلف'!E13","v":0}]
[7,{"$f":"'نموذج تعبئة فواتير السلف'!J14","v":0},"*0*","*0*",{"$f":"'نموذج تعبئة فواتير السلف'!C14","v":0},"*0*",{"$f":"'نموذج تعبئة فواتير السلف'!D14","v":0},{"$f":"'نموذج تعبئة فواتير السلف'!E14","v":0}]
[8,{"$f":"'نموذج تعبئة فواتير السلف'!J15","v":0},"*0*","*0*",{"$f":"'نموذج تعبئة فواتير السلف'!C15","v":0},"*0*",{"$f":"'نموذج تعبئة فواتير السلف'!D15","v":0},{"$f":"'نموذج تعبئة فواتير السلف'!E15","v":0}]
[9,{"$f":"'نموذج تعبئة فواتير السلف'!J16","v":0},"*0*","*0*",{"$f":"'نموذج تعبئة فواتير السلف'!C16","v":0},"*0*",{"$f":"'نموذج تعبئة فواتير السلف'!D16","v":0},{"$f":"'نموذج تعبئة فواتير السلف'!E16","v":0}]
[10,{"$f":"'نموذج تعبئة فواتير السلف'!J17","v":0},"*0*","*0*",{"$f":"'نموذج تعبئة فواتير السلف'!C17","v":0},"*0*",{"$f":"'نموذج تعبئة فواتير السلف'!D17","v":0},{"$f":"'نموذج تعبئة فواتير السلف'!E17","v":0}]
[11,{"$f":"'نموذج تعبئة فواتير السلف'!J18","v":0},"*0*","*0*",{"$f":"'نموذج تعبئة فواتير السلف'!C18","v":0},"*0*",{"$f":"'نموذج تعبئة فواتير السلف'!D18","v":0},{"$f":"'نموذج تعبئة فواتير السلف'!E18","v":0}]
[12,{"$f":"'نموذج تعبئة فواتير السلف'!J19","v":0},"*0*","*0*",{"$f":"'نموذج تعبئة فواتير السلف'!C19","v":0},"*0*",{"$f":"'نموذج تعبئة فواتير السلف'!D19","v":0},{"$f":"'نموذج تعبئة فواتير السلف'!E19","v":0}]
[13,{"$f":"'نموذج تعبئة فواتير السلف'!J20","v":0},"*0*","*0*",{"$f":"'نموذج تعبئة فواتير السلف'!C20","v":0},"*0*",{"$f":"'نموذج تعبئة فواتير السلف'!D20","v":0},{"$f":"'نموذج تعبئة فواتير السلف'!E20","v":0}]
[14,{"$f":"'نموذج تعبئة فواتير السلف'!J21","v":0},"*0*","*0*",{"$f":"'نموذج تعبئة فواتير السلف'!C21","v":0},"*0*",{"$f":"'نموذج تعبئة فواتير السلف'!D21","v":0},{"$f":"'نموذج تعبئة فواتير السلف'!E21","v":0}]
[15,{"$f":"'نموذج تعبئة فواتير السلف'!J22","v":0},"*0*","*0*",{"$f":"'نموذج تعبئة فواتير السلف'!C22","v":0},"*0*",{"$f":"'نموذج تعبئة فواتير السلف'!D22","v":0},{"$f":"'نموذج تعبئة فواتير السلف'!E22","v":0}]
[16,{"$f":"'نموذج تعبئة فواتير السلف'!J23","v":0},"*0*","*0*",{"$f":"'نموذج تعبئة فواتير السلف'!C23","v":0},"*0*",{"$f":"'نموذج تعبئة فواتير السلف'!D23","v":0},{"$f":"'نموذج تعبئة فواتير السلف'!E23","v":0}]
[17,{"$f":"'نموذج تعبئة فواتير السلف'!J24","v":0},"*0*","*0*",{"$f":"'نموذج تعبئة فواتير السلف'!C24","v":0},"*0*",{"$f":"'نموذج تعبئة فواتير السلف'!D24","v":0},{"$f":"'نموذج تعبئة فواتير السلف'!E24","v":0}]
[18,{"$f":"'نموذج تعبئة فواتير السلف'!J25","v":0},"*0*","*0*",{"$f":"'نموذج تعبئة فواتير السلف'!C25","v":0},"*0*",{"$f":"'نموذج تعبئة فواتير السلف'!D25","v":0},{"$f":"'نموذج تعبئة فواتير السلف'!E25","v":0}]
[19,{"$f":"'نموذج تعبئة فواتير السلف'!J26","v":0},"*0*","*0*",{"$f":"'نموذج تعبئة فواتير السلف'!C26","v":0},"*0*",{"$f":"'نموذج تعبئة فواتير السلف'!D26","v":0},{"$f":"'نموذج تعبئة فواتير السلف'!E26","v":0}]
[20,{"$f":"'نموذج تعبئة فواتير السلف'!J27","v":0},"*0*","*0*",{"$f":"'نموذج تعبئة فواتير السلف'!C27","v":0},"*0*",{"$f":"'نموذج تعبئة فواتير السلف'!D27","v":0},{"$f":"'نموذج تعبئة فواتير السلف'!E27","v":0}]
[21,{"$f":"'نموذج تعبئة فواتير السلف'!J28","v":0},"*0*","*0*",{"$f":"'نموذج تعبئة فواتير السلف'!C28","v":0},"*0*",{"$f":"'نموذج تعبئة فواتير السلف'!D28","v":0},{"$f":"'نموذج تعبئة فواتير السلف'!E28","v":0}]
[22,{"$f":"'نموذج تعبئة فواتير السلف'!J29","v":0},"*0*","*0*",{"$f":"'نموذج تعبئة فواتير السلف'!C29","v":0},"*0*",{"$f":"'نموذج تعبئة فواتير السلف'!D29","v":0},{"$f":"'نموذج تعبئة فواتير السلف'!E29","v":0}]
[23,{"$f":"'نموذج تعبئة فواتير السلف'!J30","v":0},"*0*","*0*",{"$f":"'نموذج تعبئة فواتير السلف'!C30","v":0},"*0*",{"$f":"'نموذج تعبئة فواتير السلف'!D30","v":0},{"$f":"'نموذج تعبئة فواتير السلف'!E30","v":0}]
[24,{"$f":"'نموذج تعبئة فواتير السلف'!J31","v":0},"*0*","*0*",{"$f":"'نموذج تعبئة فواتير السلف'!C31","v":0},"*0*",{"$f":"'نموذج تعبئة فواتير السلف'!D31","v":0},{"$f":"'نموذج تعبئة فواتير السلف'!E31","v":0}]
[25,{"$f":"'نموذج تعبئة فواتير السلف'!J32","v":0},"*0*","*0*",{"$f":"'نموذج تعبئة فواتير السلف'!C32","v":0},"*0*",{"$f":"'نموذج تعبئة فواتير السلف'!D32","v":0},{"$f":"'نموذج تعبئة فواتير السلف'!E32","v":0}]
[26,{"$f":"'نموذج تعبئة فواتير السلف'!J33","v":0},"*0*","*0*",{"$f":"'نموذج تعبئة فواتير السلف'!C33","v":0},"*0*",{"$f":"'نموذج تعبئة فواتير السلف'!D33","v":0},{"$f":"'نموذج تعبئة فواتير السلف'!E33","v":0}]
[27,{"$f":"'نموذج تعبئة فواتير السلف'!J34","v":0},"*0*","*0*",{"$f":"'نموذج تعبئة فواتير السلف'!C34","v":0},"*0*",{"$f":"'نموذج تعبئة فواتير السلف'!D34","v":0},{"$f":"'نموذج تعبئة فواتير السلف'!E34","v":0}]
[28,{"$f":"'نموذج تعبئة فواتير السلف'!J35","v":0},"*0*","*0*",{"$f":"'نموذج تعبئة فواتير السلف'!C35","v":0},"*0*",{"$f":"'نموذج تعبئة فواتير السلف'!D35","v":0},{"$f":"'نموذج تعبئة فواتير السلف'!E35","v":0}]
[29,{"$f":"'نموذج تعبئة فواتير السلف'!J36","v":0},"*0*","*0*",{"$f":"'نموذج تعبئة فواتير السلف'!C36","v":0},"*0*",{"$f":"'نموذج تعبئة فواتير السلف'!D36","v":0},{"$f":"'نموذج تعبئة فواتير السلف'!E36","v":0}]
[30,{"$f":"'نموذج تعبئة فواتير السلف'!J37","v":0},"*0*","*0*",{"$f":"'نموذج تعبئة فواتير السلف'!C37","v":0},"*0*",{"$f":"'نموذج تعبئة فواتير السلف'!D37","v":0},{"$f":"'نموذج تعبئة فواتير السلف'!E37","v":0}]
[31,{"$f":"'نموذج تعبئة فواتير السلف'!J38","v":0},"*0*","*0*",{"$f":"'نموذج تعبئة فواتير السلف'!C38","v":0},"*0*",{"$f":"'نموذج تعبئة فواتير السلف'!D38","v":0},{"$f":"'نموذج تعبئة فواتير السلف'!E38","v":0}]
[32,{"$f":"'نموذج تعبئة فواتير السلف'!J39","v":0},"*0*","*0*",{"$f":"'نموذج تعبئة فواتير السلف'!C39","v":0},"*0*",{"$f":"'نموذج تعبئة فواتير السلف'!D39","v":0},{"$f":"'نموذج تعبئة فواتير السلف'!E39","v":0}]
[33,{"$f":"'نموذج تعبئة فواتير السلف'!J40","v":0},"*0*","*0*",{"$f":"'نموذج تعبئة فواتير السلف'!C40","v":0},"*0*",{"$f":"'نموذج تعبئة فواتير السلف'!D40","v":0},{"$f":"'نموذج تعبئة فواتير السلف'!E40","v":0}]
[34,{"$f":"'نموذج تعبئة فواتير السلف'!J41","v":0},"*0*","*0*",{"$f":"'نموذج تعبئة فواتير السلف'!C41","v":0},"*0*",{"$f":"'نموذج تعبئة فواتير السلف'!D41","v":0},{"$f":"'نموذج تعبئة فواتير السلف'!E41","v":0}]
[35,{"$f":"'نموذج تعبئة فواتير السلف'!J42","v":0},"*0*","*0*",{"$f":"'نموذج تعبئة فواتير السلف'!C42","v":0},"*0*",{"$f":"'نموذج تعبئة فواتير السلف'!D42","v":0},{"$f":"'نموذج تعبئة فواتير السلف'!E42","v":0}]
[36,{"$f":"'نموذج تعبئة فواتير السلف'!J43","v":0},"*0*","*0*",{"$f":"'نموذج تعبئة فواتير السلف'!C43","v":0},"*0*",{"$f":"'نموذج تعبئة فواتير السلف'!D43","v":0},{"$f":"'نموذج تعبئة فواتير السلف'!E43","v":0}]
[37,{"$f":"'نموذج تعبئة فواتير السلف'!J44","v":0},"*0*","*0*",{"$f":"'نموذج تعبئة فواتير السلف'!C44","v":0},"*0*",{"$f":"'نموذج تعبئة فواتير السلف'!D44","v":0},{"$f":"'نموذج تعبئة فواتير السلف'!E44","v":0}]
[38,{"$f":"'نموذج تعبئة فواتير السلف'!J45","v":0},"*0*","*0*",{"$f":"'نموذج تعبئة فواتير السلف'!C45","v":0},"*0*",{"$f":"'نموذج تعبئة فواتير السلف'!D45","v":0},{"$f":"'نموذج تعبئة فواتير السلف'!E45","v":0}]
[39,{"$f":"'نموذج تعبئة فواتير السلف'!J46","v":0},"*0*","*0*",{"$f":"'نموذج تعبئة فواتير السلف'!C46","v":0},"*0*",{"$f":"'نموذج تعبئة فواتير السلف'!D46","v":0},{"$f":"'نموذج تعبئة فواتير السلف'!E46","v":0}]
[40,{"$f":"'نموذج تعبئة فواتير السلف'!J47","v":0},"*0*","*0*",{"$f":"'نموذج تعبئة فواتير السلف'!C47","v":0},"*0*",{"$f":"'نموذج تعبئة فواتير السلف'!D47","v":0},{"$f":"'نموذج تعبئة فواتير السلف'!E47","v":0}]
[41,{"$f":"'نموذج تعبئة فواتير السلف'!J48","v":0},"*0*","*0*",{"$f":"'نموذج تعبئة فواتير السلف'!C48","v":0},"*0*",{"$f":"'نموذج تعبئة فواتير السلف'!D48","v":0},{"$f":"'نموذج تعبئة فواتير السلف'!E48","v":0}]
[42,{"$f":"'نموذج تعبئة فواتير السلف'!J49","v":0},"*0*","*0*",{"$f":"'نموذج تعبئة فواتير السلف'!C49","v":0},"*0*",{"$f":"'نموذج تعبئة فواتير السلف'!D49","v":0},{"$f":"'نموذج تعبئة فواتير السلف'!E49","v":0}]
[43,{"$f":"'نموذج تعبئة فواتير السلف'!J50","v":0},"*0*","*0*",{"$f":"'نموذج تعبئة فواتير السلف'!C50","v":0},"*0*",{"$f":"'نموذج تعبئة فواتير السلف'!D50","v":0},{"$f":"'نموذج تعبئة فواتير السلف'!E50","v":0}]
[44,{"$f":"'نموذج تعبئة فواتير السلف'!J51","v":0},"*0*","*0*",{"$f":"'نموذج تعبئة فواتير السلف'!C51","v":0},"*0*",{"$f":"'نموذج تعبئة فواتير السلف'!D51","v":0},{"$f":"'نموذج تعبئة فواتير السلف'!E51","v":0}]
[45,{"$f":"'نموذج تعبئة فواتير السلف'!J52","v":0},"*0*","*0*",{"$f":"'نموذج تعبئة فواتير السلف'!C52","v":0},"*0*",{"$f":"'نموذج تعبئة فواتير السلف'!D52","v":0},{"$f":"'نموذج تعبئة فواتير السلف'!E52","v":0}]
[46,{"$f":"'نموذج تعبئة فواتير السلف'!J53","v":0},"*0*","*0*",{"$f":"'نموذج تعبئة فواتير السلف'!C53","v":0},"*0*",{"$f":"'نموذج تعبئة فواتير السلف'!D53","v":0},{"$f":"'نموذج تعبئة فواتير السلف'!E53","v":0}]
[47,{"$f":"'نموذج تعبئة فواتير السلف'!J54","v":0},"*0*","*0*",{"$f":"'نموذج تعبئة فواتير السلف'!C54","v":0},"*0*",{"$f":"'نموذج تعبئة فواتير السلف'!D54","v":0},{"$f":"'نموذج تعبئة فواتير السلف'!E54","v":0}]
[48,{"$f":"'نموذج تعبئة فواتير السلف'!J55","v":0},"*0*","*0*",{"$f":"'نموذج تعبئة فواتير السلف'!C55","v":0},"*0*",{"$f":"'نموذج تعبئة فواتير السلف'!D55","v":0},{"$f":"'نموذج تعبئة فواتير السلف'!E55","v":0}]
[49,{"$f":"'نموذج تعبئة فواتير السلف'!J56","v":0},"*0*","*0*",{"$f":"'نموذج تعبئة فواتير السلف'!C56","v":0},"*0*",{"$f":"'نموذج تعبئة فواتير السلف'!D56","v":0},{"$f":"'نموذج تعبئة فواتير السلف'!E56","v":0}]
[50,{"$f":"'نموذج تعبئة فواتير السلف'!J57","v":0},"*0*","*0*",{"$f":"'نموذج تعبئة فواتير السلف'!C57","v":0},"*0*",{"$f":"'نموذج تعبئة فواتير السلف'!D57","v":0},{"$f":"'نموذج تعبئة فواتير السلف'!E57","v":0}]
[51,{"$f":"'نموذج تعبئة فواتير السلف'!J58","v":0},"*0*","*0*",{"$f":"'نموذج تعبئة فواتير السلف'!C58","v":0},"*0*",{"$f":"'نموذج تعبئة فواتير السلف'!D58","v":0},{"$f":"'نموذج تعبئة فواتير السلف'!E58","v":0}]
[52,{"$f":"'نموذج تعبئة فواتير السلف'!J59","v":0},"*0*","*0*",{"$f":"'نموذج تعبئة فواتير السلف'!C59","v":0},"*0*",{"$f":"'نموذج تعبئة فواتير السلف'!D59","v":0},{"$f":"'نموذج تعبئة فواتير السلف'!E59","v":0}]
[53,{"$f":"'نموذج تعبئة فواتير السلف'!J60","v":0},"*0*","*0*",{"$f":"'نموذج تعبئة فواتير السلف'!C60","v":0},"*0*",{"$f":"'نموذج تعبئة فواتير السلف'!D60","v":0},{"$f":"'نموذج تعبئة فواتير السلف'!E60","v":0}]
[54,{"$f":"'نموذج تعبئة فواتير السلف'!J61","v":0},"*0*","*0*",{"$f":"'نموذج تعبئة فواتير السلف'!C61","v":0},"*0*",{"$f":"'نموذج تعبئة فواتير السلف'!D61","v":0},{"$f":"'نموذج تعبئة فواتير السلف'!E61","v":0}]
[55,{"$f":"'نموذج تعبئة فواتير السلف'!J62","v":0},"*0*","*0*",{"$f":"'نموذج تعبئة فواتير السلف'!C62","v":0},"*0*",{"$f":"'نموذج تعبئة فواتير السلف'!D62","v":0},{"$f":"'نموذج تعبئة فواتير السلف'!E62","v":0}]
[56,{"$f":"'نموذج تعبئة فواتير السلف'!J63","v":0},"*0*","*0*",{"$f":"'نموذج تعبئة فواتير السلف'!C63","v":0},"*0*",{"$f":"'نموذج تعبئة فواتير السلف'!D63","v":0},{"$f":"'نموذج تعبئة فواتير السلف'!E63","v":0}]
[57,{"$f":"'نموذج تعبئة فواتير السلف'!J64","v":0},"*0*","*0*",{"$f":"'نموذج تعبئة فواتير السلف'!C64","v":0},"*0*",{"$f":"'نموذج تعبئة فواتير السلف'!D64","v":0},{"$f":"'نموذج تعبئة فواتير السلف'!E64","v":0}]
[58,{"$f":"'نموذج تعبئة فواتير السلف'!J65","v":0},"*0*","*0*",{"$f":"'نموذج تعبئة فواتير السلف'!C65","v":0},"*0*",{"$f":"'نموذج تعبئة فواتير السلف'!D65","v":0},{"$f":"'نموذج تعبئة فواتير السلف'!E65","v":0}]
[59,{"$f":"'نموذج تعبئة فواتير السلف'!J66","v":0},"*0*","*0*",{"$f":"'نموذج تعبئة فواتير السلف'!C66","v":0},"*0*",{"$f":"'نموذج تعبئة فواتير السلف'!D66","v":0},{"$f":"'نموذج تعبئة فواتير السلف'!E66","v":0}]
[60,{"$f":"'نموذج تعبئة فواتير السلف'!J67","v":0},"*0*","*0*",{"$f":"'نموذج تعبئة فواتير السلف'!C67","v":0},"*0*",{"$f":"'نموذج تعبئة فواتير السلف'!D67","v":0},{"$f":"'نموذج تعبئة فواتير السلف'!E67","v":0}]
[61,{"$f":"'نموذج تعبئة فواتير السلف'!J68","v":0},"*0*","*0*",{"$f":"'نموذج تعبئة فواتير السلف'!C68","v":0},"*0*",{"$f":"'نموذج تعبئة فواتير السلف'!D68","v":0},{"$f":"'نموذج تعبئة فواتير السلف'!E68","v":0}]
[62,{"$f":"'نموذج تعبئة فواتير السلف'!J69","v":0},"*0*","*0*",{"$f":"'نموذج تعبئة فواتير السلف'!C69","v":0},"*0*",{"$f":"'نموذج تعبئة فواتير السلف'!D69","v":0},{"$f":"'نموذج تعبئة فواتير السلف'!E69","v":0}]
[63,{"$f":"'نموذج تعبئة فواتير السلف'!J70","v":0},"*0*","*0*",{"$f":"'نموذج تعبئة فواتير السلف'!C70","v":0},"*0*",{"$f":"'نموذج تعبئة فواتير السلف'!D70","v":0},{"$f":"'نموذج تعبئة فواتير السلف'!E70","v":0}]
[64,{"$f":"'نموذج تعبئة فواتير السلف'!J71","v":0},"*0*","*0*",{"$f":"'نموذج تعبئة فواتير السلف'!C71","v":0},"*0*",{"$f":"'نموذج تعبئة فواتير السلف'!D71","v":0},{"$f":"'نموذج تعبئة فواتير السلف'!E71","v":0}]
[65,{"$f":"'نموذج تعبئة فواتير السلف'!J72","v":0},"*0*","*0*",{"$f":"'نموذج تعبئة فواتير السلف'!C72","v":0},"*0*",{"$f":"'نموذج تعبئة فواتير السلف'!D72","v":0},{"$f":"'نموذج تعبئة فواتير السلف'!E72","v":0}]
[66,{"$f":"'نموذج تعبئة فواتير السلف'!J73","v":0},{"$f":"\"*\"&B71&\"*\"","v":"*0*"},{"$f":"\"*\"&E71&\"*\"","v":"*0*"},{"$f":"'نموذج تعبئة فواتير السلف'!C73","v":0},{"$f":"\"*\"&G71&\"*\"","v":"*0*"},{"$f":"'نموذج تعبئة فواتير السلف'!D73","v":0},{"$f":"'نموذج تعبئة فواتير السلف'!E73","v":0}]
[67,{"$f":"'نموذج تعبئة فواتير السلف'!J74","v":0},"*0*","*0*",{"$f":"'نموذج تعبئة فواتير السلف'!C74","v":0},"*0*",{"$f":"'نموذج تعبئة فواتير السلف'!D74","v":0},{"$f":"'نموذج تعبئة فواتير السلف'!E74","v":0}]
[68,{"$f":"'نموذج تعبئة فواتير السلف'!J75","v":0},"*0*","*0*",{"$f":"'نموذج تعبئة فواتير السلف'!C75","v":0},"*0*",{"$f":"'نموذج تعبئة فواتير السلف'!D75","v":0},{"$f":"'نموذج تعبئة فواتير السلف'!E75","v":0}]
[69,{"$f":"'نموذج تعبئة فواتير السلف'!J76","v":0},"*0*","*0*",{"$f":"'نموذج تعبئة فواتير السلف'!C76","v":0},"*0*",{"$f":"'نموذج تعبئة فواتير السلف'!D76","v":0},{"$f":"'نموذج تعبئة فواتير السلف'!E76","v":0}]
[70,{"$f":"'نموذج تعبئة فواتير السلف'!J77","v":0},"*0*","*0*",{"$f":"'نموذج تعبئة فواتير السلف'!C77","v":0},"*0*",{"$f":"'نموذج تعبئة فواتير السلف'!D77","v":0},{"$f":"'نموذج تعبئة فواتير السلف'!E77","v":0}]
[71,{"$f":"'نموذج تعبئة فواتير السلف'!J78","v":0},"*0*","*0*",{"$f":"'نموذج تعبئة فواتير السلف'!C78","v":0},"*0*",{"$f":"'نموذج تعبئة فواتير السلف'!D78","v":0},{"$f":"'نموذج تعبئة فواتير السلف'!E78","v":0}]
[72,{"$f":"'نموذج تعبئة فواتير السلف'!J79","v":0},"*0*","*0*",{"$f":"'نموذج تعبئة فواتير السلف'!C79","v":0},"*0*",{"$f":"'نموذج تعبئة فواتير السلف'!D79","v":0},{"$f":"'نموذج تعبئة فواتير السلف'!E79","v":0}]
[73,{"$f":"'نموذج تعبئة فواتير السلف'!J80","v":0},"*0*","*0*",{"$f":"'نموذج تعبئة فواتير السلف'!C80","v":0},"*0*",{"$f":"'نموذج تعبئة فواتير السلف'!D80","v":0},{"$f":"'نموذج تعبئة فواتير السلف'!E80","v":0}]
[74,{"$f":"'نموذج تعبئة فواتير السلف'!J81","v":0},"*0*","*0*",{"$f":"'نموذج تعبئة فواتير السلف'!C81","v":0},"*0*",{"$f":"'نموذج تعبئة فواتير السلف'!D81","v":0},{"$f":"'نموذج تعبئة فواتير السلف'!E81","v":0}]
[75,{"$f":"'نموذج تعبئة فواتير السلف'!J82","v":0},"*0*","*0*",{"$f":"'نموذج تعبئة فواتير السلف'!C82","v":0},"*0*",{"$f":"'نموذج تعبئة فواتير السلف'!D82","v":0},{"$f":"'نموذج تعبئة فواتير السلف'!E82","v":0}]
[76,{"$f":"'نموذج تعبئة فواتير السلف'!J83","v":0},"*0*","*0*",{"$f":"'نموذج تعبئة فواتير السلف'!C83","v":0},"*0*",{"$f":"'نموذج تعبئة فواتير السلف'!D83","v":0},{"$f":"'نموذج تعبئة فواتير السلف'!E83","v":0}]
[77,{"$f":"'نموذج تعبئة فواتير السلف'!J84","v":0},"*0*","*0*",{"$f":"'نموذج تعبئة فواتير السلف'!C84","v":0},"*0*",{"$f":"'نموذج تعبئة فواتير السلف'!D84","v":0},{"$f":"'نموذج تعبئة فواتير السلف'!E84","v":0}]
[78,{"$f":"'نموذج تعبئة فواتير السلف'!J85","v":0},"*0*","*0*",{"$f":"'نموذج تعبئة فواتير السلف'!C85","v":0},"*0*",{"$f":"'نموذج تعبئة فواتير السلف'!D85","v":0},{"$f":"'نموذج تعبئة فواتير السلف'!E85","v":0}]
[79,{"$f":"'نموذج تعبئة فواتير السلف'!J86","v":0},"*0*","*0*",{"$f":"'نموذج تعبئة فواتير السلف'!C86","v":0},"*0*",{"$f":"'نموذج تعبئة فواتير السلف'!D86","v":0},{"$f":"'نموذج تعبئة فواتير السلف'!E86","v":0}]
[80,{"$f":"'نموذج تعبئة فواتير السلف'!J87","v":0},"*0*","*0*",{"$f":"'نموذج تعبئة فواتير السلف'!C87","v":0},"*0*",{"$f":"'نموذج تعبئة فواتير السلف'!D87","v":0},{"$f":"'نموذج تعبئة فواتير السلف'!E87","v":0}]
[81,{"$f":"'نموذج تعبئة فواتير السلف'!J88","v":0},"*0*","*0*",{"$f":"'نموذج تعبئة فواتير السلف'!C88","v":0},"*0*",{"$f":"'نموذج تعبئة فواتير السلف'!D88","v":0},{"$f":"'نموذج تعبئة فواتير السلف'!E88","v":0}]
[82,{"$f":"'نموذج تعبئة فواتير السلف'!J89","v":0},"*0*","*0*",{"$f":"'نموذج تعبئة فواتير السلف'!C89","v":0},"*0*",{"$f":"'نموذج تعبئة فواتير السلف'!D89","v":0},{"$f":"'نموذج تعبئة فواتير السلف'!E89","v":0}]
[83,{"$f":"'نموذج تعبئة فواتير السلف'!J90","v":0},"*0*","*0*",{"$f":"'نموذج تعبئة فواتير السلف'!C90","v":0},"*0*",{"$f":"'نموذج تعبئة فواتير السلف'!D90","v":0},{"$f":"'نموذج تعبئة فواتير السلف'!E90","v":0}]
[84,{"$f":"'نموذج تعبئة فواتير السلف'!J91","v":0},"*0*","*0*",{"$f":"'نموذج تعبئة فواتير السلف'!C91","v":0},"*0*",{"$f":"'نموذج تعبئة فواتير السلف'!D91","v":0},{"$f":"'نموذج تعبئة فواتير السلف'!E91","v":0}]
[85,{"$f":"'نموذج تعبئة فواتير السلف'!J92","v":0},"*0*","*0*",{"$f":"'نموذج تعبئة فواتير السلف'!C92","v":0},"*0*",{"$f":"'نموذج تعبئة فواتير السلف'!D92","v":0},{"$f":"'نموذج تعبئة فواتير السلف'!E92","v":0}]
[86,{"$f":"'نموذج تعبئة فواتير السلف'!J93","v":0},"*0*","*0*",{"$f":"'نموذج تعبئة فواتير السلف'!C93","v":0},"*0*",{"$f":"'نموذج تعبئة فواتير السلف'!D93","v":0},{"$f":"'نموذج تعبئة فواتير السلف'!E93","v":0}]
[87,{"$f":"'نموذج تعبئة فواتير السلف'!J94","v":0},"*0*","*0*",{"$f":"'نموذج تعبئة فواتير السلف'!C94","v":0},"*0*",{"$f":"'نموذج تعبئة فواتير السلف'!D94","v":0},{"$f":"'نموذج تعبئة فواتير السلف'!E94","v":0}]
[88,{"$f":"'نموذج تعبئة فواتير السلف'!J95","v":0},"*0*","*0*",{"$f":"'نموذج تعبئة فواتير السلف'!C95","v":0},"*0*",{"$f":"'نموذج تعبئة فواتير السلف'!D95","v":0},{"$f":"'نموذج تعبئة فواتير السلف'!E95","v":0}]
[89,{"$f":"'نموذج تعبئة فواتير السلف'!J96","v":0},"*0*","*0*",{"$f":"'نموذج تعبئة فواتير السلف'!C96","v":0},"*0*",{"$f":"'نموذج تعبئة فواتير السلف'!D96","v":0},{"$f":"'نموذج تعبئة فواتير السلف'!E96","v":0}]
[90,{"$f":"'نموذج تعبئة فواتير السلف'!J97","v":0},"*0*","*0*",{"$f":"'نموذج تعبئة فواتير السلف'!C97","v":0},"*0*",{"$f":"'نموذج تعبئة فواتير السلف'!D97","v":0},{"$f":"'نموذج تعبئة فواتير السلف'!E97","v":0}]
[91,{"$f":"'نموذج تعبئة فواتير السلف'!J98","v":0},"*0*","*0*",{"$f":"'نموذج تعبئة فواتير السلف'!C98","v":0},"*0*",{"$f":"'نموذج تعبئة فواتير السلف'!D98","v":0},{"$f":"'نموذج تعبئة فواتير السلف'!E98","v":0}]
[92,{"$f":"'نموذج تعبئة فواتير السلف'!J99","v":0},"*0*","*0*",{"$f":"'نموذج تعبئة فواتير السلف'!C99","v":0},"*0*",{"$f":"'نموذج تعبئة فواتير السلف'!D99","v":0},{"$f":"'نموذج تعبئة فواتير السلف'!E99","v":0}]
[93,{"$f":"'نموذج تعبئة فواتير السلف'!J100","v":0},"*0*","*0*",{"$f":"'نموذج تعبئة فواتير السلف'!C100","v":0},"*0*",{"$f":"'نموذج تعبئة فواتير السلف'!D100","v":0},{"$f":"'نموذج تعبئة فواتير السلف'!E100","v":0}]
[94,{"$f":"'نموذج تعبئة فواتير السلف'!J101","v":0},"*0*","*0*",{"$f":"'نموذج تعبئة فواتير السلف'!C101","v":0},"*0*",{"$f":"'نموذج تعبئة فواتير السلف'!D101","v":0},{"$f":"'نموذج تعبئة فواتير السلف'!E101","v":0}]
[95,{"$f":"'نموذج تعبئة فواتير السلف'!J102","v":0},"*0*","*0*",{"$f":"'نموذج تعبئة فواتير السلف'!C102","v":0},"*0*",{"$f":"'نموذج تعبئة فواتير السلف'!D102","v":0},{"$f":"'نموذج تعبئة فواتير السلف'!E102","v":0}]
[96,{"$f":"'نموذج تعبئة فواتير السلف'!J103","v":0},"*0*","*0*",{"$f":"'نموذج تعبئة فواتير السلف'!C103","v":0},"*0*",{"$f":"'نموذج تعبئة فواتير السلف'!D103","v":0},{"$f":"'نموذج تعبئة فواتير السلف'!E103","v":0}]
[97,{"$f":"'نموذج تعبئة فواتير السلف'!J104","v":0},"*0*","*0*",{"$f":"'نموذج تعبئة فواتير السلف'!C104","v":0},"*0*",{"$f":"'نموذج تعبئة فواتير السلف'!D104","v":0},{"$f":"'نموذج تعبئة فواتير السلف'!E104","v":0}]
[98,{"$f":"'نموذج تعبئة فواتير السلف'!J105","v":0},"*0*","*0*",{"$f":"'نموذج تعبئة فواتير السلف'!C105","v":0},"*0*",{"$f":"'نموذج تعبئة فواتير السلف'!D105","v":0},{"$f":"'نموذج تعبئة فواتير السلف'!E105","v":0}]
[99,{"$f":"'نموذج تعبئة فواتير السلف'!J106","v":0},"*0*","*0*",{"$f":"'نموذج تعبئة فواتير السلف'!C106","v":0},"*0*",{"$f":"'نموذج تعبئة فواتير السلف'!D106","v":0},{"$f":"'نموذج تعبئة فواتير السلف'!E106","v":0}]
[100,{"$f":"'نموذج تعبئة فواتير السلف'!J107","v":0},"*0*","*0*",{"$f":"'نموذج تعبئة فواتير السلف'!C107","v":0},"*0*",{"$f":"'نموذج تعبئة فواتير السلف'!D107","v":0},{"$f":"'نموذج تعبئة فواتير السلف'!E107","v":0}]
[101,{"$f":"'نموذج تعبئة فواتير السلف'!J108","v":0},"*0*","*0*",{"$f":"'نموذج تعبئة فواتير السلف'!C108","v":0},"*0*",{"$f":"'نموذج تعبئة فواتير السلف'!D108","v":0},{"$f":"'نموذج تعبئة فواتير السلف'!E108","v":0}]
[102,{"$f":"'نموذج تعبئة فواتير السلف'!J109","v":0},"*0*","*0*",{"$f":"'نموذج تعبئة فواتير السلف'!C109","v":0},"*0*",{"$f":"'نموذج تعبئة فواتير السلف'!D109","v":0},{"$f":"'نموذج تعبئة فواتير السلف'!E109","v":0}]
[103,{"$f":"'نموذج تعبئة فواتير السلف'!J110","v":0},"*0*","*0*",{"$f":"'نموذج تعبئة فواتير السلف'!C110","v":0},"*0*",{"$f":"'نموذج تعبئة فواتير السلف'!D110","v":0},{"$f":"'نموذج تعبئة فواتير السلف'!E110","v":0}]
[104,{"$f":"'نموذج تعبئة فواتير السلف'!J111","v":0},"*0*","*0*",{"$f":"'نموذج تعبئة فواتير السلف'!C111","v":0},"*0*",{"$f":"'نموذج تعبئة فواتير السلف'!D111","v":0},{"$f":"'نموذج تعبئة فواتير السلف'!E111","v":0}]
[105,{"$f":"'نموذج تعبئة فواتير السلف'!J112","v":0},"*0*","*0*",{"$f":"'نموذج تعبئة فواتير السلف'!C112","v":0},"*0*",{"$f":"'نموذج تعبئة فواتير السلف'!D112","v":0},{"$f":"'نموذج تعبئة فواتير السلف'!E112","v":0}]
[106,{"$f":"'نموذج تعبئة فواتير السلف'!J113","v":0},"*0*","*0*",{"$f":"'نموذج تعبئة فواتير السلف'!C113","v":0},"*0*",{"$f":"'نموذج تعبئة فواتير السلف'!D113","v":0},{"$f":"'نموذج تعبئة فواتير السلف'!E113","v":0}]
[107,{"$f":"'نموذج تعبئة فواتير السلف'!J114","v":0},"*0*","*0*",{"$f":"'نموذج تعبئة فواتير السلف'!C114","v":0},"*0*",{"$f":"'نموذج تعبئة فواتير السلف'!D114","v":0},{"$f":"'نموذج تعبئة فواتير السلف'!E114","v":0}]
[108,{"$f":"'نموذج تعبئة فواتير السلف'!J115","v":0},"*0*","*0*",{"$f":"'نموذج تعبئة فواتير السلف'!C115","v":0},"*0*",{"$f":"'نموذج تعبئة فواتير السلف'!D115","v":0},{"$f":"'نموذج تعبئة فواتير السلف'!E115","v":0}]
[109,{"$f":"'نموذج تعبئة فواتير السلف'!J116","v":0},"*0*","*0*",{"$f":"'نموذج تعبئة فواتير السلف'!C116","v":0},"*0*",{"$f":"'نموذج تعبئة فواتير السلف'!D116","v":0},{"$f":"'نموذج تعبئة فواتير السلف'!E116","v":0}]
[110,{"$f":"'نموذج تعبئة فواتير السلف'!J117","v":0},"*0*","*0*",{"$f":"'نموذج تعبئة فواتير السلف'!C117","v":0},"*0*",{"$f":"'نموذج تعبئة فواتير السلف'!D117","v":0},{"$f":"'نموذج تعبئة فواتير السلف'!E117","v":0}]
[111,{"$f":"'نموذج تعبئة فواتير السلف'!J118","v":0},"*0*","*0*",{"$f":"'نموذج تعبئة فواتير السلف'!C118","v":0},"*0*",{"$f":"'نموذج تعبئة فواتير السلف'!D118","v":0},{"$f":"'نموذج تعبئة فواتير السلف'!E118","v":0}]
[112,{"$f":"'نموذج تعبئة فواتير السلف'!J119","v":0},"*0*","*0*",{"$f":"'نموذج تعبئة فواتير السلف'!C119","v":0},"*0*",{"$f":"'نموذج تعبئة فواتير السلف'!D119","v":0},{"$f":"'نموذج تعبئة فواتير السلف'!E119","v":0}]
[113,{"$f":"'نموذج تعبئة فواتير السلف'!J120","v":0},"*0*","*0*",{"$f":"'نموذج تعبئة فواتير السلف'!C120","v":0},"*0*",{"$f":"'نموذج تعبئة فواتير السلف'!D120","v":0},{"$f":"'نموذج تعبئة فواتير السلف'!E120","v":0}]
[114,{"$f":"'نموذج تعبئة فواتير السلف'!J121","v":0},"*0*","*0*",{"$f":"'نموذج تعبئة فواتير السلف'!C121","v":0},"*0*",{"$f":"'نموذج تعبئة فواتير السلف'!D121","v":0},{"$f":"'نموذج تعبئة فواتير السلف'!E121","v":0}]
[115,{"$f":"'نموذج تعبئة فواتير السلف'!J122","v":0},"*0*","*0*",{"$f":"'نموذج تعبئة فواتير السلف'!C122","v":0},"*0*",{"$f":"'نموذج تعبئة فواتير السلف'!D122","v":0},{"$f":"'نموذج تعبئة فواتير السلف'!E122","v":0}]
[116,{"$f":"'نموذج تعبئة فواتير السلف'!J123","v":0},"*0*","*0*",{"$f":"'نموذج تعبئة فواتير السلف'!C123","v":0},"*0*",{"$f":"'نموذج تعبئة فواتير السلف'!D123","v":0},{"$f":"'نموذج تعبئة فواتير السلف'!E123","v":0}]
[117,{"$f":"'نموذج تعبئة فواتير السلف'!J124","v":0},"*0*","*0*",{"$f":"'نموذج تعبئة فواتير السلف'!C124","v":0},"*0*",{"$f":"'نموذج تعبئة فواتير السلف'!D124","v":0},{"$f":"'نموذج تعبئة فواتير السلف'!E124","v":0}]
[118,{"$f":"'نموذج تعبئة فواتير السلف'!J125","v":0},"*0*","*0*",{"$f":"'نموذج تعبئة فواتير السلف'!C125","v":0},"*0*",{"$f":"'نموذج تعبئة فواتير السلف'!D125","v":0},{"$f":"'نموذج تعبئة فواتير السلف'!E125","v":0}]
[119,{"$f":"'نموذج تعبئة فواتير السلف'!J126","v":0},"*0*","*0*",{"$f":"'نموذج تعبئة فواتير السلف'!C126","v":0},"*0*",{"$f":"'نموذج تعبئة فواتير السلف'!D126","v":0},{"$f":"'نموذج تعبئة فواتير السلف'!E126","v":0}]
[120,{"$f":"'نموذج تعبئة فواتير السلف'!J127","v":0},"*0*","*0*",{"$f":"'نموذج تعبئة فواتير السلف'!C127","v":0},"*0*",{"$f":"'نموذج تعبئة فواتير السلف'!D127","v":0},{"$f":"'نموذج تعبئة فواتير السلف'!E127","v":0}]
[121,{"$f":"'نموذج تعبئة فواتير السلف'!J128","v":0},"*0*","*0*",{"$f":"'نموذج تعبئة فواتير السلف'!C128","v":0},"*0*",{"$f":"'نموذج تعبئة فواتير السلف'!D128","v":0},{"$f":"'نموذج تعبئة فواتير السلف'!E128","v":0}]
[122,{"$f":"'نموذج تعبئة فواتير السلف'!J129","v":0},"*0*","*0*",{"$f":"'نموذج تعبئة فواتير السلف'!C129","v":0},"*0*",{"$f":"'نموذج تعبئة فواتير السلف'!D129","v":0},{"$f":"'نموذج تعبئة فواتير السلف'!E129","v":0}]
[123,{"$f":"'نموذج تعبئة فواتير السلف'!J130","v":0},"*0*","*0*",{"$f":"'نموذج تعبئة فواتير السلف'!C130","v":0},"*0*",{"$f":"'نموذج تعبئة فواتير السلف'!D130","v":0},{"$f":"'نموذج تعبئة فواتير السلف'!E130","v":0}]
[124,{"$f":"'نموذج تعبئة فواتير السلف'!J131","v":0},"*0*","*0*",{"$f":"'نموذج تعبئة فواتير السلف'!C131","v":0},"*0*",{"$f":"'نموذج تعبئة فواتير السلف'!D131","v":0},{"$f":"'نموذج تعبئة فواتير السلف'!E131","v":0}]
[125,{"$f":"'نموذج تعبئة فواتير السلف'!J132","v":0},"*0*","*0*",{"$f":"'نموذج تعبئة فواتير السلف'!C132","v":0},"*0*",{"$f":"'نموذج تعبئة فواتير السلف'!D132","v":0},{"$f":"'نموذج تعبئة فواتير السلف'!E132","v":0}]
[126,{"$f":"'نموذج تعبئة فواتير السلف'!J133","v":0},"*0*","*0*",{"$f":"'نموذج تعبئة فواتير السلف'!C133","v":0},"*0*",{"$f":"'نموذج تعبئة فواتير السلف'!D133","v":0},{"$f":"'نموذج تعبئة فواتير السلف'!E133","v":0}]
[127,{"$f":"'نموذج تعبئة فواتير السلف'!J134","v":0},"*0*","*0*",{"$f":"'نموذج تعبئة فواتير السلف'!C134","v":0},"*0*",{"$f":"'نموذج تعبئة فواتير السلف'!D134","v":0},{"$f":"'نموذج تعبئة فواتير السلف'!E134","v":0}]
[128,{"$f":"'نموذج تعبئة فواتير السلف'!J135","v":0},"*0*","*0*",{"$f":"'نموذج تعبئة فواتير السلف'!C135","v":0},"*0*",{"$f":"'نموذج تعبئة فواتير السلف'!D135","v":0},{"$f":"'نموذج تعبئة فواتير السلف'!E135","v":0}]
[129,{"$f":"'نموذج تعبئة فواتير السلف'!J136","v":0},"*0*","*0*",{"$f":"'نموذج تعبئة فواتير السلف'!C136","v":0},"*0*",{"$f":"'نموذج تعبئة فواتير السلف'!D136","v":0},{"$f":"'نموذج تعبئة فواتير السلف'!E136","v":0}]
[130,{"$f":"'نموذج تعبئة فواتير السلف'!J137","v":0},{"$f":"\"*\"&B135&\"*\"","v":"*0*"},{"$f":"\"*\"&E135&\"*\"","v":"*0*"},{"$f":"'نموذج تعبئة فواتير السلف'!C137","v":0},{"$f":"\"*\"&G135&\"*\"","v":"*0*"},{"$f":"'نموذج تعبئة فواتير السلف'!D137","v":0},{"$f":"'نموذج تعبئة فواتير السلف'!E137","v":0}]
[131,{"$f":"'نموذج تعبئة فواتير السلف'!J138","v":0},"*0*","*0*",{"$f":"'نموذج تعبئة فواتير السلف'!C138","v":0},"*0*",{"$f":"'نموذج تعبئة فواتير السلف'!D138","v":0},{"$f":"'نموذج تعبئة فواتير السلف'!E138","v":0}]
[132,{"$f":"'نموذج تعبئة فواتير السلف'!J139","v":0},"*0*","*0*",{"$f":"'نموذج تعبئة فواتير السلف'!C139","v":0},"*0*",{"$f":"'نموذج تعبئة فواتير السلف'!D139","v":0},{"$f":"'نموذج تعبئة فواتير السلف'!E139","v":0}]
[133,{"$f":"'نموذج تعبئة فواتير السلف'!J140","v":0},"*0*","*0*",{"$f":"'نموذج تعبئة فواتير السلف'!C140","v":0},"*0*",{"$f":"'نموذج تعبئة فواتير السلف'!D140","v":0},{"$f":"'نموذج تعبئة فواتير السلف'!E140","v":0}]
[134,{"$f":"'نموذج تعبئة فواتير السلف'!J141","v":0},"*0*","*0*",{"$f":"'نموذج تعبئة فواتير السلف'!C141","v":0},"*0*",{"$f":"'نموذج تعبئة فواتير السلف'!D141","v":0},{"$f":"'نموذج تعبئة فواتير السلف'!E141","v":0}]
[135,{"$f":"'نموذج تعبئة فواتير السلف'!J142","v":0},"*0*","*0*",{"$f":"'نموذج تعبئة فواتير السلف'!C142","v":0},"*0*",{"$f":"'نموذج تعبئة فواتير السلف'!D142","v":0},{"$f":"'نموذج تعبئة فواتير السلف'!E142","v":0}]
[136,{"$f":"'نموذج تعبئة فواتير السلف'!J143","v":0},"*0*","*0*",{"$f":"'نموذج تعبئة فواتير السلف'!C143","v":0},"*0*",{"$f":"'نموذج تعبئة فواتير السلف'!D143","v":0},{"$f":"'نموذج تعبئة فواتير السلف'!E143","v":0}]
[137,{"$f":"'نموذج تعبئة فواتير السلف'!J144","v":0},"*0*","*0*",{"$f":"'نموذج تعبئة فواتير السلف'!C144","v":0},"*0*",{"$f":"'نموذج تعبئة فواتير السلف'!D144","v":0},{"$f":"'نموذج تعبئة فواتير السلف'!E144","v":0}]
[138,{"$f":"'نموذج تعبئة فواتير السلف'!J145","v":0},"*0*","*0*",{"$f":"'نموذج تعبئة فواتير السلف'!C145","v":0},"*0*",{"$f":"'نموذج تعبئة فواتير السلف'!D145","v":0},{"$f":"'نموذج تعبئة فواتير السلف'!E145","v":0}]
[139,{"$f":"'نموذج تعبئة فواتير السلف'!J146","v":0},"*0*","*0*",{"$f":"'نموذج تعبئة فواتير السلف'!C146","v":0},"*0*",{"$f":"'نموذج تعبئة فواتير السلف'!D146","v":0},{"$f":"'نموذج تعبئة فواتير السلف'!E146","v":0}]
[140,{"$f":"'نموذج تعبئة فواتير السلف'!J147","v":0},"*0*","*0*",{"$f":"'نموذج تعبئة فواتير السلف'!C147","v":0},"*0*",{"$f":"'نموذج تعبئة فواتير السلف'!D147","v":0},{"$f":"'نموذج تعبئة فواتير السلف'!E147","v":0}]
[141,{"$f":"'نموذج تعبئة فواتير السلف'!J148","v":0},"*0*","*0*",{"$f":"'نموذج تعبئة فواتير السلف'!C148","v":0},"*0*",{"$f":"'نموذج تعبئة فواتير السلف'!D148","v":0},{"$f":"'نموذج تعبئة فواتير السلف'!E148","v":0}]
[142,{"$f":"'نموذج تعبئة فواتير السلف'!J149","v":0},"*0*","*0*",{"$f":"'نموذج تعبئة فواتير السلف'!C149","v":0},"*0*",{"$f":"'نموذج تعبئة فواتير السلف'!D149","v":0},{"$f":"'نموذج تعبئة فواتير السلف'!E149","v":0}]
[143,{"$f":"'نموذج تعبئة فواتير السلف'!J150","v":0},"*0*","*0*",{"$f":"'نموذج تعبئة فواتير السلف'!C150","v":0},"*0*",{"$f":"'نموذج تعبئة فواتير السلف'!D150","v":0},{"$f":"'نموذج تعبئة فواتير السلف'!E150","v":0}]
[144,{"$f":"'نموذج تعبئة فواتير السلف'!J151","v":0},"*0*","*0*",{"$f":"'نموذج تعبئة فواتير السلف'!C151","v":0},"*0*",{"$f":"'نموذج تعبئة فواتير السلف'!D151","v":0},{"$f":"'نموذج تعبئة فواتير السلف'!E151","v":0}]
[145,{"$f":"'نموذج تعبئة فواتير السلف'!J152","v":0},"*0*","*0*",{"$f":"'نموذج تعبئة فواتير السلف'!C152","v":0},"*0*",{"$f":"'نموذج تعبئة فواتير السلف'!D152","v":0},{"$f":"'نموذج تعبئة فواتير السلف'!E152","v":0}]
[146,{"$f":"'نموذج تعبئة فواتير السلف'!J153","v":0},"*0*","*0*",{"$f":"'نموذج تعبئة فواتير السلف'!C153","v":0},"*0*",{"$f":"'نموذج تعبئة فواتير السلف'!D153","v":0},{"$f":"'نموذج تعبئة فواتير السلف'!E153","v":0}]
[147,{"$f":"'نموذج تعبئة فواتير السلف'!J154","v":0},"*0*","*0*",{"$f":"'نموذج تعبئة فواتير السلف'!C154","v":0},"*0*",{"$f":"'نموذج تعبئة فواتير السلف'!D154","v":0},{"$f":"'نموذج تعبئة فواتير السلف'!E154","v":0}]
[148,{"$f":"'نموذج تعبئة فواتير السلف'!J155","v":0},"*0*","*0*",{"$f":"'نموذج تعبئة فواتير السلف'!C155","v":0},"*0*",{"$f":"'نموذج تعبئة فواتير السلف'!D155","v":0},{"$f":"'نموذج تعبئة فواتير السلف'!E155","v":0}]
[149,{"$f":"'نموذج تعبئة فواتير السلف'!J156","v":0},"*0*","*0*",{"$f":"'نموذج تعبئة فواتير السلف'!C156","v":0},"*0*",{"$f":"'نموذج تعبئة فواتير السلف'!D156","v":0},{"$f":"'نموذج تعبئة فواتير السلف'!E156","v":0}]
[150,{"$f":"'نموذج تعبئة فواتير السلف'!J157","v":0},"*0*","*0*",{"$f":"'نموذج تعبئة فواتير السلف'!C157","v":0},"*0*",{"$f":"'نموذج تعبئة فواتير السلف'!D157","v":0},{"$f":"'نموذج تعبئة فواتير السلف'!E157","v":0}]
[151,{"$f":"'نموذج تعبئة فواتير السلف'!J158","v":0},"*0*","*0*",{"$f":"'نموذج تعبئة فواتير السلف'!C158","v":0},"*0*",{"$f":"'نموذج تعبئة فواتير السلف'!D158","v":0},{"$f":"'نموذج تعبئة فواتير السلف'!E158","v":0}]
[152,{"$f":"'نموذج تعبئة فواتير السلف'!J159","v":0},"*0*","*0*",{"$f":"'نموذج تعبئة فواتير السلف'!C159","v":0},"*0*",{"$f":"'نموذج تعبئة فواتير السلف'!D159","v":0},{"$f":"'نموذج تعبئة فواتير السلف'!E159","v":0}]
[153,{"$f":"'نموذج تعبئة فواتير السلف'!J160","v":0},"*0*","*0*",{"$f":"'نموذج تعبئة فواتير السلف'!C160","v":0},"*0*",{"$f":"'نموذج تعبئة فواتير السلف'!D160","v":0},{"$f":"'نموذج تعبئة فواتير السلف'!E160","v":0}]
[154,{"$f":"'نموذج تعبئة فواتير السلف'!J161","v":0},"*0*","*0*",{"$f":"'نموذج تعبئة فواتير السلف'!C161","v":0},"*0*",{"$f":"'نموذج تعبئة فواتير السلف'!D161","v":0},{"$f":"'نموذج تعبئة فواتير السلف'!E161","v":0}]
[155,{"$f":"'نموذج تعبئة فواتير السلف'!J162","v":0},"*0*","*0*",{"$f":"'نموذج تعبئة فواتير السلف'!C162","v":0},"*0*",{"$f":"'نموذج تعبئة فواتير السلف'!D162","v":0},{"$f":"'نموذج تعبئة فواتير السلف'!E162","v":0}]
[156,{"$f":"'نموذج تعبئة فواتير السلف'!J163","v":0},"*0*","*0*",{"$f":"'نموذج تعبئة فواتير السلف'!C163","v":0},"*0*",{"$f":"'نموذج تعبئة فواتير السلف'!D163","v":0},{"$f":"'نموذج تعبئة فواتير السلف'!E163","v":0}]
[157,{"$f":"'نموذج تعبئة فواتير السلف'!J164","v":0},"*0*","*0*",{"$f":"'نموذج تعبئة فواتير السلف'!C164","v":0},"*0*",{"$f":"'نموذج تعبئة فواتير السلف'!D164","v":0},{"$f":"'نموذج تعبئة فواتير السلف'!E164","v":0}]
[158,{"$f":"'نموذج تعبئة فواتير السلف'!J165","v":0},"*0*","*0*",{"$f":"'نموذج تعبئة فواتير السلف'!C165","v":0},"*0*",{"$f":"'نموذج تعبئة فواتير السلف'!D165","v":0},{"$f":"'نموذج تعبئة فواتير السلف'!E165","v":0}]
[159,{"$f":"'نموذج تعبئة فواتير السلف'!J166","v":0},"*0*","*0*",{"$f":"'نموذج تعبئة فواتير السلف'!C166","v":0},"*0*",{"$f":"'نموذج تعبئة فواتير السلف'!D166","v":0},{"$f":"'نموذج تعبئة فواتير السلف'!E166","v":0}]
[160,{"$f":"'نموذج تعبئة فواتير السلف'!J167","v":0},"*0*","*0*",{"$f":"'نموذج تعبئة فواتير السلف'!C167","v":0},"*0*",{"$f":"'نموذج تعبئة فواتير السلف'!D167","v":0},{"$f":"'نموذج تعبئة فواتير السلف'!E167","v":0}]
[161,{"$f":"'نموذج تعبئة فواتير السلف'!J168","v":0},"*0*","*0*",{"$f":"'نموذج تعبئة فواتير السلف'!C168","v":0},"*0*",{"$f":"'نموذج تعبئة فواتير السلف'!D168","v":0},{"$f":"'نموذج تعبئة فواتير السلف'!E168","v":0}]
[162,{"$f":"'نموذج تعبئة فواتير السلف'!J169","v":0},"*0*","*0*",{"$f":"'نموذج تعبئة فواتير السلف'!C169","v":0},"*0*",{"$f":"'نموذج تعبئة فواتير السلف'!D169","v":0},{"$f":"'نموذج تعبئة فواتير السلف'!E169","v":0}]
[163,{"$f":"'نموذج تعبئة فواتير السلف'!J170","v":0},"*0*","*0*",{"$f":"'نموذج تعبئة فواتير السلف'!C170","v":0},"*0*",{"$f":"'نموذج تعبئة فواتير السلف'!D170","v":0},{"$f":"'نموذج تعبئة فواتير السلف'!E170","v":0}]
[164,{"$f":"'نموذج تعبئة فواتير السلف'!J171","v":0},"*0*","*0*",{"$f":"'نموذج تعبئة فواتير السلف'!C171","v":0},"*0*",{"$f":"'نموذج تعبئة فواتير السلف'!D171","v":0},{"$f":"'نموذج تعبئة فواتير السلف'!E171","v":0}]
[165,{"$f":"'نموذج تعبئة فواتير السلف'!J172","v":0},"*0*","*0*",{"$f":"'نموذج تعبئة فواتير السلف'!C172","v":0},"*0*",{"$f":"'نموذج تعبئة فواتير السلف'!D172","v":0},{"$f":"'نموذج تعبئة فواتير السلف'!E172","v":0}]
[166,{"$f":"'نموذج تعبئة فواتير السلف'!J173","v":0},"*0*","*0*",{"$f":"'نموذج تعبئة فواتير السلف'!C173","v":0},"*0*",{"$f":"'نموذج تعبئة فواتير السلف'!D173","v":0},{"$f":"'نموذج تعبئة فواتير السلف'!E173","v":0}]
[167,{"$f":"'نموذج تعبئة فواتير السلف'!J174","v":0},"*0*","*0*",{"$f":"'نموذج تعبئة فواتير السلف'!C174","v":0},"*0*",{"$f":"'نموذج تعبئة فواتير السلف'!D174","v":0},{"$f":"'نموذج تعبئة فواتير السلف'!E174","v":0}]
[168,{"$f":"'نموذج تعبئة فواتير السلف'!J175","v":0},"*0*","*0*",{"$f":"'نموذج تعبئة فواتير السلف'!C175","v":0},"*0*",{"$f":"'نموذج تعبئة فواتير السلف'!D175","v":0},{"$f":"'نموذج تعبئة فواتير السلف'!E175","v":0}]
[169,{"$f":"'نموذج تعبئة فواتير السلف'!J176","v":0},"*0*","*0*",{"$f":"'نموذج تعبئة فواتير السلف'!C176","v":0},"*0*",{"$f":"'نموذج تعبئة فواتير السلف'!D176","v":0},{"$f":"'نموذج تعبئة فواتير السلف'!E176","v":0}]
[170,{"$f":"'نموذج تعبئة فواتير السلف'!J177","v":0},"*0*","*0*",{"$f":"'نموذج تعبئة فواتير السلف'!C177","v":0},"*0*",{"$f":"'نموذج تعبئة فواتير السلف'!D177","v":0},{"$f":"'نموذج تعبئة فواتير السلف'!E177","v":0}]
[171,{"$f":"'نموذج تعبئة فواتير السلف'!J178","v":0},"*0*","*0*",{"$f":"'نموذج تعبئة فواتير السلف'!C178","v":0},"*0*",{"$f":"'نموذج تعبئة فواتير السلف'!D178","v":0},{"$f":"'نموذج تعبئة فواتير السلف'!E178","v":0}]
[172,{"$f":"'نموذج تعبئة فواتير السلف'!J179","v":0},"*0*","*0*",{"$f":"'نموذج تعبئة فواتير السلف'!C179","v":0},"*0*",{"$f":"'نموذج تعبئة فواتير السلف'!D179","v":0},{"$f":"'نموذج تعبئة فواتير السلف'!E179","v":0}]
[173,{"$f":"'نموذج تعبئة فواتير السلف'!J180","v":0},"*0*","*0*",{"$f":"'نموذج تعبئة فواتير السلف'!C180","v":0},"*0*",{"$f":"'نموذج تعبئة فواتير السلف'!D180","v":0},{"$f":"'نموذج تعبئة فواتير السلف'!E180","v":0}]
[174,{"$f":"'نموذج تعبئة فواتير السلف'!J181","v":0},"*0*","*0*",{"$f":"'نموذج تعبئة فواتير السلف'!C181","v":0},"*0*",{"$f":"'نموذج تعبئة فواتير السلف'!D181","v":0},{"$f":"'نموذج تعبئة فواتير السلف'!E181","v":0}]
[175,{"$f":"'نموذج تعبئة فواتير السلف'!J182","v":0},"*0*","*0*",{"$f":"'نموذج تعبئة فواتير السلف'!C182","v":0},"*0*",{"$f":"'نموذج تعبئة فواتير السلف'!D182","v":0},{"$f":"'نموذج تعبئة فواتير السلف'!E182","v":0}]
[176,{"$f":"'نموذج تعبئة فواتير السلف'!J183","v":0},"*0*","*0*",{"$f":"'نموذج تعبئة فواتير السلف'!C183","v":0},"*0*",{"$f":"'نموذج تعبئة فواتير السلف'!D183","v":0},{"$f":"'نموذج تعبئة فواتير السلف'!E183","v":0}]
[177,{"$f":"'نموذج تعبئة فواتير السلف'!J184","v":0},"*0*","*0*",{"$f":"'نموذج تعبئة فواتير السلف'!C184","v":0},"*0*",{"$f":"'نموذج تعبئة فواتير السلف'!D184","v":0},{"$f":"'نموذج تعبئة فواتير السلف'!E184","v":0}]
[178,{"$f":"'نموذج تعبئة فواتير السلف'!J185","v":0},"*0*","*0*",{"$f":"'نموذج تعبئة فواتير السلف'!C185","v":0},"*0*",{"$f":"'نموذج تعبئة فواتير السلف'!D185","v":0},{"$f":"'نموذج تعبئة فواتير السلف'!E185","v":0}]
[179,{"$f":"'نموذج تعبئة فواتير السلف'!J186","v":0},"*0*","*0*",{"$f":"'نموذج تعبئة فواتير السلف'!C186","v":0},"*0*",{"$f":"'نموذج تعبئة فواتير السلف'!D186","v":0},{"$f":"'نموذج تعبئة فواتير السلف'!E186","v":0}]
[180,{"$f":"'نموذج تعبئة فواتير السلف'!J187","v":0},"*0*","*0*",{"$f":"'نموذج تعبئة فواتير السلف'!C187","v":0},"*0*",{"$f":"'نموذج تعبئة فواتير السلف'!D187","v":0},{"$f":"'نموذج تعبئة فواتير السلف'!E187","v":0}]
[181,{"$f":"'نموذج تعبئة فواتير السلف'!J188","v":0},"*0*","*0*",{"$f":"'نموذج تعبئة فواتير السلف'!C188","v":0},"*0*",{"$f":"'نموذج تعبئة فواتير السلف'!D188","v":0},{"$f":"'نموذج تعبئة فواتير السلف'!E188","v":0}]
[182,{"$f":"'نموذج تعبئة فواتير السلف'!J189","v":0},"*0*","*0*",{"$f":"'نموذج تعبئة فواتير السلف'!C189","v":0},"*0*",{"$f":"'نموذج تعبئة فواتير السلف'!D189","v":0},{"$f":"'نموذج تعبئة فواتير السلف'!E189","v":0}]
[183,{"$f":"'نموذج تعبئة فواتير السلف'!J190","v":0},"*0*","*0*",{"$f":"'نموذج تعبئة فواتير السلف'!C190","v":0},"*0*",{"$f":"'نموذج تعبئة فواتير السلف'!D190","v":0},{"$f":"'نموذج تعبئة فواتير السلف'!E190","v":0}]
[184,{"$f":"'نموذج تعبئة فواتير السلف'!J191","v":0},"*0*","*0*",{"$f":"'نموذج تعبئة فواتير السلف'!C191","v":0},"*0*",{"$f":"'نموذج تعبئة فواتير السلف'!D191","v":0},{"$f":"'نموذج تعبئة فواتير السلف'!E191","v":0}]
[185,{"$f":"'نموذج تعبئة فواتير السلف'!J192","v":0},"*0*","*0*",{"$f":"'نموذج تعبئة فواتير السلف'!C192","v":0},"*0*",{"$f":"'نموذج تعبئة فواتير السلف'!D192","v":0},{"$f":"'نموذج تعبئة فواتير السلف'!E192","v":0}]
[186,{"$f":"'نموذج تعبئة فواتير السلف'!J193","v":0},"*0*","*0*",{"$f":"'نموذج تعبئة فواتير السلف'!C193","v":0},"*0*",{"$f":"'نموذج تعبئة فواتير السلف'!D193","v":0},{"$f":"'نموذج تعبئة فواتير السلف'!E193","v":0}]
[187,{"$f":"'نموذج تعبئة فواتير السلف'!J194","v":0},"*0*","*0*",{"$f":"'نموذج تعبئة فواتير السلف'!C194","v":0},"*0*",{"$f":"'نموذج تعبئة فواتير السلف'!D194","v":0},{"$f":"'نموذج تعبئة فواتير السلف'!E194","v":0}]
[188,{"$f":"'نموذج تعبئة فواتير السلف'!J195","v":0},"*0*","*0*",{"$f":"'نموذج تعبئة فواتير السلف'!C195","v":0},"*0*",{"$f":"'نموذج تعبئة فواتير السلف'!D195","v":0},{"$f":"'نموذج تعبئة فواتير السلف'!E195","v":0}]
[189,{"$f":"'نموذج تعبئة فواتير السلف'!J196","v":0},"*0*","*0*",{"$f":"'نموذج تعبئة فواتير السلف'!C196","v":0},"*0*",{"$f":"'نموذج تعبئة فواتير السلف'!D196","v":0},{"$f":"'نموذج تعبئة فواتير السلف'!E196","v":0}]
[190,{"$f":"'نموذج تعبئة فواتير السلف'!J197","v":0},"*0*","*0*",{"$f":"'نموذج تعبئة فواتير السلف'!C197","v":0},"*0*",{"$f":"'نموذج تعبئة فواتير السلف'!D197","v":0},{"$f":"'نموذج تعبئة فواتير السلف'!E197","v":0}]
[191,{"$f":"'نموذج تعبئة فواتير السلف'!J198","v":0},"*0*","*0*",{"$f":"'نموذج تعبئة فواتير السلف'!C198","v":0},"*0*",{"$f":"'نموذج تعبئة فواتير السلف'!D198","v":0},{"$f":"'نموذج تعبئة فواتير السلف'!E198","v":0}]
[192,{"$f":"'نموذج تعبئة فواتير السلف'!J199","v":0},"*0*","*0*",{"$f":"'نموذج تعبئة فواتير السلف'!C199","v":0},"*0*",{"$f":"'نموذج تعبئة فواتير السلف'!D199","v":0},{"$f":"'نموذج تعبئة فواتير السلف'!E199","v":0}]
[193,{"$f":"'نموذج تعبئة فواتير السلف'!J200","v":0},"*0*","*0*",{"$f":"'نموذج تعبئة فواتير السلف'!C200","v":0},"*0*",{"$f":"'نموذج تعبئة فواتير السلف'!D200","v":0},{"$f":"'نموذج تعبئة فواتير السلف'!E200","v":0}]
[194,{"$f":"'نموذج تعبئة فواتير السلف'!J201","v":0},{"$f":"\"*\"&B199&\"*\"","v":"*0*"},{"$f":"\"*\"&E199&\"*\"","v":"*0*"},{"$f":"'نموذج تعبئة فواتير السلف'!C201","v":0},{"$f":"\"*\"&G199&\"*\"","v":"*0*"},{"$f":"'نموذج تعبئة فواتير السلف'!D201","v":0},{"$f":"'نموذج تعبئة فواتير السلف'!E201","v":0}]
[195,{"$f":"'نموذج تعبئة فواتير السلف'!J202","v":0},"*0*","*0*",{"$f":"'نموذج تعبئة فواتير السلف'!C202","v":0},"*0*",{"$f":"'نموذج تعبئة فواتير السلف'!D202","v":0},{"$f":"'نموذج تعبئة فواتير السلف'!E202","v":0}]
[196,{"$f":"'نموذج تعبئة فواتير السلف'!J203","v":0},"*0*","*0*",{"$f":"'نموذج تعبئة فواتير السلف'!C203","v":0},"*0*",{"$f":"'نموذج تعبئة فواتير السلف'!D203","v":0},{"$f":"'نموذج تعبئة فواتير السلف'!E203","v":0}]
[197,{"$f":"'نموذج تعبئة فواتير السلف'!J204","v":0},"*0*","*0*",{"$f":"'نموذج تعبئة فواتير السلف'!C204","v":0},"*0*",{"$f":"'نموذج تعبئة فواتير السلف'!D204","v":0},{"$f":"'نموذج تعبئة فواتير السلف'!E204","v":0}]
[198,{"$f":"'نموذج تعبئة فواتير السلف'!J205","v":0},"*0*","*0*",{"$f":"'نموذج تعبئة فواتير السلف'!C205","v":0},"*0*",{"$f":"'نموذج تعبئة فواتير السلف'!D205","v":0},{"$f":"'نموذج تعبئة فواتير السلف'!E205","v":0}]
[199,{"$f":"'نموذج تعبئة فواتير السلف'!J206","v":0},"*0*","*0*",{"$f":"'نموذج تعبئة فواتير السلف'!C206","v":0},"*0*",{"$f":"'نموذج تعبئة فواتير السلف'!D206","v":0},{"$f":"'نموذج تعبئة فواتير السلف'!E206","v":0}]
[200,{"$f":"'نموذج تعبئة فواتير السلف'!J207","v":0},"*0*","*0*",{"$f":"'نموذج تعبئة فواتير السلف'!C207","v":0},"*0*",{"$f":"'نموذج تعبئة فواتير السلف'!D207","v":0},{"$f":"'نموذج تعبئة فواتير السلف'!E207","v":0}]
[201,{"$f":"'نموذج تعبئة فواتير السلف'!J208","v":0},"*0*","*0*",{"$f":"'نموذج تعبئة فواتير السلف'!C208","v":0},"*0*",{"$f":"'نموذج تعبئة فواتير السلف'!D208","v":0},{"$f":"'نموذج تعبئة فواتير السلف'!E208","v":0}]
[202,{"$f":"'نموذج تعبئة فواتير السلف'!J209","v":0},"*0*","*0*",{"$f":"'نموذج تعبئة فواتير السلف'!C209","v":0},"*0*",{"$f":"'نموذج تعبئة فواتير السلف'!D209","v":0},{"$f":"'نموذج تعبئة فواتير السلف'!E209","v":0}]
[203,{"$f":"'نموذج تعبئة فواتير السلف'!J210","v":0},"*0*","*0*",{"$f":"'نموذج تعبئة فواتير السلف'!C210","v":0},"*0*",{"$f":"'نموذج تعبئة فواتير السلف'!D210","v":0},{"$f":"'نموذج تعبئة فواتير السلف'!E210","v":0}]
[204,{"$f":"'نموذج تعبئة فواتير السلف'!J211","v":0},"*0*","*0*",{"$f":"'نموذج تعبئة فواتير السلف'!C211","v":0},"*0*",{"$f":"'نموذج تعبئة فواتير السلف'!D211","v":0},{"$f":"'نموذج تعبئة فواتير السلف'!E211","v":0}]
[205,{"$f":"'نموذج تعبئة فواتير السلف'!J212","v":0},"*0*","*0*",{"$f":"'نموذج تعبئة فواتير السلف'!C212","v":0},"*0*",{"$f":"'نموذج تعبئة فواتير السلف'!D212","v":0},{"$f":"'نموذج تعبئة فواتير السلف'!E212","v":0}]
[206,{"$f":"'نموذج تعبئة فواتير السلف'!J213","v":0},"*0*","*0*",{"$f":"'نموذج تعبئة فواتير السلف'!C213","v":0},"*0*",{"$f":"'نموذج تعبئة فواتير السلف'!D213","v":0},{"$f":"'نموذج تعبئة فواتير السلف'!E213","v":0}]
[207,{"$f":"'نموذج تعبئة فواتير السلف'!J214","v":0},"*0*","*0*",{"$f":"'نموذج تعبئة فواتير السلف'!C214","v":0},"*0*",{"$f":"'نموذج تعبئة فواتير السلف'!D214","v":0},{"$f":"'نموذج تعبئة فواتير السلف'!E214","v":0}]
[208,{"$f":"'نموذج تعبئة فواتير السلف'!J215","v":0},"*0*","*0*",{"$f":"'نموذج تعبئة فواتير السلف'!C215","v":0},"*0*",{"$f":"'نموذج تعبئة فواتير السلف'!D215","v":0},{"$f":"'نموذج تعبئة فواتير السلف'!E215","v":0}]
[209,{"$f":"'نموذج تعبئة فواتير السلف'!J216","v":0},"*0*","*0*",{"$f":"'نموذج تعبئة فواتير السلف'!C216","v":0},"*0*",{"$f":"'نموذج تعبئة فواتير السلف'!D216","v":0},{"$f":"'نموذج تعبئة فواتير السلف'!E216","v":0}]
[210,{"$f":"'نموذج تعبئة فواتير السلف'!J217","v":0},"*0*","*0*",{"$f":"'نموذج تعبئة فواتير السلف'!C217","v":0},"*0*",{"$f":"'نموذج تعبئة فواتير السلف'!D217","v":0},{"$f":"'نموذج تعبئة فواتير السلف'!E217","v":0}]
[211,{"$f":"'نموذج تعبئة فواتير السلف'!J218","v":0},"*0*","*0*",{"$f":"'نموذج تعبئة فواتير السلف'!C218","v":0},"*0*",{"$f":"'نموذج تعبئة فواتير السلف'!D218","v":0},{"$f":"'نموذج تعبئة فواتير السلف'!E218","v":0}]
[212,{"$f":"'نموذج تعبئة فواتير السلف'!J219","v":0},"*0*","*0*",{"$f":"'نموذج تعبئة فواتير السلف'!C219","v":0},"*0*",{"$f":"'نموذج تعبئة فواتير السلف'!D219","v":0},{"$f":"'نموذج تعبئة فواتير السلف'!E219","v":0}]
[213,{"$f":"'نموذج تعبئة فواتير السلف'!J220","v":0},"*0*","*0*",{"$f":"'نموذج تعبئة فواتير السلف'!C220","v":0},"*0*",{"$f":"'نموذج تعبئة فواتير السلف'!D220","v":0},{"$f":"'نموذج تعبئة فواتير السلف'!E220","v":0}]
[214,{"$f":"'نموذج تعبئة فواتير السلف'!J221","v":0},"*0*","*0*",{"$f":"'نموذج تعبئة فواتير السلف'!C221","v":0},"*0*",{"$f":"'نموذج تعبئة فواتير السلف'!D221","v":0},{"$f":"'نموذج تعبئة فواتير السلف'!E221","v":0}]
[215,{"$f":"'نموذج تعبئة فواتير السلف'!J222","v":0},"*0*","*0*",{"$f":"'نموذج تعبئة فواتير السلف'!C222","v":0},"*0*",{"$f":"'نموذج تعبئة فواتير السلف'!D222","v":0},{"$f":"'نموذج تعبئة فواتير السلف'!E222","v":0}]
[216,{"$f":"'نموذج تعبئة فواتير السلف'!J223","v":0},"*0*","*0*",{"$f":"'نموذج تعبئة فواتير السلف'!C223","v":0},"*0*",{"$f":"'نموذج تعبئة فواتير السلف'!D223","v":0},{"$f":"'نموذج تعبئة فواتير السلف'!E223","v":0}]
[217,{"$f":"'نموذج تعبئة فواتير السلف'!J224","v":0},"*0*","*0*",{"$f":"'نموذج تعبئة فواتير السلف'!C224","v":0},"*0*",{"$f":"'نموذج تعبئة فواتير السلف'!D224","v":0},{"$f":"'نموذج تعبئة فواتير السلف'!E224","v":0}]
[218,{"$f":"'نموذج تعبئة فواتير السلف'!J225","v":0},"*0*","*0*",{"$f":"'نموذج تعبئة فواتير السلف'!C225","v":0},"*0*",{"$f":"'نموذج تعبئة فواتير السلف'!D225","v":0},{"$f":"'نموذج تعبئة فواتير السلف'!E225","v":0}]
[219,{"$f":"'نموذج تعبئة فواتير السلف'!J226","v":0},"*0*","*0*",{"$f":"'نموذج تعبئة فواتير السلف'!C226","v":0},"*0*",{"$f":"'نموذج تعبئة فواتير السلف'!D226","v":0},{"$f":"'نموذج تعبئة فواتير السلف'!E226","v":0}]
[220,{"$f":"'نموذج تعبئة فواتير السلف'!J227","v":0},"*0*","*0*",{"$f":"'نموذج تعبئة فواتير السلف'!C227","v":0},"*0*",{"$f":"'نموذج تعبئة فواتير السلف'!D227","v":0},{"$f":"'نموذج تعبئة فواتير السلف'!E227","v":0}]
[221,{"$f":"'نموذج تعبئة فواتير السلف'!J228","v":0},"*0*","*0*",{"$f":"'نموذج تعبئة فواتير السلف'!C228","v":0},"*0*",{"$f":"'نموذج تعبئة فواتير السلف'!D228","v":0},{"$f":"'نموذج تعبئة فواتير السلف'!E228","v":0}]
[222,{"$f":"'نموذج تعبئة فواتير السلف'!J229","v":0},"*0*","*0*",{"$f":"'نموذج تعبئة فواتير السلف'!C229","v":0},"*0*",{"$f":"'نموذج تعبئة فواتير السلف'!D229","v":0},{"$f":"'نموذج تعبئة فواتير السلف'!E229","v":0}]
[223,{"$f":"'نموذج تعبئة فواتير السلف'!J230","v":0},"*0*","*0*",{"$f":"'نموذج تعبئة فواتير السلف'!C230","v":0},"*0*",{"$f":"'نموذج تعبئة فواتير السلف'!D230","v":0},{"$f":"'نموذج تعبئة فواتير السلف'!E230","v":0}]
[224,{"$f":"'نموذج تعبئة فواتير السلف'!J231","v":0},"*0*","*0*",{"$f":"'نموذج تعبئة فواتير السلف'!C231","v":0},"*0*",{"$f":"'نموذج تعبئة فواتير السلف'!D231","v":0},{"$f":"'نموذج تعبئة فواتير السلف'!E231","v":0}]
[225,{"$f":"'نموذج تعبئة فواتير السلف'!J232","v":0},"*0*","*0*",{"$f":"'نموذج تعبئة فواتير السلف'!C232","v":0},"*0*",{"$f":"'نموذج تعبئة فواتير السلف'!D232","v":0},{"$f":"'نموذج تعبئة فواتير السلف'!E232","v":0}]
[226,{"$f":"'نموذج تعبئة فواتير السلف'!J233","v":0},"*0*","*0*",{"$f":"'نموذج تعبئة فواتير السلف'!C233","v":0},"*0*",{"$f":"'نموذج تعبئة فواتير السلف'!D233","v":0},{"$f":"'نموذج تعبئة فواتير السلف'!E233","v":0}]
[227,{"$f":"'نموذج تعبئة فواتير السلف'!J234","v":0},"*0*","*0*",{"$f":"'نموذج تعبئة فواتير السلف'!C234","v":0},"*0*",{"$f":"'نموذج تعبئة فواتير السلف'!D234","v":0},{"$f":"'نموذج تعبئة فواتير السلف'!E234","v":0}]
[228,{"$f":"'نموذج تعبئة فواتير السلف'!J235","v":0},"*0*","*0*",{"$f":"'نموذج تعبئة فواتير السلف'!C235","v":0},"*0*",{"$f":"'نموذج تعبئة فواتير السلف'!D235","v":0},{"$f":"'نموذج تعبئة فواتير السلف'!E235","v":0}]
[229,{"$f":"'نموذج تعبئة فواتير السلف'!J236","v":0},"*0*","*0*",{"$f":"'نموذج تعبئة فواتير السلف'!C236","v":0},"*0*",{"$f":"'نموذج تعبئة فواتير السلف'!D236","v":0},{"$f":"'نموذج تعبئة فواتير السلف'!E236","v":0}]
[230,{"$f":"'نموذج تعبئة فواتير السلف'!J237","v":0},"*0*","*0*",{"$f":"'نموذج تعبئة فواتير السلف'!C237","v":0},"*0*",{"$f":"'نموذج تعبئة فواتير السلف'!D237","v":0},{"$f":"'نموذج تعبئة فواتير السلف'!E237","v":0}]
[231,{"$f":"'نموذج تعبئة فواتير السلف'!J238","v":0},"*0*","*0*",{"$f":"'نموذج تعبئة فواتير السلف'!C238","v":0},"*0*",{"$f":"'نموذج تعبئة فواتير السلف'!D238","v":0},{"$f":"'نموذج تعبئة فواتير السلف'!E238","v":0}]
[232,{"$f":"'نموذج تعبئة فواتير السلف'!J239","v":0},"*0*","*0*",{"$f":"'نموذج تعبئة فواتير السلف'!C239","v":0},"*0*",{"$f":"'نموذج تعبئة فواتير السلف'!D239","v":0},{"$f":"'نموذج تعبئة فواتير السلف'!E239","v":0}]
[233,{"$f":"'نموذج تعبئة فواتير السلف'!J240","v":0},"*0*","*0*",{"$f":"'نموذج تعبئة فواتير السلف'!C240","v":0},"*0*",{"$f":"'نموذج تعبئة فواتير السلف'!D240","v":0},{"$f":"'نموذج تعبئة فواتير السلف'!E240","v":0}]
[234,{"$f":"'نموذج تعبئة فواتير السلف'!J241","v":0},"*0*","*0*",{"$f":"'نموذج تعبئة فواتير السلف'!C241","v":0},"*0*",{"$f":"'نموذج تعبئة فواتير السلف'!D241","v":0},{"$f":"'نموذج تعبئة فواتير السلف'!E241","v":0}]
[235,{"$f":"'نموذج تعبئة فواتير السلف'!J242","v":0},"*0*","*0*",{"$f":"'نموذج تعبئة فواتير السلف'!C242","v":0},"*0*",{"$f":"'نموذج تعبئة فواتير السلف'!D242","v":0},{"$f":"'نموذج تعبئة فواتير السلف'!E242","v":0}]
[236,{"$f":"'نموذج تعبئة فواتير السلف'!J243","v":0},"*0*","*0*",{"$f":"'نموذج تعبئة فواتير السلف'!C243","v":0},"*0*",{"$f":"'نموذج تعبئة فواتير السلف'!D243","v":0},{"$f":"'نموذج تعبئة فواتير السلف'!E243","v":0}]
[237,{"$f":"'نموذج تعبئة فواتير السلف'!J244","v":0},"*0*","*0*",{"$f":"'نموذج تعبئة فواتير السلف'!C244","v":0},"*0*",{"$f":"'نموذج تعبئة فواتير السلف'!D244","v":0},{"$f":"'نموذج تعبئة فواتير السلف'!E244","v":0}]
[238,{"$f":"'نموذج تعبئة فواتير السلف'!J245","v":0},"*0*","*0*",{"$f":"'نموذج تعبئة فواتير السلف'!C245","v":0},"*0*",{"$f":"'نموذج تعبئة فواتير السلف'!D245","v":0},{"$f":"'نموذج تعبئة فواتير السلف'!E245","v":0}]
[239,{"$f":"'نموذج تعبئة فواتير السلف'!J246","v":0},"*0*","*0*",{"$f":"'نموذج تعبئة فواتير السلف'!C246","v":0},"*0*",{"$f":"'نموذج تعبئة فواتير السلف'!D246","v":0},{"$f":"'نموذج تعبئة فواتير السلف'!E246","v":0}]
[240,{"$f":"'نموذج تعبئة فواتير السلف'!J247","v":0},"*0*","*0*",{"$f":"'نموذج تعبئة فواتير السلف'!C247","v":0},"*0*",{"$f":"'نموذج تعبئة فواتير السلف'!D247","v":0},{"$f":"'نموذج تعبئة فواتير السلف'!E247","v":0}]
[241,{"$f":"'نموذج تعبئة فواتير السلف'!J248","v":0},"*0*","*0*",{"$f":"'نموذج تعبئة فواتير السلف'!C248","v":0},"*0*",{"$f":"'نموذج تعبئة فواتير السلف'!D248","v":0},{"$f":"'نموذج تعبئة فواتير السلف'!E248","v":0}]
[242,{"$f":"'نموذج تعبئة فواتير السلف'!J249","v":0},"*0*","*0*",{"$f":"'نموذج تعبئة فواتير السلف'!C249","v":0},"*0*",{"$f":"'نموذج تعبئة فواتير السلف'!D249","v":0},{"$f":"'نموذج تعبئة فواتير السلف'!E249","v":0}]
[243,{"$f":"'نموذج تعبئة فواتير السلف'!J250","v":0},"*0*","*0*",{"$f":"'نموذج تعبئة فواتير السلف'!C250","v":0},"*0*",{"$f":"'نموذج تعبئة فواتير السلف'!D250","v":0},{"$f":"'نموذج تعبئة فواتير السلف'!E250","v":0}]
[244,{"$f":"'نموذج تعبئة فواتير السلف'!J251","v":0},"*0*","*0*",{"$f":"'نموذج تعبئة فواتير السلف'!C251","v":0},"*0*",{"$f":"'نموذج تعبئة فواتير السلف'!D251","v":0},{"$f":"'نموذج تعبئة فواتير السلف'!E251","v":0}]
[245,{"$f":"'نموذج تعبئة فواتير السلف'!J252","v":0},"*0*","*0*",{"$f":"'نموذج تعبئة فواتير السلف'!C252","v":0},"*0*",{"$f":"'نموذج تعبئة فواتير السلف'!D252","v":0},{"$f":"'نموذج تعبئة فواتير السلف'!E252","v":0}]
[246,{"$f":"'نموذج تعبئة فواتير السلف'!J253","v":0},"*0*","*0*",{"$f":"'نموذج تعبئة فواتير السلف'!C253","v":0},"*0*",{"$f":"'نموذج تعبئة فواتير السلف'!D253","v":0},{"$f":"'نموذج تعبئة فواتير السلف'!E253","v":0}]
[247,{"$f":"'نموذج تعبئة فواتير السلف'!J254","v":0},"*0*","*0*",{"$f":"'نموذج تعبئة فواتير السلف'!C254","v":0},"*0*",{"$f":"'نموذج تعبئة فواتير السلف'!D254","v":0},{"$f":"'نموذج تعبئة فواتير السلف'!E254","v":0}]
[248,{"$f":"'نموذج تعبئة فواتير السلف'!J255","v":0},"*0*","*0*",{"$f":"'نموذج تعبئة فواتير السلف'!C255","v":0},"*0*",{"$f":"'نموذج تعبئة فواتير السلف'!D255","v":0},{"$f":"'نموذج تعبئة فواتير السلف'!E255","v":0}]
[249,{"$f":"'نموذج تعبئة فواتير السلف'!J256","v":0},"*0*","*0*",{"$f":"'نموذج تعبئة فواتير السلف'!C256","v":0},"*0*",{"$f":"'نموذج تعبئة فواتير السلف'!D256","v":0},{"$f":"'نموذج تعبئة فواتير السلف'!E256","v":0}]
[250,{"$f":"'نموذج تعبئة فواتير السلف'!J257","v":0},"*0*","*0*",{"$f":"'نموذج تعبئة فواتير السلف'!C257","v":0},"*0*",{"$f":"'نموذج تعبئة فواتير السلف'!D257","v":0},{"$f":"'نموذج تعبئة فواتير السلف'!E257","v":0}]
[251,{"$f":"'نموذج تعبئة فواتير السلف'!J258","v":0},"*0*","*0*",{"$f":"'نموذج تعبئة فواتير السلف'!C258","v":0},"*0*",{"$f":"'نموذج تعبئة فواتير السلف'!D258","v":0},{"$f":"'نموذج تعبئة فواتير السلف'!E258","v":0}]
[252,{"$f":"'نموذج تعبئة فواتير السلف'!J259","v":0},"*0*","*0*",{"$f":"'نموذج تعبئة فواتير السلف'!C259","v":0},"*0*",{"$f":"'نموذج تعبئة فواتير السلف'!D259","v":0},{"$f":"'نموذج تعبئة فواتير السلف'!E259","v":0}]
[253,{"$f":"'نموذج تعبئة فواتير السلف'!J260","v":0},"*0*","*0*",{"$f":"'نموذج تعبئة فواتير السلف'!C260","v":0},"*0*",{"$f":"'نموذج تعبئة فواتير السلف'!D260","v":0},{"$f":"'نموذج تعبئة فواتير السلف'!E260","v":0}]
[254,{"$f":"'نموذج تعبئة فواتير السلف'!J261","v":0},"*0*","*0*",{"$f":"'نموذج تعبئة فواتير السلف'!C261","v":0},"*0*",{"$f":"'نموذج تعبئة فواتير السلف'!D261","v":0},{"$f":"'نموذج تعبئة فواتير السلف'!E261","v":0}]
[255,{"$f":"'نموذج تعبئة فواتير السلف'!J262","v":0},"*0*","*0*",{"$f":"'نموذج تعبئة فواتير السلف'!C262","v":0},"*0*",{"$f":"'نموذج تعبئة فواتير السلف'!D262","v":0},{"$f":"'نموذج تعبئة فواتير السلف'!E262","v":0}]
[256,{"$f":"'نموذج تعبئة فواتير السلف'!J263","v":0},"*0*","*0*",{"$f":"'نموذج تعبئة فواتير السلف'!C263","v":0},"*0*",{"$f":"'نموذج تعبئة فواتير السلف'!D263","v":0},{"$f":"'نموذج تعبئة فواتير السلف'!E263","v":0}]
[257,{"$f":"'نموذج تعبئة فواتير السلف'!J264","v":0},"*0*","*0*",{"$f":"'نموذج تعبئة فواتير السلف'!C264","v":0},"*0*",{"$f":"'نموذج تعبئة فواتير السلف'!D264","v":0},{"$f":"'نموذج تعبئة فواتير السلف'!E264","v":0}]
[258,{"$f":"'نموذج تعبئة فواتير السلف'!J265","v":0},{"$f":"\"*\"&B263&\"*\"","v":"*0*"},{"$f":"\"*\"&E263&\"*\"","v":"*0*"},{"$f":"'نموذج تعبئة فواتير السلف'!C265","v":0},{"$f":"\"*\"&G263&\"*\"","v":"*0*"},{"$f":"'نموذج تعبئة فواتير السلف'!D265","v":0},{"$f":"'نموذج تعبئة فواتير السلف'!E265","v":0}]
[259,{"$f":"'نموذج تعبئة فواتير السلف'!J266","v":0},"*0*","*0*",{"$f":"'نموذج تعبئة فواتير السلف'!C266","v":0},"*0*",{"$f":"'نموذج تعبئة فواتير السلف'!D266","v":0},{"$f":"'نموذج تعبئة فواتير السلف'!E266","v":0}]
[260,{"$f":"'نموذج تعبئة فواتير السلف'!J267","v":0},"*0*","*0*",{"$f":"'نموذج تعبئة فواتير السلف'!C267","v":0},"*0*",{"$f":"'نموذج تعبئة فواتير السلف'!D267","v":0},{"$f":"'نموذج تعبئة فواتير السلف'!E267","v":0}]
[261,{"$f":"'نموذج تعبئة فواتير السلف'!J268","v":0},"*0*","*0*",{"$f":"'نموذج تعبئة فواتير السلف'!C268","v":0},"*0*",{"$f":"'نموذج تعبئة فواتير السلف'!D268","v":0},{"$f":"'نموذج تعبئة فواتير السلف'!E268","v":0}]
[262,{"$f":"'نموذج تعبئة فواتير السلف'!J269","v":0},"*0*","*0*",{"$f":"'نموذج تعبئة فواتير السلف'!C269","v":0},"*0*",{"$f":"'نموذج تعبئة فواتير السلف'!D269","v":0},{"$f":"'نموذج تعبئة فواتير السلف'!E269","v":0}]
[263,{"$f":"'نموذج تعبئة فواتير السلف'!J270","v":0},"*0*","*0*",{"$f":"'نموذج تعبئة فواتير السلف'!C270","v":0},"*0*",{"$f":"'نموذج تعبئة فواتير السلف'!D270","v":0},{"$f":"'نموذج تعبئة فواتير السلف'!E270","v":0}]
[264,{"$f":"'نموذج تعبئة فواتير السلف'!J271","v":0},"*0*","*0*",{"$f":"'نموذج تعبئة فواتير السلف'!C271","v":0},"*0*",{"$f":"'نموذج تعبئة فواتير السلف'!D271","v":0},{"$f":"'نموذج تعبئة فواتير السلف'!E271","v":0}]
[265,{"$f":"'نموذج تعبئة فواتير السلف'!J272","v":0},"*0*","*0*",{"$f":"'نموذج تعبئة فواتير السلف'!C272","v":0},"*0*",{"$f":"'نموذج تعبئة فواتير السلف'!D272","v":0},{"$f":"'نموذج تعبئة فواتير السلف'!E272","v":0}]
[266,{"$f":"'نموذج تعبئة فواتير السلف'!J273","v":0},"*0*","*0*",{"$f":"'نموذج تعبئة فواتير السلف'!C273","v":0},"*0*",{"$f":"'نموذج تعبئة فواتير السلف'!D273","v":0},{"$f":"'نموذج تعبئة فواتير السلف'!E273","v":0}]
[267,{"$f":"'نموذج تعبئة فواتير السلف'!J274","v":0},"*0*","*0*",{"$f":"'نموذج تعبئة فواتير السلف'!C274","v":0},"*0*",{"$f":"'نموذج تعبئة فواتير السلف'!D274","v":0},{"$f":"'نموذج تعبئة فواتير السلف'!E274","v":0}]
[268,{"$f":"'نموذج تعبئة فواتير السلف'!J275","v":0},"*0*","*0*",{"$f":"'نموذج تعبئة فواتير السلف'!C275","v":0},"*0*",{"$f":"'نموذج تعبئة فواتير السلف'!D275","v":0},{"$f":"'نموذج تعبئة فواتير السلف'!E275","v":0}]
[269,{"$f":"'نموذج تعبئة فواتير السلف'!J276","v":0},"*0*","*0*",{"$f":"'نموذج تعبئة فواتير السلف'!C276","v":0},"*0*",{"$f":"'نموذج تعبئة فواتير السلف'!D276","v":0},{"$f":"'نموذج تعبئة فواتير السلف'!E276","v":0}]
[270,{"$f":"'نموذج تعبئة فواتير السلف'!J277","v":0},"*0*","*0*",{"$f":"'نموذج تعبئة فواتير السلف'!C277","v":0},"*0*",{"$f":"'نموذج تعبئة فواتير السلف'!D277","v":0},{"$f":"'نموذج تعبئة فواتير السلف'!E277","v":0}]
[271,{"$f":"'نموذج تعبئة فواتير السلف'!J278","v":0},"*0*","*0*",{"$f":"'نموذج تعبئة فواتير السلف'!C278","v":0},"*0*",{"$f":"'نموذج تعبئة فواتير السلف'!D278","v":0},{"$f":"'نموذج تعبئة فواتير السلف'!E278","v":0}]
[272,{"$f":"'نموذج تعبئة فواتير السلف'!J279","v":0},"*0*","*0*",{"$f":"'نموذج تعبئة فواتير السلف'!C279","v":0},"*0*",{"$f":"'نموذج تعبئة فواتير السلف'!D279","v":0},{"$f":"'نموذج تعبئة فواتير السلف'!E279","v":0}]
[273,{"$f":"'نموذج تعبئة فواتير السلف'!J280","v":0},"*0*","*0*",{"$f":"'نموذج تعبئة فواتير السلف'!C280","v":0},"*0*",{"$f":"'نموذج تعبئة فواتير السلف'!D280","v":0},{"$f":"'نموذج تعبئة فواتير السلف'!E280","v":0}]
[274,{"$f":"'نموذج تعبئة فواتير السلف'!J281","v":0},"*0*","*0*",{"$f":"'نموذج تعبئة فواتير السلف'!C281","v":0},"*0*",{"$f":"'نموذج تعبئة فواتير السلف'!D281","v":0},{"$f":"'نموذج تعبئة فواتير السلف'!E281","v":0}]
[275,{"$f":"'نموذج تعبئة فواتير السلف'!J282","v":0},"*0*","*0*",{"$f":"'نموذج تعبئة فواتير السلف'!C282","v":0},"*0*",{"$f":"'نموذج تعبئة فواتير السلف'!D282","v":0},{"$f":"'نموذج تعبئة فواتير السلف'!E282","v":0}]
[276,{"$f":"'نموذج تعبئة فواتير السلف'!J283","v":0},"*0*","*0*",{"$f":"'نموذج تعبئة فواتير السلف'!C283","v":0},"*0*",{"$f":"'نموذج تعبئة فواتير السلف'!D283","v":0},{"$f":"'نموذج تعبئة فواتير السلف'!E283","v":0}]
[277,{"$f":"'نموذج تعبئة فواتير السلف'!J284","v":0},"*0*","*0*",{"$f":"'نموذج تعبئة فواتير السلف'!C284","v":0},"*0*",{"$f":"'نموذج تعبئة فواتير السلف'!D284","v":0},{"$f":"'نموذج تعبئة فواتير السلف'!E284","v":0}]
[278,{"$f":"'نموذج تعبئة فواتير السلف'!J285","v":0},"*0*","*0*",{"$f":"'نموذج تعبئة فواتير السلف'!C285","v":0},"*0*",{"$f":"'نموذج تعبئة فواتير السلف'!D285","v":0},{"$f":"'نموذج تعبئة فواتير السلف'!E285","v":0}]
[279,{"$f":"'نموذج تعبئة فواتير السلف'!J286","v":0},"*0*","*0*",{"$f":"'نموذج تعبئة فواتير السلف'!C286","v":0},"*0*",{"$f":"'نموذج تعبئة فواتير السلف'!D286","v":0},{"$f":"'نموذج تعبئة فواتير السلف'!E286","v":0}]
[280,{"$f":"'نموذج تعبئة فواتير السلف'!J287","v":0},"*0*","*0*",{"$f":"'نموذج تعبئة فواتير السلف'!C287","v":0},"*0*",{"$f":"'نموذج تعبئة فواتير السلف'!D287","v":0},{"$f":"'نموذج تعبئة فواتير السلف'!E287","v":0}]
[281,{"$f":"'نموذج تعبئة فواتير السلف'!J288","v":0},"*0*","*0*",{"$f":"'نموذج تعبئة فواتير السلف'!C288","v":0},"*0*",{"$f":"'نموذج تعبئة فواتير السلف'!D288","v":0},{"$f":"'نموذج تعبئة فواتير السلف'!E288","v":0}]
[282,{"$f":"'نموذج تعبئة فواتير السلف'!J289","v":0},"*0*","*0*",{"$f":"'نموذج تعبئة فواتير السلف'!C289","v":0},"*0*",{"$f":"'نموذج تعبئة فواتير السلف'!D289","v":0},{"$f":"'نموذج تعبئة فواتير السلف'!E289","v":0}]
[283,{"$f":"'نموذج تعبئة فواتير السلف'!J290","v":0},"*0*","*0*",{"$f":"'نموذج تعبئة فواتير السلف'!C290","v":0},"*0*",{"$f":"'نموذج تعبئة فواتير السلف'!D290","v":0},{"$f":"'نموذج تعبئة فواتير السلف'!E290","v":0}]
[284,{"$f":"'نموذج تعبئة فواتير السلف'!J291","v":0},"*0*","*0*",{"$f":"'نموذج تعبئة فواتير السلف'!C291","v":0},"*0*",{"$f":"'نموذج تعبئة فواتير السلف'!D291","v":0},{"$f":"'نموذج تعبئة فواتير السلف'!E291","v":0}]
[285,{"$f":"'نموذج تعبئة فواتير السلف'!J292","v":0},"*0*","*0*",{"$f":"'نموذج تعبئة فواتير السلف'!C292","v":0},"*0*",{"$f":"'نموذج تعبئة فواتير السلف'!D292","v":0},{"$f":"'نموذج تعبئة فواتير السلف'!E292","v":0}]
[286,{"$f":"'نموذج تعبئة فواتير السلف'!J293","v":0},"*0*","*0*",{"$f":"'نموذج تعبئة فواتير السلف'!C293","v":0},"*0*",{"$f":"'نموذج تعبئة فواتير السلف'!D293","v":0},{"$f":"'نموذج تعبئة فواتير السلف'!E293","v":0}]
[287,{"$f":"'نموذج تعبئة فواتير السلف'!J294","v":0},"*0*","*0*",{"$f":"'نموذج تعبئة فواتير السلف'!C294","v":0},"*0*",{"$f":"'نموذج تعبئة فواتير السلف'!D294","v":0},{"$f":"'نموذج تعبئة فواتير السلف'!E294","v":0}]
[288,{"$f":"'نموذج تعبئة فواتير السلف'!J295","v":0},"*0*","*0*",{"$f":"'نموذج تعبئة فواتير السلف'!C295","v":0},"*0*",{"$f":"'نموذج تعبئة فواتير السلف'!D295","v":0},{"$f":"'نموذج تعبئة فواتير السلف'!E295","v":0}]
[289,{"$f":"'نموذج تعبئة فواتير السلف'!J296","v":0},"*0*","*0*",{"$f":"'نموذج تعبئة فواتير السلف'!C296","v":0},"*0*",{"$f":"'نموذج تعبئة فواتير السلف'!D296","v":0},{"$f":"'نموذج تعبئة فواتير السلف'!E296","v":0}]
[290,{"$f":"'نموذج تعبئة فواتير السلف'!J297","v":0},"*0*","*0*",{"$f":"'نموذج تعبئة فواتير السلف'!C297","v":0},"*0*",{"$f":"'نموذج تعبئة فواتير السلف'!D297","v":0},{"$f":"'نموذج تعبئة فواتير السلف'!E297","v":0}]
[291,{"$f":"'نموذج تعبئة فواتير السلف'!J298","v":0},"*0*","*0*",{"$f":"'نموذج تعبئة فواتير السلف'!C298","v":0},"*0*",{"$f":"'نموذج تعبئة فواتير السلف'!D298","v":0},{"$f":"'نموذج تعبئة فواتير السلف'!E298","v":0}]
[292,{"$f":"'نموذج تعبئة فواتير السلف'!J299","v":0},"*0*","*0*",{"$f":"'نموذج تعبئة فواتير السلف'!C299","v":0},"*0*",{"$f":"'نموذج تعبئة فواتير السلف'!D299","v":0},{"$f":"'نموذج تعبئة فواتير السلف'!E299","v":0}]
[293,{"$f":"'نموذج تعبئة فواتير السلف'!J300","v":0},"*0*","*0*",{"$f":"'نموذج تعبئة فواتير السلف'!C300","v":0},"*0*",{"$f":"'نموذج تعبئة فواتير السلف'!D300","v":0},{"$f":"'نموذج تعبئة فواتير السلف'!E300","v":0}]
[294,{"$f":"'نموذج تعبئة فواتير السلف'!J301","v":0},"*0*","*0*",{"$f":"'نموذج تعبئة فواتير السلف'!C301","v":0},"*0*",{"$f":"'نموذج تعبئة فواتير السلف'!D301","v":0},{"$f":"'نموذج تعبئة فواتير السلف'!E301","v":0}]
[295,{"$f":"'نموذج تعبئة فواتير السلف'!J302","v":0},"*0*","*0*",{"$f":"'نموذج تعبئة فواتير السلف'!C302","v":0},"*0*",{"$f":"'نموذج تعبئة فواتير السلف'!D302","v":0},{"$f":"'نموذج تعبئة فواتير السلف'!E302","v":0}]
[296,{"$f":"'نموذج تعبئة فواتير السلف'!J303","v":0},"*0*","*0*",{"$f":"'نموذج تعبئة فواتير السلف'!C303","v":0},"*0*",{"$f":"'نموذج تعبئة فواتير السلف'!D303","v":0},{"$f":"'نموذج تعبئة فواتير السلف'!E303","v":0}]
[297,{"$f":"'نموذج تعبئة فواتير السلف'!J304","v":0},"*0*","*0*",{"$f":"'نموذج تعبئة فواتير السلف'!C304","v":0},"*0*",{"$f":"'نموذج تعبئة فواتير السلف'!D304","v":0},{"$f":"'نموذج تعبئة فواتير السلف'!E304","v":0}]
[298,{"$f":"'نموذج تعبئة فواتير السلف'!J305","v":0},"*0*","*0*",{"$f":"'نموذج تعبئة فواتير السلف'!C305","v":0},"*0*",{"$f":"'نموذج تعبئة فواتير السلف'!D305","v":0},{"$f":"'نموذج تعبئة فواتير السلف'!E305","v":0}]
[299,{"$f":"'نموذج تعبئة فواتير السلف'!J306","v":0},"*0*","*0*",{"$f":"'نموذج تعبئة فواتير السلف'!C306","v":0},"*0*",{"$f":"'نموذج تعبئة فواتير السلف'!D306","v":0},{"$f":"'نموذج تعبئة فواتير السلف'!E306","v":0}]
[300,{"$f":"'نموذج تعبئة فواتير السلف'!J307","v":0},"*0*","*0*",{"$f":"'نموذج تعبئة فواتير السلف'!C307","v":0},"*0*",{"$f":"'نموذج تعبئة فواتير السلف'!D307","v":0},{"$f":"'نموذج تعبئة فواتير السلف'!E307","v":0}]
[301,{"$f":"'نموذج تعبئة فواتير السلف'!J308","v":0},"*0*","*0*",{"$f":"'نموذج تعبئة فواتير السلف'!C308","v":0},"*0*",{"$f":"'نموذج تعبئة فواتير السلف'!D308","v":0},{"$f":"'نموذج تعبئة فواتير السلف'!E308","v":0}]
[302,{"$f":"'نموذج تعبئة فواتير السلف'!J309","v":0},"*0*","*0*",{"$f":"'نموذج تعبئة فواتير السلف'!C309","v":0},"*0*",{"$f":"'نموذج تعبئة فواتير السلف'!D309","v":0},{"$f":"'نموذج تعبئة فواتير السلف'!E309","v":0}]
[303,{"$f":"'نموذج تعبئة فواتير السلف'!J310","v":0},"*0*","*0*",{"$f":"'نموذج تعبئة فواتير السلف'!C310","v":0},"*0*",{"$f":"'نموذج تعبئة فواتير السلف'!D310","v":0},{"$f":"'نموذج تعبئة فواتير السلف'!E310","v":0}]
[304,{"$f":"'نموذج تعبئة فواتير السلف'!J311","v":0},"*0*","*0*",{"$f":"'نموذج تعبئة فواتير السلف'!C311","v":0},"*0*",{"$f":"'نموذج تعبئة فواتير السلف'!D311","v":0},{"$f":"'نموذج تعبئة فواتير السلف'!E311","v":0}]
[305,{"$f":"'نموذج تعبئة فواتير السلف'!J312","v":0},"*0*","*0*",{"$f":"'نموذج تعبئة فواتير السلف'!C312","v":0},"*0*",{"$f":"'نموذج تعبئة فواتير السلف'!D312","v":0},{"$f":"'نموذج تعبئة فواتير السلف'!E312","v":0}]
[306,{"$f":"'نموذج تعبئة فواتير السلف'!J313","v":0},"*0*","*0*",{"$f":"'نموذج تعبئة فواتير السلف'!C313","v":0},"*0*",{"$f":"'نموذج تعبئة فواتير السلف'!D313","v":0},{"$f":"'نموذج تعبئة فواتير السلف'!E313","v":0}]
[307,{"$f":"'نموذج تعبئة فواتير السلف'!J314","v":0},"*0*","*0*",{"$f":"'نموذج تعبئة فواتير السلف'!C314","v":0},"*0*",{"$f":"'نموذج تعبئة فواتير السلف'!D314","v":0},{"$f":"'نموذج تعبئة فواتير السلف'!E314","v":0}]
[308,{"$f":"'نموذج تعبئة فواتير السلف'!J315","v":0},"*0*","*0*",{"$f":"'نموذج تعبئة فواتير السلف'!C315","v":0},"*0*",{"$f":"'نموذج تعبئة فواتير السلف'!D315","v":0},{"$f":"'نموذج تعبئة فواتير السلف'!E315","v":0}]
[309,{"$f":"'نموذج تعبئة فواتير السلف'!J316","v":0},"*0*","*0*",{"$f":"'نموذج تعبئة فواتير السلف'!C316","v":0},"*0*",{"$f":"'نموذج تعبئة فواتير السلف'!D316","v":0},{"$f":"'نموذج تعبئة فواتير السلف'!E316","v":0}]
[310,{"$f":"'نموذج تعبئة فواتير السلف'!J317","v":0},"*0*","*0*",{"$f":"'نموذج تعبئة فواتير السلف'!C317","v":0},"*0*",{"$f":"'نموذج تعبئة فواتير السلف'!D317","v":0},{"$f":"'نموذج تعبئة فواتير السلف'!E317","v":0}]
[311,{"$f":"'نموذج تعبئة فواتير السلف'!J318","v":0},"*0*","*0*",{"$f":"'نموذج تعبئة فواتير السلف'!C318","v":0},"*0*",{"$f":"'نموذج تعبئة فواتير السلف'!D318","v":0},{"$f":"'نموذج تعبئة فواتير السلف'!E318","v":0}]
[312,{"$f":"'نموذج تعبئة فواتير السلف'!J319","v":0},"*0*","*0*",{"$f":"'نموذج تعبئة فواتير السلف'!C319","v":0},"*0*",{"$f":"'نموذج تعبئة فواتير السلف'!D319","v":0},{"$f":"'نموذج تعبئة فواتير السلف'!E319","v":0}]
[313,{"$f":"'نموذج تعبئة فواتير السلف'!J320","v":0},"*0*","*0*",{"$f":"'نموذج تعبئة فواتير السلف'!C320","v":0},"*0*",{"$f":"'نموذج تعبئة فواتير السلف'!D320","v":0},{"$f":"'نموذج تعبئة فواتير السلف'!E320","v":0}]
[314,{"$f":"'نموذج تعبئة فواتير السلف'!J321","v":0},"*0*","*0*",{"$f":"'نموذج تعبئة فواتير السلف'!C321","v":0},"*0*",{"$f":"'نموذج تعبئة فواتير السلف'!D321","v":0},{"$f":"'نموذج تعبئة فواتير السلف'!E321","v":0}]
[315,{"$f":"'نموذج تعبئة فواتير السلف'!J322","v":0},"*0*","*0*",{"$f":"'نموذج تعبئة فواتير السلف'!C322","v":0},"*0*",{"$f":"'نموذج تعبئة فواتير السلف'!D322","v":0},{"$f":"'نموذج تعبئة فواتير السلف'!E322","v":0}]
[316,{"$f":"'نموذج تعبئة فواتير السلف'!J323","v":0},"*0*","*0*",{"$f":"'نموذج تعبئة فواتير السلف'!C323","v":0},"*0*",{"$f":"'نموذج تعبئة فواتير السلف'!D323","v":0},{"$f":"'نموذج تعبئة فواتير السلف'!E323","v":0}]
[317,{"$f":"'نموذج تعبئة فواتير السلف'!J324","v":0},"*0*","*0*",{"$f":"'نموذج تعبئة فواتير السلف'!C324","v":0},"*0*",{"$f":"'نموذج تعبئة فواتير السلف'!D324","v":0},{"$f":"'نموذج تعبئة فواتير السلف'!E324","v":0}]
[318,{"$f":"'نموذج تعبئة فواتير السلف'!J325","v":0},"*0*","*0*",{"$f":"'نموذج تعبئة فواتير السلف'!C325","v":0},"*0*",{"$f":"'نموذج تعبئة فواتير السلف'!D325","v":0},{"$f":"'نموذج تعبئة فواتير السلف'!E325","v":0}]
[319,{"$f":"'نموذج تعبئة فواتير السلف'!J326","v":0},"*0*","*0*",{"$f":"'نموذج تعبئة فواتير السلف'!C326","v":0},"*0*",{"$f":"'نموذج تعبئة فواتير السلف'!D326","v":0},{"$f":"'نموذج تعبئة فواتير السلف'!E326","v":0}]
[320,{"$f":"'نموذج تعبئة فواتير السلف'!J327","v":0},"*0*","*0*",{"$f":"'نموذج تعبئة فواتير السلف'!C327","v":0},"*0*",{"$f":"'نموذج تعبئة فواتير السلف'!D327","v":0},{"$f":"'نموذج تعبئة فواتير السلف'!E327","v":0}]
[321,{"$f":"'نموذج تعبئة فواتير السلف'!J328","v":0},"*0*","*0*",{"$f":"'نموذج تعبئة فواتير السلف'!C328","v":0},"*0*",{"$f":"'نموذج تعبئة فواتير السلف'!D328","v":0},{"$f":"'نموذج تعبئة فواتير السلف'!E328","v":0}]
[322,{"$f":"'نموذج تعبئة فواتير السلف'!J329","v":0},{"$f":"\"*\"&B327&\"*\"","v":"*0*"},{"$f":"\"*\"&E327&\"*\"","v":"*0*"},{"$f":"'نموذج تعبئة فواتير السلف'!C329","v":0},{"$f":"\"*\"&G327&\"*\"","v":"*0*"},{"$f":"'نموذج تعبئة فواتير السلف'!D329","v":0},{"$f":"'نموذج تعبئة فواتير السلف'!E329","v":0}]
[323,{"$f":"'نموذج تعبئة فواتير السلف'!J330","v":0},"*0*","*0*",{"$f":"'نموذج تعبئة فواتير السلف'!C330","v":0},"*0*",{"$f":"'نموذج تعبئة فواتير السلف'!D330","v":0},{"$f":"'نموذج تعبئة فواتير السلف'!E330","v":0}]
[324,{"$f":"'نموذج تعبئة فواتير السلف'!J331","v":0},"*0*","*0*",{"$f":"'نموذج تعبئة فواتير السلف'!C331","v":0},"*0*",{"$f":"'نموذج تعبئة فواتير السلف'!D331","v":0},{"$f":"'نموذج تعبئة فواتير السلف'!E331","v":0}]
[325,{"$f":"'نموذج تعبئة فواتير السلف'!J332","v":0},"*0*","*0*",{"$f":"'نموذج تعبئة فواتير السلف'!C332","v":0},"*0*",{"$f":"'نموذج تعبئة فواتير السلف'!D332","v":0},{"$f":"'نموذج تعبئة فواتير السلف'!E332","v":0}]
[326,{"$f":"'نموذج تعبئة فواتير السلف'!J333","v":0},"*0*","*0*",{"$f":"'نموذج تعبئة فواتير السلف'!C333","v":0},"*0*",{"$f":"'نموذج تعبئة فواتير السلف'!D333","v":0},{"$f":"'نموذج تعبئة فواتير السلف'!E333","v":0}]
[327,{"$f":"'نموذج تعبئة فواتير السلف'!J334","v":0},"*0*","*0*",{"$f":"'نموذج تعبئة فواتير السلف'!C334","v":0},"*0*",{"$f":"'نموذج تعبئة فواتير السلف'!D334","v":0},{"$f":"'نموذج تعبئة فواتير السلف'!E334","v":0}]
[328,{"$f":"'نموذج تعبئة فواتير السلف'!J335","v":0},"*0*","*0*",{"$f":"'نموذج تعبئة فواتير السلف'!C335","v":0},"*0*",{"$f":"'نموذج تعبئة فواتير السلف'!D335","v":0},{"$f":"'نموذج تعبئة فواتير السلف'!E335","v":0}]
[329,{"$f":"'نموذج تعبئة فواتير السلف'!J336","v":0},"*0*","*0*",{"$f":"'نموذج تعبئة فواتير السلف'!C336","v":0},"*0*",{"$f":"'نموذج تعبئة فواتير السلف'!D336","v":0},{"$f":"'نموذج تعبئة فواتير السلف'!E336","v":0}]
[330,{"$f":"'نموذج تعبئة فواتير السلف'!J337","v":0},"*0*","*0*",{"$f":"'نموذج تعبئة فواتير السلف'!C337","v":0},"*0*",{"$f":"'نموذج تعبئة فواتير السلف'!D337","v":0},{"$f":"'نموذج تعبئة فواتير السلف'!E337","v":0}]
[331,{"$f":"'نموذج تعبئة فواتير السلف'!J338","v":0},"*0*","*0*",{"$f":"'نموذج تعبئة فواتير السلف'!C338","v":0},"*0*",{"$f":"'نموذج تعبئة فواتير السلف'!D338","v":0},{"$f":"'نموذج تعبئة فواتير السلف'!E338","v":0}]
[332,{"$f":"'نموذج تعبئة فواتير السلف'!J339","v":0},"*0*","*0*",{"$f":"'نموذج تعبئة فواتير السلف'!C339","v":0},"*0*",{"$f":"'نموذج تعبئة فواتير السلف'!D339","v":0},{"$f":"'نموذج تعبئة فواتير السلف'!E339","v":0}]
[333,{"$f":"'نموذج تعبئة فواتير السلف'!J340","v":0},"*0*","*0*",{"$f":"'نموذج تعبئة فواتير السلف'!C340","v":0},"*0*",{"$f":"'نموذج تعبئة فواتير السلف'!D340","v":0},{"$f":"'نموذج تعبئة فواتير السلف'!E340","v":0}]
[334,{"$f":"'نموذج تعبئة فواتير السلف'!J341","v":0},"*0*","*0*",{"$f":"'نموذج تعبئة فواتير السلف'!C341","v":0},"*0*",{"$f":"'نموذج تعبئة فواتير السلف'!D341","v":0},{"$f":"'نموذج تعبئة فواتير السلف'!E341","v":0}]
[335,{"$f":"'نموذج تعبئة فواتير السلف'!J342","v":0},"*0*","*0*",{"$f":"'نموذج تعبئة فواتير السلف'!C342","v":0},"*0*",{"$f":"'نموذج تعبئة فواتير السلف'!D342","v":0},{"$f":"'نموذج تعبئة فواتير السلف'!E342","v":0}]
[336,{"$f":"'نموذج تعبئة فواتير السلف'!J343","v":0},"*0*","*0*",{"$f":"'نموذج تعبئة فواتير السلف'!C343","v":0},"*0*",{"$f":"'نموذج تعبئة فواتير السلف'!D343","v":0},{"$f":"'نموذج تعبئة فواتير السلف'!E343","v":0}]
[337,{"$f":"'نموذج تعبئة فواتير السلف'!J344","v":0},"*0*","*0*",{"$f":"'نموذج تعبئة فواتير السلف'!C344","v":0},"*0*",{"$f":"'نموذج تعبئة فواتير السلف'!D344","v":0},{"$f":"'نموذج تعبئة فواتير السلف'!E344","v":0}]
[338,{"$f":"'نموذج تعبئة فواتير السلف'!J345","v":0},"*0*","*0*",{"$f":"'نموذج تعبئة فواتير السلف'!C345","v":0},"*0*",{"$f":"'نموذج تعبئة فواتير السلف'!D345","v":0},{"$f":"'نموذج تعبئة فواتير السلف'!E345","v":0}]
[339,{"$f":"'نموذج تعبئة فواتير السلف'!J346","v":0},"*0*","*0*",{"$f":"'نموذج تعبئة فواتير السلف'!C346","v":0},"*0*",{"$f":"'نموذج تعبئة فواتير السلف'!D346","v":0},{"$f":"'نموذج تعبئة فواتير السلف'!E346","v":0}]
[340,{"$f":"'نموذج تعبئة فواتير السلف'!J347","v":0},"*0*","*0*",{"$f":"'نموذج تعبئة فواتير السلف'!C347","v":0},"*0*",{"$f":"'نموذج تعبئة فواتير السلف'!D347","v":0},{"$f":"'نموذج تعبئة فواتير السلف'!E347","v":0}]
[341,{"$f":"'نموذج تعبئة فواتير السلف'!J348","v":0},"*0*","*0*",{"$f":"'نموذج تعبئة فواتير السلف'!C348","v":0},"*0*",{"$f":"'نموذج تعبئة فواتير السلف'!D348","v":0},{"$f":"'نموذج تعبئة فواتير السلف'!E348","v":0}]
[342,{"$f":"'نموذج تعبئة فواتير السلف'!J349","v":0},"*0*","*0*",{"$f":"'نموذج تعبئة فواتير السلف'!C349","v":0},"*0*",{"$f":"'نموذج تعبئة فواتير السلف'!D349","v":0},{"$f":"'نموذج تعبئة فواتير السلف'!E349","v":0}]
[343,{"$f":"'نموذج تعبئة فواتير السلف'!J350","v":0},"*0*","*0*",{"$f":"'نموذج تعبئة فواتير السلف'!C350","v":0},"*0*",{"$f":"'نموذج تعبئة فواتير السلف'!D350","v":0},{"$f":"'نموذج تعبئة فواتير السلف'!E350","v":0}]
[344,{"$f":"'نموذج تعبئة فواتير السلف'!J351","v":0},"*0*","*0*",{"$f":"'نموذج تعبئة فواتير السلف'!C351","v":0},"*0*",{"$f":"'نموذج تعبئة فواتير السلف'!D351","v":0},{"$f":"'نموذج تعبئة فواتير السلف'!E351","v":0}]
[345,{"$f":"'نموذج تعبئة فواتير السلف'!J352","v":0},"*0*","*0*",{"$f":"'نموذج تعبئة فواتير السلف'!C352","v":0},"*0*",{"$f":"'نموذج تعبئة فواتير السلف'!D352","v":0},{"$f":"'نموذج تعبئة فواتير السلف'!E352","v":0}]
[346,{"$f":"'نموذج تعبئة فواتير السلف'!J353","v":0},"*0*","*0*",{"$f":"'نموذج تعبئة فواتير السلف'!C353","v":0},"*0*",{"$f":"'نموذج تعبئة فواتير السلف'!D353","v":0},{"$f":"'نموذج تعبئة فواتير السلف'!E353","v":0}]
[347,{"$f":"'نموذج تعبئة فواتير السلف'!J354","v":0},"*0*","*0*",{"$f":"'نموذج تعبئة فواتير السلف'!C354","v":0},"*0*",{"$f":"'نموذج تعبئة فواتير السلف'!D354","v":0},{"$f":"'نموذج تعبئة فواتير السلف'!E354","v":0}]
[348,{"$f":"'نموذج تعبئة فواتير السلف'!J355","v":0},"*0*","*0*",{"$f":"'نموذج تعبئة فواتير السلف'!C355","v":0},"*0*",{"$f":"'نموذج تعبئة فواتير السلف'!D355","v":0},{"$f":"'نموذج تعبئة فواتير السلف'!E355","v":0}]
[349,{"$f":"'نموذج تعبئة فواتير السلف'!J356","v":0},"*0*","*0*",{"$f":"'نموذج تعبئة فواتير السلف'!C356","v":0},"*0*",{"$f":"'نموذج تعبئة فواتير السلف'!D356","v":0},{"$f":"'نموذج تعبئة فواتير السلف'!E356","v":0}]
[350,{"$f":"'نموذج تعبئة فواتير السلف'!J357","v":0},"*0*","*0*",{"$f":"'نموذج تعبئة فواتير السلف'!C357","v":0},"*0*",{"$f":"'نموذج تعبئة فواتير السلف'!D357","v":0},{"$f":"'نموذج تعبئة فواتير السلف'!E357","v":0}]

{"sheet":"جزء خاص بالمستودع","index":2,"n_rows":355,"n_cols":6,"rows_kept":355,"cut":false,"hidden":true,"merged":[[0,0,2,1],[0,5,2,5],[0,2,0,4]]}
[null,null,"التحقق من صحة الإدخال",null,null,"إعداد الموظف:\nعبدالرحمن عبدالعزيز السالم\nجامعة الملك سعود - كلية الصيدلة\nللملاحظات على النموذج:\n0555178727\naaalsalem@ksu.edu.sa"]
[null,null,"ضريبة النموذج","ضريبة المحضر","إجمالي المحضر + الضريبة"]
[null,null,{"$f":"'نموذج تعبئة فواتير السلف'!G6","v":0},0,0]
["م","رقم التعريف","مبالغ النموذج","مبالغ المحضر","تحقق","▲ الفرق  ▼"]
[{"$f":"'نموذج تعبئة فواتير السلف'!A8","v":1},{"$f":"'نموذج تعبئة فواتير السلف'!J8","v":0},{"$f":"'نموذج تعبئة فواتير السلف'!E8","v":0},null,{"$f":"IF(F5=0,\"\",CHAR(251))","v":""},{"$f":"الجدول3[[#This Row],[مبالغ النموذج]]-الجدول3[[#This Row],[مبالغ المحضر]]","v":0}]
[{"$f":"'نموذج تعبئة فواتير السلف'!A9","v":2},{"$f":"'نموذج تعبئة فواتير السلف'!J9","v":0},{"$f":"'نموذج تعبئة فواتير السلف'!E9","v":0},null,{"$f":"IF(F6=0,\"\",CHAR(251))","v":""},{"$f":"الجدول3[[#This Row],[مبالغ النموذج]]-الجدول3[[#This Row],[مبالغ المحضر]]","v":0}]
[{"$f":"'نموذج تعبئة فواتير السلف'!A10","v":3},{"$f":"'نموذج تعبئة فواتير السلف'!J10","v":0},{"$f":"'نموذج تعبئة فواتير السلف'!E10","v":0},null,"",{"$f":"الجدول3[[#This Row],[مبالغ النموذج]]-الجدول3[[#This Row],[مبالغ المحضر]]","v":0}]
[{"$f":"'نموذج تعبئة فواتير السلف'!A11","v":4},{"$f":"'نموذج تعبئة فواتير السلف'!J11","v":0},{"$f":"'نموذج تعبئة فواتير السلف'!E11","v":0},null,"",{"$f":"الجدول3[[#This Row],[مبالغ النموذج]]-الجدول3[[#This Row],[مبالغ المحضر]]","v":0}]
[{"$f":"'نموذج تعبئة فواتير السلف'!A12","v":5},{"$f":"'نموذج تعبئة فواتير السلف'!J12","v":0},{"$f":"'نموذج تعبئة فواتير السلف'!E12","v":0},null,"",{"$f":"الجدول3[[#This Row],[مبالغ النموذج]]-الجدول3[[#This Row],[مبالغ المحضر]]","v":0}]
[{"$f":"'نموذج تعبئة فواتير السلف'!A13","v":6},{"$f":"'نموذج تعبئة فواتير السلف'!J13","v":0},{"$f":"'نموذج تعبئة فواتير السلف'!E13","v":0},null,"",{"$f":"الجدول3[[#This Row],[مبالغ النموذج]]-الجدول3[[#This Row],[مبالغ المحضر]]","v":0}]
[{"$f":"'نموذج تعبئة فواتير السلف'!A14","v":7},{"$f":"'نموذج تعبئة فواتير السلف'!J14","v":0},{"$f":"'نموذج تعبئة فواتير السلف'!E14","v":0},null,"",{"$f":"الجدول3[[#This Row],[مبالغ النموذج]]-الجدول3[[#This Row],[مبالغ المحضر]]","v":0}]
[{"$f":"'نموذج تعبئة فواتير السلف'!A15","v":8},{"$f":"'نموذج تعبئة فواتير السلف'!J15","v":0},{"$f":"'نموذج تعبئة فواتير السلف'!E15","v":0},null,"",{"$f":"الجدول3[[#This Row],[مبالغ النموذج]]-الجدول3[[#This Row],[مبالغ المحضر]]","v":0}]
[{"$f":"'نموذج تعبئة فواتير السلف'!A16","v":9},{"$f":"'نموذج تعبئة فواتير السلف'!J16","v":0},{"$f":"'نموذج تعبئة فواتير السلف'!E16","v":0},null,"",{"$f":"الجدول3[[#This Row],[مبالغ النموذج]]-الجدول3[[#This Row],[مبالغ المحضر]]","v":0}]
[{"$f":"'نموذج تعبئة فواتير السلف'!A17","v":10},{"$f":"'نموذج تعبئة فواتير السلف'!J17","v":0},{"$f":"'نموذج تعبئة فواتير السلف'!E17","v":0},null,"",{"$f":"الجدول3[[#This Row],[مبالغ النموذج]]-الجدول3[[#This Row],[مبالغ المحضر]]","v":0}]
[{"$f":"'نموذج تعبئة فواتير السلف'!A18","v":11},{"$f":"'نموذج تعبئة فواتير السلف'!J18","v":0},{"$f":"'نموذج تعبئة فواتير السلف'!E18","v":0},null,"",{"$f":"الجدول3[[#This Row],[مبالغ النموذج]]-الجدول3[[#This Row],[مبالغ المحضر]]","v":0}]
[{"$f":"'نموذج تعبئة فواتير السلف'!A19","v":12},{"$f":"'نموذج تعبئة فواتير السلف'!J19","v":0},{"$f":"'نموذج تعبئة فواتير السلف'!E19","v":0},null,"",{"$f":"الجدول3[[#This Row],[مبالغ النموذج]]-الجدول3[[#This Row],[مبالغ المحضر]]","v":0}]
[{"$f":"'نموذج تعبئة فواتير السلف'!A20","v":13},{"$f":"'نموذج تعبئة فواتير السلف'!J20","v":0},{"$f":"'نموذج تعبئة فواتير السلف'!E20","v":0},null,"",{"$f":"الجدول3[[#This Row],[مبالغ النموذج]]-الجدول3[[#This Row],[مبالغ المحضر]]","v":0}]
[{"$f":"'نموذج تعبئة فواتير السلف'!A21","v":14},{"$f":"'نموذج تعبئة فواتير السلف'!J21","v":0},{"$f":"'نموذج تعبئة فواتير السلف'!E21","v":0},null,"",{"$f":"الجدول3[[#This Row],[مبالغ النموذج]]-الجدول3[[#This Row],[مبالغ المحضر]]","v":0}]
[{"$f":"'نموذج تعبئة فواتير السلف'!A22","v":15},{"$f":"'نموذج تعبئة فواتير السلف'!J22","v":0},{"$f":"'نموذج تعبئة فواتير السلف'!E22","v":0},null,"",{"$f":"الجدول3[[#This Row],[مبالغ النموذج]]-الجدول3[[#This Row],[مبالغ المحضر]]","v":0}]
[{"$f":"'نموذج تعبئة فواتير السلف'!A23","v":16},{"$f":"'نموذج تعبئة فواتير السلف'!J23","v":0},{"$f":"'نموذج تعبئة فواتير السلف'!E23","v":0},null,"",{"$f":"الجدول3[[#This Row],[مبالغ النموذج]]-الجدول3[[#This Row],[مبالغ المحضر]]","v":0}]
[{"$f":"'نموذج تعبئة فواتير السلف'!A24","v":17},{"$f":"'نموذج تعبئة فواتير السلف'!J24","v":0},{"$f":"'نموذج تعبئة فواتير السلف'!E24","v":0},null,"",{"$f":"الجدول3[[#This Row],[مبالغ النموذج]]-الجدول3[[#This Row],[مبالغ المحضر]]","v":0}]
[{"$f":"'نموذج تعبئة فواتير السلف'!A25","v":18},{"$f":"'نموذج تعبئة فواتير السلف'!J25","v":0},{"$f":"'نموذج تعبئة فواتير السلف'!E25","v":0},null,"",{"$f":"الجدول3[[#This Row],[مبالغ النموذج]]-الجدول3[[#This Row],[مبالغ المحضر]]","v":0}]
[{"$f":"'نموذج تعبئة فواتير السلف'!A26","v":19},{"$f":"'نموذج تعبئة فواتير السلف'!J26","v":0},{"$f":"'نموذج تعبئة فواتير السلف'!E26","v":0},null,"",{"$f":"الجدول3[[#This Row],[مبالغ النموذج]]-الجدول3[[#This Row],[مبالغ المحضر]]","v":0}]
[{"$f":"'نموذج تعبئة فواتير السلف'!A27","v":20},{"$f":"'نموذج تعبئة فواتير السلف'!J27","v":0},{"$f":"'نموذج تعبئة فواتير السلف'!E27","v":0},null,"",{"$f":"الجدول3[[#This Row],[مبالغ النموذج]]-الجدول3[[#This Row],[مبالغ المحضر]]","v":0}]
[{"$f":"'نموذج تعبئة فواتير السلف'!A28","v":21},{"$f":"'نموذج تعبئة فواتير السلف'!J28","v":0},{"$f":"'نموذج تعبئة فواتير السلف'!E28","v":0},1,"û",{"$f":"الجدول3[[#This Row],[مبالغ النموذج]]-الجدول3[[#This Row],[مبالغ المحضر]]","v":-1}]
[{"$f":"'نموذج تعبئة فواتير السلف'!A29","v":22},{"$f":"'نموذج تعبئة فواتير السلف'!J29","v":0},{"$f":"'نموذج تعبئة فواتير السلف'!E29","v":0},null,"",{"$f":"الجدول3[[#This Row],[مبالغ النموذج]]-الجدول3[[#This Row],[مبالغ المحضر]]","v":0}]
[{"$f":"'نموذج تعبئة فواتير السلف'!A30","v":23},{"$f":"'نموذج تعبئة فواتير السلف'!J30","v":0},{"$f":"'نموذج تعبئة فواتير السلف'!E30","v":0},null,"",{"$f":"الجدول3[[#This Row],[مبالغ النموذج]]-الجدول3[[#This Row],[مبالغ المحضر]]","v":0}]
[{"$f":"'نموذج تعبئة فواتير السلف'!A31","v":24},{"$f":"'نموذج تعبئة فواتير السلف'!J31","v":0},{"$f":"'نموذج تعبئة فواتير السلف'!E31","v":0},null,"",{"$f":"الجدول3[[#This Row],[مبالغ النموذج]]-الجدول3[[#This Row],[مبالغ المحضر]]","v":0}]
[{"$f":"'نموذج تعبئة فواتير السلف'!A32","v":25},{"$f":"'نموذج تعبئة فواتير السلف'!J32","v":0},{"$f":"'نموذج تعبئة فواتير السلف'!E32","v":0},null,"",{"$f":"الجدول3[[#This Row],[مبالغ النموذج]]-الجدول3[[#This Row],[مبالغ المحضر]]","v":0}]
[{"$f":"'نموذج تعبئة فواتير السلف'!A33","v":26},{"$f":"'نموذج تعبئة فواتير السلف'!J33","v":0},{"$f":"'نموذج تعبئة فواتير السلف'!E33","v":0},null,"",{"$f":"الجدول3[[#This Row],[مبالغ النموذج]]-الجدول3[[#This Row],[مبالغ المحضر]]","v":0}]
[{"$f":"'نموذج تعبئة فواتير السلف'!A34","v":27},{"$f":"'نموذج تعبئة فواتير السلف'!J34","v":0},{"$f":"'نموذج تعبئة فواتير السلف'!E34","v":0},null,"",{"$f":"الجدول3[[#This Row],[مبالغ النموذج]]-الجدول3[[#This Row],[مبالغ المحضر]]","v":0}]
[{"$f":"'نموذج تعبئة فواتير السلف'!A35","v":28},{"$f":"'نموذج تعبئة فواتير السلف'!J35","v":0},{"$f":"'نموذج تعبئة فواتير السلف'!E35","v":0},null,"",{"$f":"الجدول3[[#This Row],[مبالغ النموذج]]-الجدول3[[#This Row],[مبالغ المحضر]]","v":0}]
[{"$f":"'نموذج تعبئة فواتير السلف'!A36","v":29},{"$f":"'نموذج تعبئة فواتير السلف'!J36","v":0},{"$f":"'نموذج تعبئة فواتير السلف'!E36","v":0},null,"",{"$f":"الجدول3[[#This Row],[مبالغ النموذج]]-الجدول3[[#This Row],[مبالغ المحضر]]","v":0}]
[{"$f":"'نموذج تعبئة فواتير السلف'!A37","v":30},{"$f":"'نموذج تعبئة فواتير السلف'!J37","v":0},{"$f":"'نموذج تعبئة فواتير السلف'!E37","v":0},null,"",{"$f":"الجدول3[[#This Row],[مبالغ النموذج]]-الجدول3[[#This Row],[مبالغ المحضر]]","v":0}]
[{"$f":"'نموذج تعبئة فواتير السلف'!A38","v":31},{"$f":"'نموذج تعبئة فواتير السلف'!J38","v":0},{"$f":"'نموذج تعبئة فواتير السلف'!E38","v":0},null,"",{"$f":"الجدول3[[#This Row],[مبالغ النموذج]]-الجدول3[[#This Row],[مبالغ المحضر]]","v":0}]
[{"$f":"'نموذج تعبئة فواتير السلف'!A39","v":32},{"$f":"'نموذج تعبئة فواتير السلف'!J39","v":0},{"$f":"'نموذج تعبئة فواتير السلف'!E39","v":0},null,"",{"$f":"الجدول3[[#This Row],[مبالغ النموذج]]-الجدول3[[#This Row],[مبالغ المحضر]]","v":0}]
[{"$f":"'نموذج تعبئة فواتير السلف'!A40","v":33},{"$f":"'نموذج تعبئة فواتير السلف'!J40","v":0},{"$f":"'نموذج تعبئة فواتير السلف'!E40","v":0},null,"",{"$f":"الجدول3[[#This Row],[مبالغ النموذج]]-الجدول3[[#This Row],[مبالغ المحضر]]","v":0}]
[{"$f":"'نموذج تعبئة فواتير السلف'!A41","v":34},{"$f":"'نموذج تعبئة فواتير السلف'!J41","v":0},{"$f":"'نموذج تعبئة فواتير السلف'!E41","v":0},null,"",{"$f":"الجدول3[[#This Row],[مبالغ النموذج]]-الجدول3[[#This Row],[مبالغ المحضر]]","v":0}]
[{"$f":"'نموذج تعبئة فواتير السلف'!A42","v":35},{"$f":"'نموذج تعبئة فواتير السلف'!J42","v":0},{"$f":"'نموذج تعبئة فواتير السلف'!E42","v":0},null,"",{"$f":"الجدول3[[#This Row],[مبالغ النموذج]]-الجدول3[[#This Row],[مبالغ المحضر]]","v":0}]
[{"$f":"'نموذج تعبئة فواتير السلف'!A43","v":36},{"$f":"'نموذج تعبئة فواتير السلف'!J43","v":0},{"$f":"'نموذج تعبئة فواتير السلف'!E43","v":0},null,"",{"$f":"الجدول3[[#This Row],[مبالغ النموذج]]-الجدول3[[#This Row],[مبالغ المحضر]]","v":0}]
[{"$f":"'نموذج تعبئة فواتير السلف'!A44","v":37},{"$f":"'نموذج تعبئة فواتير السلف'!J44","v":0},{"$f":"'نموذج تعبئة فواتير السلف'!E44","v":0},null,"",{"$f":"الجدول3[[#This Row],[مبالغ النموذج]]-الجدول3[[#This Row],[مبالغ المحضر]]","v":0}]
[{"$f":"'نموذج تعبئة فواتير السلف'!A45","v":38},{"$f":"'نموذج تعبئة فواتير السلف'!J45","v":0},{"$f":"'نموذج تعبئة فواتير السلف'!E45","v":0},null,"",{"$f":"الجدول3[[#This Row],[مبالغ النموذج]]-الجدول3[[#This Row],[مبالغ المحضر]]","v":0}]
[{"$f":"'نموذج تعبئة فواتير السلف'!A46","v":39},{"$f":"'نموذج تعبئة فواتير السلف'!J46","v":0},{"$f":"'نموذج تعبئة فواتير السلف'!E46","v":0},null,"",{"$f":"الجدول3[[#This Row],[مبالغ النموذج]]-الجدول3[[#This Row],[مبالغ المحضر]]","v":0}]
[{"$f":"'نموذج تعبئة فواتير السلف'!A47","v":40},{"$f":"'نموذج تعبئة فواتير السلف'!J47","v":0},{"$f":"'نموذج تعبئة فواتير السلف'!E47","v":0},null,"",{"$f":"الجدول3[[#This Row],[مبالغ النموذج]]-الجدول3[[#This Row],[مبالغ المحضر]]","v":0}]
[{"$f":"'نموذج تعبئة فواتير السلف'!A48","v":41},{"$f":"'نموذج تعبئة فواتير السلف'!J48","v":0},{"$f":"'نموذج تعبئة فواتير السلف'!E48","v":0},null,"",{"$f":"الجدول3[[#This Row],[مبالغ النموذج]]-الجدول3[[#This Row],[مبالغ المحضر]]","v":0}]
[{"$f":"'نموذج تعبئة فواتير السلف'!A49","v":42},{"$f":"'نموذج تعبئة فواتير السلف'!J49","v":0},{"$f":"'نموذج تعبئة فواتير السلف'!E49","v":0},null,"",{"$f":"الجدول3[[#This Row],[مبالغ النموذج]]-الجدول3[[#This Row],[مبالغ المحضر]]","v":0}]
[{"$f":"'نموذج تعبئة فواتير السلف'!A50","v":43},{"$f":"'نموذج تعبئة فواتير السلف'!J50","v":0},{"$f":"'نموذج تعبئة فواتير السلف'!E50","v":0},null,"",{"$f":"الجدول3[[#This Row],[مبالغ النموذج]]-الجدول3[[#This Row],[مبالغ المحضر]]","v":0}]
[{"$f":"'نموذج تعبئة فواتير السلف'!A51","v":44},{"$f":"'نموذج تعبئة فواتير السلف'!J51","v":0},{"$f":"'نموذج تعبئة فواتير السلف'!E51","v":0},null,"",{"$f":"الجدول3[[#This Row],[مبالغ النموذج]]-الجدول3[[#This Row],[مبالغ المحضر]]","v":0}]
[{"$f":"'نموذج تعبئة فواتير السلف'!A52","v":45},{"$f":"'نموذج تعبئة فواتير السلف'!J52","v":0},{"$f":"'نموذج تعبئة فواتير السلف'!E52","v":0},null,"",{"$f":"الجدول3[[#This Row],[مبالغ النموذج]]-الجدول3[[#This Row],[مبالغ المحضر]]","v":0}]
[{"$f":"'نموذج تعبئة فواتير السلف'!A53","v":46},{"$f":"'نموذج تعبئة فواتير السلف'!J53","v":0},{"$f":"'نموذج تعبئة فواتير السلف'!E53","v":0},null,"",{"$f":"الجدول3[[#This Row],[مبالغ النموذج]]-الجدول3[[#This Row],[مبالغ المحضر]]","v":0}]
[{"$f":"'نموذج تعبئة فواتير السلف'!A54","v":47},{"$f":"'نموذج تعبئة فواتير السلف'!J54","v":0},{"$f":"'نموذج تعبئة فواتير السلف'!E54","v":0},null,"",{"$f":"الجدول3[[#This Row],[مبالغ النموذج]]-الجدول3[[#This Row],[مبالغ المحضر]]","v":0}]
[{"$f":"'نموذج تعبئة فواتير السلف'!A55","v":48},{"$f":"'نموذج تعبئة فواتير السلف'!J55","v":0},{"$f":"'نموذج تعبئة فواتير السلف'!E55","v":0},null,"",{"$f":"الجدول3[[#This Row],[مبالغ النموذج]]-الجدول3[[#This Row],[مبالغ المحضر]]","v":0}]
[{"$f":"'نموذج تعبئة فواتير السلف'!A56","v":49},{"$f":"'نموذج تعبئة فواتير السلف'!J56","v":0},{"$f":"'نموذج تعبئة فواتير السلف'!E56","v":0},null,"",{"$f":"الجدول3[[#This Row],[مبالغ النموذج]]-الجدول3[[#This Row],[مبالغ المحضر]]","v":0}]
[{"$f":"'نموذج تعبئة فواتير السلف'!A57","v":50},{"$f":"'نموذج تعبئة فواتير السلف'!J57","v":0},{"$f":"'نموذج تعبئة فواتير السلف'!E57","v":0},null,"",{"$f":"الجدول3[[#This Row],[مبالغ النموذج]]-الجدول3[[#This Row],[مبالغ المحضر]]","v":0}]
[{"$f":"'نموذج تعبئة فواتير السلف'!A58","v":51},{"$f":"'نموذج تعبئة فواتير السلف'!J58","v":0},{"$f":"'نموذج تعبئة فواتير السلف'!E58","v":0},null,"",{"$f":"الجدول3[[#This Row],[مبالغ النموذج]]-الجدول3[[#This Row],[مبالغ المحضر]]","v":0}]
[{"$f":"'نموذج تعبئة فواتير السلف'!A59","v":52},{"$f":"'نموذج تعبئة فواتير السلف'!J59","v":0},{"$f":"'نموذج تعبئة فواتير السلف'!E59","v":0},null,"",{"$f":"الجدول3[[#This Row],[مبالغ النموذج]]-الجدول3[[#This Row],[مبالغ المحضر]]","v":0}]
[{"$f":"'نموذج تعبئة فواتير السلف'!A60","v":53},{"$f":"'نموذج تعبئة فواتير السلف'!J60","v":0},{"$f":"'نموذج تعبئة فواتير السلف'!E60","v":0},null,"",{"$f":"الجدول3[[#This Row],[مبالغ النموذج]]-الجدول3[[#This Row],[مبالغ المحضر]]","v":0}]
[{"$f":"'نموذج تعبئة فواتير السلف'!A61","v":54},{"$f":"'نموذج تعبئة فواتير السلف'!J61","v":0},{"$f":"'نموذج تعبئة فواتير السلف'!E61","v":0},null,"",{"$f":"الجدول3[[#This Row],[مبالغ النموذج]]-الجدول3[[#This Row],[مبالغ المحضر]]","v":0}]
[{"$f":"'نموذج تعبئة فواتير السلف'!A62","v":55},{"$f":"'نموذج تعبئة فواتير السلف'!J62","v":0},{"$f":"'نموذج تعبئة فواتير السلف'!E62","v":0},null,"",{"$f":"الجدول3[[#This Row],[مبالغ النموذج]]-الجدول3[[#This Row],[مبالغ المحضر]]","v":0}]
[{"$f":"'نموذج تعبئة فواتير السلف'!A63","v":56},{"$f":"'نموذج تعبئة فواتير السلف'!J63","v":0},{"$f":"'نموذج تعبئة فواتير السلف'!E63","v":0},null,"",{"$f":"الجدول3[[#This Row],[مبالغ النموذج]]-الجدول3[[#This Row],[مبالغ المحضر]]","v":0}]
[{"$f":"'نموذج تعبئة فواتير السلف'!A64","v":57},{"$f":"'نموذج تعبئة فواتير السلف'!J64","v":0},{"$f":"'نموذج تعبئة فواتير السلف'!E64","v":0},null,"",{"$f":"الجدول3[[#This Row],[مبالغ النموذج]]-الجدول3[[#This Row],[مبالغ المحضر]]","v":0}]
[{"$f":"'نموذج تعبئة فواتير السلف'!A65","v":58},{"$f":"'نموذج تعبئة فواتير السلف'!J65","v":0},{"$f":"'نموذج تعبئة فواتير السلف'!E65","v":0},null,"",{"$f":"الجدول3[[#This Row],[مبالغ النموذج]]-الجدول3[[#This Row],[مبالغ المحضر]]","v":0}]
[{"$f":"'نموذج تعبئة فواتير السلف'!A66","v":59},{"$f":"'نموذج تعبئة فواتير السلف'!J66","v":0},{"$f":"'نموذج تعبئة فواتير السلف'!E66","v":0},null,"",{"$f":"الجدول3[[#This Row],[مبالغ النموذج]]-الجدول3[[#This Row],[مبالغ المحضر]]","v":0}]
[{"$f":"'نموذج تعبئة فواتير السلف'!A67","v":60},{"$f":"'نموذج تعبئة فواتير السلف'!J67","v":0},{"$f":"'نموذج تعبئة فواتير السلف'!E67","v":0},null,"",{"$f":"الجدول3[[#This Row],[مبالغ النموذج]]-الجدول3[[#This Row],[مبالغ المحضر]]","v":0}]
[{"$f":"'نموذج تعبئة فواتير السلف'!A68","v":61},{"$f":"'نموذج تعبئة فواتير السلف'!J68","v":0},{"$f":"'نموذج تعبئة فواتير السلف'!E68","v":0},null,"",{"$f":"الجدول3[[#This Row],[مبالغ النموذج]]-الجدول3[[#This Row],[مبالغ المحضر]]","v":0}]
[{"$f":"'نموذج تعبئة فواتير السلف'!A69","v":62},{"$f":"'نموذج تعبئة فواتير السلف'!J69","v":0},{"$f":"'نموذج تعبئة فواتير السلف'!E69","v":0},null,"",{"$f":"الجدول3[[#This Row],[مبالغ النموذج]]-الجدول3[[#This Row],[مبالغ المحضر]]","v":0}]
[{"$f":"'نموذج تعبئة فواتير السلف'!A70","v":63},{"$f":"'نموذج تعبئة فواتير السلف'!J70","v":0},{"$f":"'نموذج تعبئة فواتير السلف'!E70","v":0},null,"",{"$f":"الجدول3[[#This Row],[مبالغ النموذج]]-الجدول3[[#This Row],[مبالغ المحضر]]","v":0}]
[{"$f":"'نموذج تعبئة فواتير السلف'!A71","v":64},{"$f":"'نموذج تعبئة فواتير السلف'!J71","v":0},{"$f":"'نموذج تعبئة فواتير السلف'!E71","v":0},null,"",{"$f":"الجدول3[[#This Row],[مبالغ النموذج]]-الجدول3[[#This Row],[مبالغ المحضر]]","v":0}]
[{"$f":"'نموذج تعبئة فواتير السلف'!A72","v":65},{"$f":"'نموذج تعبئة فواتير السلف'!J72","v":0},{"$f":"'نموذج تعبئة فواتير السلف'!E72","v":0},null,"",{"$f":"الجدول3[[#This Row],[مبالغ النموذج]]-الجدول3[[#This Row],[مبالغ المحضر]]","v":0}]
[{"$f":"'نموذج تعبئة فواتير السلف'!A73","v":66},{"$f":"'نموذج تعبئة فواتير السلف'!J73","v":0},{"$f":"'نموذج تعبئة فواتير السلف'!E73","v":0},null,{"$f":"IF(F70=0,\"\",CHAR(251))","v":""},{"$f":"الجدول3[[#This Row],[مبالغ النموذج]]-الجدول3[[#This Row],[مبالغ المحضر]]","v":0}]
[{"$f":"'نموذج تعبئة فواتير السلف'!A74","v":67},{"$f":"'نموذج تعبئة فواتير السلف'!J74","v":0},{"$f":"'نموذج تعبئة فواتير السلف'!E74","v":0},null,"",{"$f":"الجدول3[[#This Row],[مبالغ النموذج]]-الجدول3[[#This Row],[مبالغ المحضر]]","v":0}]
[{"$f":"'نموذج تعبئة فواتير السلف'!A75","v":68},{"$f":"'نموذج تعبئة فواتير السلف'!J75","v":0},{"$f":"'نموذج تعبئة فواتير السلف'!E75","v":0},null,"",{"$f":"الجدول3[[#This Row],[مبالغ النموذج]]-الجدول3[[#This Row],[مبالغ المحضر]]","v":0}]
[{"$f":"'نموذج تعبئة فواتير السلف'!A76","v":69},{"$f":"'نموذج تعبئة فواتير السلف'!J76","v":0},{"$f":"'نموذج تعبئة فواتير السلف'!E76","v":0},null,"",{"$f":"الجدول3[[#This Row],[مبالغ النموذج]]-الجدول3[[#This Row],[مبالغ المحضر]]","v":0}]
[{"$f":"'نموذج تعبئة فواتير السلف'!A77","v":70},{"$f":"'نموذج تعبئة فواتير السلف'!J77","v":0},{"$f":"'نموذج تعبئة فواتير السلف'!E77","v":0},null,"",{"$f":"الجدول3[[#This Row],[مبالغ النموذج]]-الجدول3[[#This Row],[مبالغ المحضر]]","v":0}]
[{"$f":"'نموذج تعبئة فواتير السلف'!A78","v":71},{"$f":"'نموذج تعبئة فواتير السلف'!J78","v":0},{"$f":"'نموذج تعبئة فواتير السلف'!E78","v":0},null,"",{"$f":"الجدول3[[#This Row],[مبالغ النموذج]]-الجدول3[[#This Row],[مبالغ المحضر]]","v":0}]
[{"$f":"'نموذج تعبئة فواتير السلف'!A79","v":72},{"$f":"'نموذج تعبئة فواتير السلف'!J79","v":0},{"$f":"'نموذج تعبئة فواتير السلف'!E79","v":0},null,"",{"$f":"الجدول3[[#This Row],[مبالغ النموذج]]-الجدول3[[#This Row],[مبالغ المحضر]]","v":0}]
[{"$f":"'نموذج تعبئة فواتير السلف'!A80","v":73},{"$f":"'نموذج تعبئة فواتير السلف'!J80","v":0},{"$f":"'نموذج تعبئة فواتير السلف'!E80","v":0},null,"",{"$f":"الجدول3[[#This Row],[مبالغ النموذج]]-الجدول3[[#This Row],[مبالغ المحضر]]","v":0}]
[{"$f":"'نموذج تعبئة فواتير السلف'!A81","v":74},{"$f":"'نموذج تعبئة فواتير السلف'!J81","v":0},{"$f":"'نموذج تعبئة فواتير السلف'!E81","v":0},null,"",{"$f":"الجدول3[[#This Row],[مبالغ النموذج]]-الجدول3[[#This Row],[مبالغ المحضر]]","v":0}]
[{"$f":"'نموذج تعبئة فواتير السلف'!A82","v":75},{"$f":"'نموذج تعبئة فواتير السلف'!J82","v":0},{"$f":"'نموذج تعبئة فواتير السلف'!E82","v":0},null,"",{"$f":"الجدول3[[#This Row],[مبالغ النموذج]]-الجدول3[[#This Row],[مبالغ المحضر]]","v":0}]
[{"$f":"'نموذج تعبئة فواتير السلف'!A83","v":76},{"$f":"'نموذج تعبئة فواتير السلف'!J83","v":0},{"$f":"'نموذج تعبئة فواتير السلف'!E83","v":0},null,"",{"$f":"الجدول3[[#This Row],[مبالغ النموذج]]-الجدول3[[#This Row],[مبالغ المحضر]]","v":0}]
[{"$f":"'نموذج تعبئة فواتير السلف'!A84","v":77},{"$f":"'نموذج تعبئة فواتير السلف'!J84","v":0},{"$f":"'نموذج تعبئة فواتير السلف'!E84","v":0},null,"",{"$f":"الجدول3[[#This Row],[مبالغ النموذج]]-الجدول3[[#This Row],[مبالغ المحضر]]","v":0}]
[{"$f":"'نموذج تعبئة فواتير السلف'!A85","v":78},{"$f":"'نموذج تعبئة فواتير السلف'!J85","v":0},{"$f":"'نموذج تعبئة فواتير السلف'!E85","v":0},null,"",{"$f":"الجدول3[[#This Row],[مبالغ النموذج]]-الجدول3[[#This Row],[مبالغ المحضر]]","v":0}]
[{"$f":"'نموذج تعبئة فواتير السلف'!A86","v":79},{"$f":"'نموذج تعبئة فواتير السلف'!J86","v":0},{"$f":"'نموذج تعبئة فواتير السلف'!E86","v":0},null,"",{"$f":"الجدول3[[#This Row],[مبالغ النموذج]]-الجدول3[[#This Row],[مبالغ المحضر]]","v":0}]
[{"$f":"'نموذج تعبئة فواتير السلف'!A87","v":80},{"$f":"'نموذج تعبئة فواتير السلف'!J87","v":0},{"$f":"'نموذج تعبئة فواتير السلف'!E87","v":0},null,"",{"$f":"الجدول3[[#This Row],[مبالغ النموذج]]-الجدول3[[#This Row],[مبالغ المحضر]]","v":0}]
[{"$f":"'نموذج تعبئة فواتير السلف'!A88","v":81},{"$f":"'نموذج تعبئة فواتير السلف'!J88","v":0},{"$f":"'نموذج تعبئة فواتير السلف'!E88","v":0},null,"",{"$f":"الجدول3[[#This Row],[مبالغ النموذج]]-الجدول3[[#This Row],[مبالغ المحضر]]","v":0}]
[{"$f":"'نموذج تعبئة فواتير السلف'!A89","v":82},{"$f":"'نموذج تعبئة فواتير السلف'!J89","v":0},{"$f":"'نموذج تعبئة فواتير السلف'!E89","v":0},null,"",{"$f":"الجدول3[[#This Row],[مبالغ النموذج]]-الجدول3[[#This Row],[مبالغ المحضر]]","v":0}]
[{"$f":"'نموذج تعبئة فواتير السلف'!A90","v":83},{"$f":"'نموذج تعبئة فواتير السلف'!J90","v":0},{"$f":"'نموذج تعبئة فواتير السلف'!E90","v":0},null,"",{"$f":"الجدول3[[#This Row],[مبالغ النموذج]]-الجدول3[[#This Row],[مبالغ المحضر]]","v":0}]
[{"$f":"'نموذج تعبئة فواتير السلف'!A91","v":84},{"$f":"'نموذج تعبئة فواتير السلف'!J91","v":0},{"$f":"'نموذج تعبئة فواتير السلف'!E91","v":0},null,"",{"$f":"الجدول3[[#This Row],[مبالغ النموذج]]-الجدول3[[#This Row],[مبالغ المحضر]]","v":0}]
[{"$f":"'نموذج تعبئة فواتير السلف'!A92","v":85},{"$f":"'نموذج تعبئة فواتير السلف'!J92","v":0},{"$f":"'نموذج تعبئة فواتير السلف'!E92","v":0},null,"",{"$f":"الجدول3[[#This Row],[مبالغ النموذج]]-الجدول3[[#This Row],[مبالغ المحضر]]","v":0}]
[{"$f":"'نموذج تعبئة فواتير السلف'!A93","v":86},{"$f":"'نموذج تعبئة فواتير السلف'!J93","v":0},{"$f":"'نموذج تعبئة فواتير السلف'!E93","v":0},null,"",{"$f":"الجدول3[[#This Row],[مبالغ النموذج]]-الجدول3[[#This Row],[مبالغ المحضر]]","v":0}]
[{"$f":"'نموذج تعبئة فواتير السلف'!A94","v":87},{"$f":"'نموذج تعبئة فواتير السلف'!J94","v":0},{"$f":"'نموذج تعبئة فواتير السلف'!E94","v":0},null,"",{"$f":"الجدول3[[#This Row],[مبالغ النموذج]]-الجدول3[[#This Row],[مبالغ المحضر]]","v":0}]
[{"$f":"'نموذج تعبئة فواتير السلف'!A95","v":88},{"$f":"'نموذج تعبئة فواتير السلف'!J95","v":0},{"$f":"'نموذج تعبئة فواتير السلف'!E95","v":0},null,"",{"$f":"الجدول3[[#This Row],[مبالغ النموذج]]-الجدول3[[#This Row],[مبالغ المحضر]]","v":0}]
[{"$f":"'نموذج تعبئة فواتير السلف'!A96","v":89},{"$f":"'نموذج تعبئة فواتير السلف'!J96","v":0},{"$f":"'نموذج تعبئة فواتير السلف'!E96","v":0},null,"",{"$f":"الجدول3[[#This Row],[مبالغ النموذج]]-الجدول3[[#This Row],[مبالغ المحضر]]","v":0}]
[{"$f":"'نموذج تعبئة فواتير السلف'!A97","v":90},{"$f":"'نموذج تعبئة فواتير السلف'!J97","v":0},{"$f":"'نموذج تعبئة فواتير السلف'!E97","v":0},null,"",{"$f":"الجدول3[[#This Row],[مبالغ النموذج]]-الجدول3[[#This Row],[مبالغ المحضر]]","v":0}]
[{"$f":"'نموذج تعبئة فواتير السلف'!A98","v":91},{"$f":"'نموذج تعبئة فواتير السلف'!J98","v":0},{"$f":"'نموذج تعبئة فواتير السلف'!E98","v":0},null,"",{"$f":"الجدول3[[#This Row],[مبالغ النموذج]]-الجدول3[[#This Row],[مبالغ المحضر]]","v":0}]
[{"$f":"'نموذج تعبئة فواتير السلف'!A99","v":92},{"$f":"'نموذج تعبئة فواتير السلف'!J99","v":0},{"$f":"'نموذج تعبئة فواتير السلف'!E99","v":0},null,"",{"$f":"الجدول3[[#This Row],[مبالغ النموذج]]-الجدول3[[#This Row],[مبالغ المحضر]]","v":0}]
[{"$f":"'نموذج تعبئة فواتير السلف'!A100","v":93},{"$f":"'نموذج تعبئة فواتير السلف'!J100","v":0},{"$f":"'نموذج تعبئة فواتير السلف'!E100","v":0},null,"",{"$f":"الجدول3[[#This Row],[مبالغ النموذج]]-الجدول3[[#This Row],[مبالغ المحضر]]","v":0}]
[{"$f":"'نموذج تعبئة فواتير السلف'!A101","v":94},{"$f":"'نموذج تعبئة فواتير السلف'!J101","v":0},{"$f":"'نموذج تعبئة فواتير السلف'!E101","v":0},null,"",{"$f":"الجدول3[[#This Row],[مبالغ النموذج]]-الجدول3[[#This Row],[مبالغ المحضر]]","v":0}]
[{"$f":"'نموذج تعبئة فواتير السلف'!A102","v":95},{"$f":"'نموذج تعبئة فواتير السلف'!J102","v":0},{"$f":"'نموذج تعبئة فواتير السلف'!E102","v":0},null,"",{"$f":"الجدول3[[#This Row],[مبالغ النموذج]]-الجدول3[[#This Row],[مبالغ المحضر]]","v":0}]
[{"$f":"'نموذج تعبئة فواتير السلف'!A103","v":96},{"$f":"'نموذج تعبئة فواتير السلف'!J103","v":0},{"$f":"'نموذج تعبئة فواتير السلف'!E103","v":0},null,"",{"$f":"الجدول3[[#This Row],[مبالغ النموذج]]-الجدول3[[#This Row],[مبالغ المحضر]]","v":0}]
[{"$f":"'نموذج تعبئة فواتير السلف'!A104","v":97},{"$f":"'نموذج تعبئة فواتير السلف'!J104","v":0},{"$f":"'نموذج تعبئة فواتير السلف'!E104","v":0},null,"",{"$f":"الجدول3[[#This Row],[مبالغ النموذج]]-الجدول3[[#This Row],[مبالغ المحضر]]","v":0}]
[{"$f":"'نموذج تعبئة فواتير السلف'!A105","v":98},{"$f":"'نموذج تعبئة فواتير السلف'!J105","v":0},{"$f":"'نموذج تعبئة فواتير السلف'!E105","v":0},null,"",{"$f":"الجدول3[[#This Row],[مبالغ النموذج]]-الجدول3[[#This Row],[مبالغ المحضر]]","v":0}]
[{"$f":"'نموذج تعبئة فواتير السلف'!A106","v":99},{"$f":"'نموذج تعبئة فواتير السلف'!J106","v":0},{"$f":"'نموذج تعبئة فواتير السلف'!E106","v":0},null,"",{"$f":"الجدول3[[#This Row],[مبالغ النموذج]]-الجدول3[[#This Row],[مبالغ المحضر]]","v":0}]
[{"$f":"'نموذج تعبئة فواتير السلف'!A107","v":100},{"$f":"'نموذج تعبئة فواتير السلف'!J107","v":0},{"$f":"'نموذج تعبئة فواتير السلف'!E107","v":0},null,"",{"$f":"الجدول3[[#This Row],[مبالغ النموذج]]-الجدول3[[#This Row],[مبالغ المحضر]]","v":0}]
[{"$f":"'نموذج تعبئة فواتير السلف'!A108","v":101},{"$f":"'نموذج تعبئة فواتير السلف'!J108","v":0},{"$f":"'نموذج تعبئة فواتير السلف'!E108","v":0},null,"",{"$f":"الجدول3[[#This Row],[مبالغ النموذج]]-الجدول3[[#This Row],[مبالغ المحضر]]","v":0}]
[{"$f":"'نموذج تعبئة فواتير السلف'!A109","v":102},{"$f":"'نموذج تعبئة فواتير السلف'!J109","v":0},{"$f":"'نموذج تعبئة فواتير السلف'!E109","v":0},null,"",{"$f":"الجدول3[[#This Row],[مبالغ النموذج]]-الجدول3[[#This Row],[مبالغ المحضر]]","v":0}]
[{"$f":"'نموذج تعبئة فواتير السلف'!A110","v":103},{"$f":"'نموذج تعبئة فواتير السلف'!J110","v":0},{"$f":"'نموذج تعبئة فواتير السلف'!E110","v":0},null,"",{"$f":"الجدول3[[#This Row],[مبالغ النموذج]]-الجدول3[[#This Row],[مبالغ المحضر]]","v":0}]
[{"$f":"'نموذج تعبئة فواتير السلف'!A111","v":104},{"$f":"'نموذج تعبئة فواتير السلف'!J111","v":0},{"$f":"'نموذج تعبئة فواتير السلف'!E111","v":0},null,"",{"$f":"الجدول3[[#This Row],[مبالغ النموذج]]-الجدول3[[#This Row],[مبالغ المحضر]]","v":0}]
[{"$f":"'نموذج تعبئة فواتير السلف'!A112","v":105},{"$f":"'نموذج تعبئة فواتير السلف'!J112","v":0},{"$f":"'نموذج تعبئة فواتير السلف'!E112","v":0},null,"",{"$f":"الجدول3[[#This Row],[مبالغ النموذج]]-الجدول3[[#This Row],[مبالغ المحضر]]","v":0}]
[{"$f":"'نموذج تعبئة فواتير السلف'!A113","v":106},{"$f":"'نموذج تعبئة فواتير السلف'!J113","v":0},{"$f":"'نموذج تعبئة فواتير السلف'!E113","v":0},null,"",{"$f":"الجدول3[[#This Row],[مبالغ النموذج]]-الجدول3[[#This Row],[مبالغ المحضر]]","v":0}]
[{"$f":"'نموذج تعبئة فواتير السلف'!A114","v":107},{"$f":"'نموذج تعبئة فواتير السلف'!J114","v":0},{"$f":"'نموذج تعبئة فواتير السلف'!E114","v":0},null,"",{"$f":"الجدول3[[#This Row],[مبالغ النموذج]]-الجدول3[[#This Row],[مبالغ المحضر]]","v":0}]
[{"$f":"'نموذج تعبئة فواتير السلف'!A115","v":108},{"$f":"'نموذج تعبئة فواتير السلف'!J115","v":0},{"$f":"'نموذج تعبئة فواتير السلف'!E115","v":0},null,"",{"$f":"الجدول3[[#This Row],[مبالغ النموذج]]-الجدول3[[#This Row],[مبالغ المحضر]]","v":0}]
[{"$f":"'نموذج تعبئة فواتير السلف'!A116","v":109},{"$f":"'نموذج تعبئة فواتير السلف'!J116","v":0},{"$f":"'نموذج تعبئة فواتير السلف'!E116","v":0},null,"",{"$f":"الجدول3[[#This Row],[مبالغ النموذج]]-الجدول3[[#This Row],[مبالغ المحضر]]","v":0}]
[{"$f":"'نموذج تعبئة فواتير السلف'!A117","v":110},{"$f":"'نموذج تعبئة فواتير السلف'!J117","v":0},{"$f":"'نموذج تعبئة فواتير السلف'!E117","v":0},null,"",{"$f":"الجدول3[[#This Row],[مبالغ النموذج]]-الجدول3[[#This Row],[مبالغ المحضر]]","v":0}]
[{"$f":"'نموذج تعبئة فواتير السلف'!A118","v":111},{"$f":"'نموذج تعبئة فواتير السلف'!J118","v":0},{"$f":"'نموذج تعبئة فواتير السلف'!E118","v":0},null,"",{"$f":"الجدول3[[#This Row],[مبالغ النموذج]]-الجدول3[[#This Row],[مبالغ المحضر]]","v":0}]
[{"$f":"'نموذج تعبئة فواتير السلف'!A119","v":112},{"$f":"'نموذج تعبئة فواتير السلف'!J119","v":0},{"$f":"'نموذج تعبئة فواتير السلف'!E119","v":0},null,"",{"$f":"الجدول3[[#This Row],[مبالغ النموذج]]-الجدول3[[#This Row],[مبالغ المحضر]]","v":0}]
[{"$f":"'نموذج تعبئة فواتير السلف'!A120","v":113},{"$f":"'نموذج تعبئة فواتير السلف'!J120","v":0},{"$f":"'نموذج تعبئة فواتير السلف'!E120","v":0},null,"",{"$f":"الجدول3[[#This Row],[مبالغ النموذج]]-الجدول3[[#This Row],[مبالغ المحضر]]","v":0}]
[{"$f":"'نموذج تعبئة فواتير السلف'!A121","v":114},{"$f":"'نموذج تعبئة فواتير السلف'!J121","v":0},{"$f":"'نموذج تعبئة فواتير السلف'!E121","v":0},null,"",{"$f":"الجدول3[[#This Row],[مبالغ النموذج]]-الجدول3[[#This Row],[مبالغ المحضر]]","v":0}]
[{"$f":"'نموذج تعبئة فواتير السلف'!A122","v":115},{"$f":"'نموذج تعبئة فواتير السلف'!J122","v":0},{"$f":"'نموذج تعبئة فواتير السلف'!E122","v":0},null,"",{"$f":"الجدول3[[#This Row],[مبالغ النموذج]]-الجدول3[[#This Row],[مبالغ المحضر]]","v":0}]
[{"$f":"'نموذج تعبئة فواتير السلف'!A123","v":116},{"$f":"'نموذج تعبئة فواتير السلف'!J123","v":0},{"$f":"'نموذج تعبئة فواتير السلف'!E123","v":0},null,"",{"$f":"الجدول3[[#This Row],[مبالغ النموذج]]-الجدول3[[#This Row],[مبالغ المحضر]]","v":0}]
[{"$f":"'نموذج تعبئة فواتير السلف'!A124","v":117},{"$f":"'نموذج تعبئة فواتير السلف'!J124","v":0},{"$f":"'نموذج تعبئة فواتير السلف'!E124","v":0},null,"",{"$f":"الجدول3[[#This Row],[مبالغ النموذج]]-الجدول3[[#This Row],[مبالغ المحضر]]","v":0}]
[{"$f":"'نموذج تعبئة فواتير السلف'!A125","v":118},{"$f":"'نموذج تعبئة فواتير السلف'!J125","v":0},{"$f":"'نموذج تعبئة فواتير السلف'!E125","v":0},null,"",{"$f":"الجدول3[[#This Row],[مبالغ النموذج]]-الجدول3[[#This Row],[مبالغ المحضر]]","v":0}]
[{"$f":"'نموذج تعبئة فواتير السلف'!A126","v":119},{"$f":"'نموذج تعبئة فواتير السلف'!J126","v":0},{"$f":"'نموذج تعبئة فواتير السلف'!E126","v":0},null,"",{"$f":"الجدول3[[#This Row],[مبالغ النموذج]]-الجدول3[[#This Row],[مبالغ المحضر]]","v":0}]
[{"$f":"'نموذج تعبئة فواتير السلف'!A127","v":120},{"$f":"'نموذج تعبئة فواتير السلف'!J127","v":0},{"$f":"'نموذج تعبئة فواتير السلف'!E127","v":0},null,"",{"$f":"الجدول3[[#This Row],[مبالغ النموذج]]-الجدول3[[#This Row],[مبالغ المحضر]]","v":0}]
[{"$f":"'نموذج تعبئة فواتير السلف'!A128","v":121},{"$f":"'نموذج تعبئة فواتير السلف'!J128","v":0},{"$f":"'نموذج تعبئة فواتير السلف'!E128","v":0},null,"",{"$f":"الجدول3[[#This Row],[مبالغ النموذج]]-الجدول3[[#This Row],[مبالغ المحضر]]","v":0}]
[{"$f":"'نموذج تعبئة فواتير السلف'!A129","v":122},{"$f":"'نموذج تعبئة فواتير السلف'!J129","v":0},{"$f":"'نموذج تعبئة فواتير السلف'!E129","v":0},null,"",{"$f":"الجدول3[[#This Row],[مبالغ النموذج]]-الجدول3[[#This Row],[مبالغ المحضر]]","v":0}]
[{"$f":"'نموذج تعبئة فواتير السلف'!A130","v":123},{"$f":"'نموذج تعبئة فواتير السلف'!J130","v":0},{"$f":"'نموذج تعبئة فواتير السلف'!E130","v":0},null,"",{"$f":"الجدول3[[#This Row],[مبالغ النموذج]]-الجدول3[[#This Row],[مبالغ المحضر]]","v":0}]
[{"$f":"'نموذج تعبئة فواتير السلف'!A131","v":124},{"$f":"'نموذج تعبئة فواتير السلف'!J131","v":0},{"$f":"'نموذج تعبئة فواتير السلف'!E131","v":0},null,"",{"$f":"الجدول3[[#This Row],[مبالغ النموذج]]-الجدول3[[#This Row],[مبالغ المحضر]]","v":0}]
[{"$f":"'نموذج تعبئة فواتير السلف'!A132","v":125},{"$f":"'نموذج تعبئة فواتير السلف'!J132","v":0},{"$f":"'نموذج تعبئة فواتير السلف'!E132","v":0},null,"",{"$f":"الجدول3[[#This Row],[مبالغ النموذج]]-الجدول3[[#This Row],[مبالغ المحضر]]","v":0}]
[{"$f":"'نموذج تعبئة فواتير السلف'!A133","v":126},{"$f":"'نموذج تعبئة فواتير السلف'!J133","v":0},{"$f":"'نموذج تعبئة فواتير السلف'!E133","v":0},null,"",{"$f":"الجدول3[[#This Row],[مبالغ النموذج]]-الجدول3[[#This Row],[مبالغ المحضر]]","v":0}]
[{"$f":"'نموذج تعبئة فواتير السلف'!A134","v":127},{"$f":"'نموذج تعبئة فواتير السلف'!J134","v":0},{"$f":"'نموذج تعبئة فواتير السلف'!E134","v":0},null,"",{"$f":"الجدول3[[#This Row],[مبالغ النموذج]]-الجدول3[[#This Row],[مبالغ المحضر]]","v":0}]
[{"$f":"'نموذج تعبئة فواتير السلف'!A135","v":128},{"$f":"'نموذج تعبئة فواتير السلف'!J135","v":0},{"$f":"'نموذج تعبئة فواتير السلف'!E135","v":0},null,"",{"$f":"الجدول3[[#This Row],[مبالغ النموذج]]-الجدول3[[#This Row],[مبالغ المحضر]]","v":0}]
[{"$f":"'نموذج تعبئة فواتير السلف'!A136","v":129},{"$f":"'نموذج تعبئة فواتير السلف'!J136","v":0},{"$f":"'نموذج تعبئة فواتير السلف'!E136","v":0},null,"",{"$f":"الجدول3[[#This Row],[مبالغ النموذج]]-الجدول3[[#This Row],[مبالغ المحضر]]","v":0}]
[{"$f":"'نموذج تعبئة فواتير السلف'!A137","v":130},{"$f":"'نموذج تعبئة فواتير السلف'!J137","v":0},{"$f":"'نموذج تعبئة فواتير السلف'!E137","v":0},null,{"$f":"IF(F134=0,\"\",CHAR(251))","v":""},{"$f":"الجدول3[[#This Row],[مبالغ النموذج]]-الجدول3[[#This Row],[مبالغ المحضر]]","v":0}]
[{"$f":"'نموذج تعبئة فواتير السلف'!A138","v":131},{"$f":"'نموذج تعبئة فواتير السلف'!J138","v":0},{"$f":"'نموذج تعبئة فواتير السلف'!E138","v":0},null,"",{"$f":"الجدول3[[#This Row],[مبالغ النموذج]]-الجدول3[[#This Row],[مبالغ المحضر]]","v":0}]
[{"$f":"'نموذج تعبئة فواتير السلف'!A139","v":132},{"$f":"'نموذج تعبئة فواتير السلف'!J139","v":0},{"$f":"'نموذج تعبئة فواتير السلف'!E139","v":0},null,"",{"$f":"الجدول3[[#This Row],[مبالغ النموذج]]-الجدول3[[#This Row],[مبالغ المحضر]]","v":0}]
[{"$f":"'نموذج تعبئة فواتير السلف'!A140","v":133},{"$f":"'نموذج تعبئة فواتير السلف'!J140","v":0},{"$f":"'نموذج تعبئة فواتير السلف'!E140","v":0},null,"",{"$f":"الجدول3[[#This Row],[مبالغ النموذج]]-الجدول3[[#This Row],[مبالغ المحضر]]","v":0}]
[{"$f":"'نموذج تعبئة فواتير السلف'!A141","v":134},{"$f":"'نموذج تعبئة فواتير السلف'!J141","v":0},{"$f":"'نموذج تعبئة فواتير السلف'!E141","v":0},null,"",{"$f":"الجدول3[[#This Row],[مبالغ النموذج]]-الجدول3[[#This Row],[مبالغ المحضر]]","v":0}]
[{"$f":"'نموذج تعبئة فواتير السلف'!A142","v":135},{"$f":"'نموذج تعبئة فواتير السلف'!J142","v":0},{"$f":"'نموذج تعبئة فواتير السلف'!E142","v":0},null,"",{"$f":"الجدول3[[#This Row],[مبالغ النموذج]]-الجدول3[[#This Row],[مبالغ المحضر]]","v":0}]
[{"$f":"'نموذج تعبئة فواتير السلف'!A143","v":136},{"$f":"'نموذج تعبئة فواتير السلف'!J143","v":0},{"$f":"'نموذج تعبئة فواتير السلف'!E143","v":0},null,"",{"$f":"الجدول3[[#This Row],[مبالغ النموذج]]-الجدول3[[#This Row],[مبالغ المحضر]]","v":0}]
[{"$f":"'نموذج تعبئة فواتير السلف'!A144","v":137},{"$f":"'نموذج تعبئة فواتير السلف'!J144","v":0},{"$f":"'نموذج تعبئة فواتير السلف'!E144","v":0},null,"",{"$f":"الجدول3[[#This Row],[مبالغ النموذج]]-الجدول3[[#This Row],[مبالغ المحضر]]","v":0}]
[{"$f":"'نموذج تعبئة فواتير السلف'!A145","v":138},{"$f":"'نموذج تعبئة فواتير السلف'!J145","v":0},{"$f":"'نموذج تعبئة فواتير السلف'!E145","v":0},null,"",{"$f":"الجدول3[[#This Row],[مبالغ النموذج]]-الجدول3[[#This Row],[مبالغ المحضر]]","v":0}]
[{"$f":"'نموذج تعبئة فواتير السلف'!A146","v":139},{"$f":"'نموذج تعبئة فواتير السلف'!J146","v":0},{"$f":"'نموذج تعبئة فواتير السلف'!E146","v":0},null,"",{"$f":"الجدول3[[#This Row],[مبالغ النموذج]]-الجدول3[[#This Row],[مبالغ المحضر]]","v":0}]
[{"$f":"'نموذج تعبئة فواتير السلف'!A147","v":140},{"$f":"'نموذج تعبئة فواتير السلف'!J147","v":0},{"$f":"'نموذج تعبئة فواتير السلف'!E147","v":0},null,"",{"$f":"الجدول3[[#This Row],[مبالغ النموذج]]-الجدول3[[#This Row],[مبالغ المحضر]]","v":0}]
[{"$f":"'نموذج تعبئة فواتير السلف'!A148","v":141},{"$f":"'نموذج تعبئة فواتير السلف'!J148","v":0},{"$f":"'نموذج تعبئة فواتير السلف'!E148","v":0},null,"",{"$f":"الجدول3[[#This Row],[مبالغ النموذج]]-الجدول3[[#This Row],[مبالغ المحضر]]","v":0}]
[{"$f":"'نموذج تعبئة فواتير السلف'!A149","v":142},{"$f":"'نموذج تعبئة فواتير السلف'!J149","v":0},{"$f":"'نموذج تعبئة فواتير السلف'!E149","v":0},null,"",{"$f":"الجدول3[[#This Row],[مبالغ النموذج]]-الجدول3[[#This Row],[مبالغ المحضر]]","v":0}]
[{"$f":"'نموذج تعبئة فواتير السلف'!A150","v":143},{"$f":"'نموذج تعبئة فواتير السلف'!J150","v":0},{"$f":"'نموذج تعبئة فواتير السلف'!E150","v":0},null,"",{"$f":"الجدول3[[#This Row],[مبالغ النموذج]]-الجدول3[[#This Row],[مبالغ المحضر]]","v":0}]
[{"$f":"'نموذج تعبئة فواتير السلف'!A151","v":144},{"$f":"'نموذج تعبئة فواتير السلف'!J151","v":0},{"$f":"'نموذج تعبئة فواتير السلف'!E151","v":0},null,"",{"$f":"الجدول3[[#This Row],[مبالغ النموذج]]-الجدول3[[#This Row],[مبالغ المحضر]]","v":0}]
[{"$f":"'نموذج تعبئة فواتير السلف'!A152","v":145},{"$f":"'نموذج تعبئة فواتير السلف'!J152","v":0},{"$f":"'نموذج تعبئة فواتير السلف'!E152","v":0},null,"",{"$f":"الجدول3[[#This Row],[مبالغ النموذج]]-الجدول3[[#This Row],[مبالغ المحضر]]","v":0}]
[{"$f":"'نموذج تعبئة فواتير السلف'!A153","v":146},{"$f":"'نموذج تعبئة فواتير السلف'!J153","v":0},{"$f":"'نموذج تعبئة فواتير السلف'!E153","v":0},null,"",{"$f":"الجدول3[[#This Row],[مبالغ النموذج]]-الجدول3[[#This Row],[مبالغ المحضر]]","v":0}]
[{"$f":"'نموذج تعبئة فواتير السلف'!A154","v":147},{"$f":"'نموذج تعبئة فواتير السلف'!J154","v":0},{"$f":"'نموذج تعبئة فواتير السلف'!E154","v":0},null,"",{"$f":"الجدول3[[#This Row],[مبالغ النموذج]]-الجدول3[[#This Row],[مبالغ المحضر]]","v":0}]
[{"$f":"'نموذج تعبئة فواتير السلف'!A155","v":148},{"$f":"'نموذج تعبئة فواتير السلف'!J155","v":0},{"$f":"'نموذج تعبئة فواتير السلف'!E155","v":0},null,"",{"$f":"الجدول3[[#This Row],[مبالغ النموذج]]-الجدول3[[#This Row],[مبالغ المحضر]]","v":0}]
[{"$f":"'نموذج تعبئة فواتير السلف'!A156","v":149},{"$f":"'نموذج تعبئة فواتير السلف'!J156","v":0},{"$f":"'نموذج تعبئة فواتير السلف'!E156","v":0},null,"",{"$f":"الجدول3[[#This Row],[مبالغ النموذج]]-الجدول3[[#This Row],[مبالغ المحضر]]","v":0}]
[{"$f":"'نموذج تعبئة فواتير السلف'!A157","v":150},{"$f":"'نموذج تعبئة فواتير السلف'!J157","v":0},{"$f":"'نموذج تعبئة فواتير السلف'!E157","v":0},null,"",{"$f":"الجدول3[[#This Row],[مبالغ النموذج]]-الجدول3[[#This Row],[مبالغ المحضر]]","v":0}]
[{"$f":"'نموذج تعبئة فواتير السلف'!A158","v":151},{"$f":"'نموذج تعبئة فواتير السلف'!J158","v":0},{"$f":"'نموذج تعبئة فواتير السلف'!E158","v":0},null,"",{"$f":"الجدول3[[#This Row],[مبالغ النموذج]]-الجدول3[[#This Row],[مبالغ المحضر]]","v":0}]
[{"$f":"'نموذج تعبئة فواتير السلف'!A159","v":152},{"$f":"'نموذج تعبئة فواتير السلف'!J159","v":0},{"$f":"'نموذج تعبئة فواتير السلف'!E159","v":0},null,"",{"$f":"الجدول3[[#This Row],[مبالغ النموذج]]-الجدول3[[#This Row],[مبالغ المحضر]]","v":0}]
[{"$f":"'نموذج تعبئة فواتير السلف'!A160","v":153},{"$f":"'نموذج تعبئة فواتير السلف'!J160","v":0},{"$f":"'نموذج تعبئة فواتير السلف'!E160","v":0},null,"",{"$f":"الجدول3[[#This Row],[مبالغ النموذج]]-الجدول3[[#This Row],[مبالغ المحضر]]","v":0}]
[{"$f":"'نموذج تعبئة فواتير السلف'!A161","v":154},{"$f":"'نموذج تعبئة فواتير السلف'!J161","v":0},{"$f":"'نموذج تعبئة فواتير السلف'!E161","v":0},null,"",{"$f":"الجدول3[[#This Row],[مبالغ النموذج]]-الجدول3[[#This Row],[مبالغ المحضر]]","v":0}]
[{"$f":"'نموذج تعبئة فواتير السلف'!A162","v":155},{"$f":"'نموذج تعبئة فواتير السلف'!J162","v":0},{"$f":"'نموذج تعبئة فواتير السلف'!E162","v":0},null,"",{"$f":"الجدول3[[#This Row],[مبالغ النموذج]]-الجدول3[[#This Row],[مبالغ المحضر]]","v":0}]
[{"$f":"'نموذج تعبئة فواتير السلف'!A163","v":156},{"$f":"'نموذج تعبئة فواتير السلف'!J163","v":0},{"$f":"'نموذج تعبئة فواتير السلف'!E163","v":0},null,"",{"$f":"الجدول3[[#This Row],[مبالغ النموذج]]-الجدول3[[#This Row],[مبالغ المحضر]]","v":0}]
[{"$f":"'نموذج تعبئة فواتير السلف'!A164","v":157},{"$f":"'نموذج تعبئة فواتير السلف'!J164","v":0},{"$f":"'نموذج تعبئة فواتير السلف'!E164","v":0},null,"",{"$f":"الجدول3[[#This Row],[مبالغ النموذج]]-الجدول3[[#This Row],[مبالغ المحضر]]","v":0}]
[{"$f":"'نموذج تعبئة فواتير السلف'!A165","v":158},{"$f":"'نموذج تعبئة فواتير السلف'!J165","v":0},{"$f":"'نموذج تعبئة فواتير السلف'!E165","v":0},null,"",{"$f":"الجدول3[[#This Row],[مبالغ النموذج]]-الجدول3[[#This Row],[مبالغ المحضر]]","v":0}]
[{"$f":"'نموذج تعبئة فواتير السلف'!A166","v":159},{"$f":"'نموذج تعبئة فواتير السلف'!J166","v":0},{"$f":"'نموذج تعبئة فواتير السلف'!E166","v":0},null,"",{"$f":"الجدول3[[#This Row],[مبالغ النموذج]]-الجدول3[[#This Row],[مبالغ المحضر]]","v":0}]
[{"$f":"'نموذج تعبئة فواتير السلف'!A167","v":160},{"$f":"'نموذج تعبئة فواتير السلف'!J167","v":0},{"$f":"'نموذج تعبئة فواتير السلف'!E167","v":0},null,"",{"$f":"الجدول3[[#This Row],[مبالغ النموذج]]-الجدول3[[#This Row],[مبالغ المحضر]]","v":0}]
[{"$f":"'نموذج تعبئة فواتير السلف'!A168","v":161},{"$f":"'نموذج تعبئة فواتير السلف'!J168","v":0},{"$f":"'نموذج تعبئة فواتير السلف'!E168","v":0},null,"",{"$f":"الجدول3[[#This Row],[مبالغ النموذج]]-الجدول3[[#This Row],[مبالغ المحضر]]","v":0}]
[{"$f":"'نموذج تعبئة فواتير السلف'!A169","v":162},{"$f":"'نموذج تعبئة فواتير السلف'!J169","v":0},{"$f":"'نموذج تعبئة فواتير السلف'!E169","v":0},null,"",{"$f":"الجدول3[[#This Row],[مبالغ النموذج]]-الجدول3[[#This Row],[مبالغ المحضر]]","v":0}]
[{"$f":"'نموذج تعبئة فواتير السلف'!A170","v":163},{"$f":"'نموذج تعبئة فواتير السلف'!J170","v":0},{"$f":"'نموذج تعبئة فواتير السلف'!E170","v":0},null,"",{"$f":"الجدول3[[#This Row],[مبالغ النموذج]]-الجدول3[[#This Row],[مبالغ المحضر]]","v":0}]
[{"$f":"'نموذج تعبئة فواتير السلف'!A171","v":164},{"$f":"'نموذج تعبئة فواتير السلف'!J171","v":0},{"$f":"'نموذج تعبئة فواتير السلف'!E171","v":0},null,"",{"$f":"الجدول3[[#This Row],[مبالغ النموذج]]-الجدول3[[#This Row],[مبالغ المحضر]]","v":0}]
[{"$f":"'نموذج تعبئة فواتير السلف'!A172","v":165},{"$f":"'نموذج تعبئة فواتير السلف'!J172","v":0},{"$f":"'نموذج تعبئة فواتير السلف'!E172","v":0},null,"",{"$f":"الجدول3[[#This Row],[مبالغ النموذج]]-الجدول3[[#This Row],[مبالغ المحضر]]","v":0}]
[{"$f":"'نموذج تعبئة فواتير السلف'!A173","v":166},{"$f":"'نموذج تعبئة فواتير السلف'!J173","v":0},{"$f":"'نموذج تعبئة فواتير السلف'!E173","v":0},null,"",{"$f":"الجدول3[[#This Row],[مبالغ النموذج]]-الجدول3[[#This Row],[مبالغ المحضر]]","v":0}]
[{"$f":"'نموذج تعبئة فواتير السلف'!A174","v":167},{"$f":"'نموذج تعبئة فواتير السلف'!J174","v":0},{"$f":"'نموذج تعبئة فواتير السلف'!E174","v":0},null,"",{"$f":"الجدول3[[#This Row],[مبالغ النموذج]]-الجدول3[[#This Row],[مبالغ المحضر]]","v":0}]
[{"$f":"'نموذج تعبئة فواتير السلف'!A175","v":168},{"$f":"'نموذج تعبئة فواتير السلف'!J175","v":0},{"$f":"'نموذج تعبئة فواتير السلف'!E175","v":0},null,"",{"$f":"الجدول3[[#This Row],[مبالغ النموذج]]-الجدول3[[#This Row],[مبالغ المحضر]]","v":0}]
[{"$f":"'نموذج تعبئة فواتير السلف'!A176","v":169},{"$f":"'نموذج تعبئة فواتير السلف'!J176","v":0},{"$f":"'نموذج تعبئة فواتير السلف'!E176","v":0},null,"",{"$f":"الجدول3[[#This Row],[مبالغ النموذج]]-الجدول3[[#This Row],[مبالغ المحضر]]","v":0}]
[{"$f":"'نموذج تعبئة فواتير السلف'!A177","v":170},{"$f":"'نموذج تعبئة فواتير السلف'!J177","v":0},{"$f":"'نموذج تعبئة فواتير السلف'!E177","v":0},null,"",{"$f":"الجدول3[[#This Row],[مبالغ النموذج]]-الجدول3[[#This Row],[مبالغ المحضر]]","v":0}]
[{"$f":"'نموذج تعبئة فواتير السلف'!A178","v":171},{"$f":"'نموذج تعبئة فواتير السلف'!J178","v":0},{"$f":"'نموذج تعبئة فواتير السلف'!E178","v":0},null,"",{"$f":"الجدول3[[#This Row],[مبالغ النموذج]]-الجدول3[[#This Row],[مبالغ المحضر]]","v":0}]
[{"$f":"'نموذج تعبئة فواتير السلف'!A179","v":172},{"$f":"'نموذج تعبئة فواتير السلف'!J179","v":0},{"$f":"'نموذج تعبئة فواتير السلف'!E179","v":0},null,"",{"$f":"الجدول3[[#This Row],[مبالغ النموذج]]-الجدول3[[#This Row],[مبالغ المحضر]]","v":0}]
[{"$f":"'نموذج تعبئة فواتير السلف'!A180","v":173},{"$f":"'نموذج تعبئة فواتير السلف'!J180","v":0},{"$f":"'نموذج تعبئة فواتير السلف'!E180","v":0},null,"",{"$f":"الجدول3[[#This Row],[مبالغ النموذج]]-الجدول3[[#This Row],[مبالغ المحضر]]","v":0}]
[{"$f":"'نموذج تعبئة فواتير السلف'!A181","v":174},{"$f":"'نموذج تعبئة فواتير السلف'!J181","v":0},{"$f":"'نموذج تعبئة فواتير السلف'!E181","v":0},null,"",{"$f":"الجدول3[[#This Row],[مبالغ النموذج]]-الجدول3[[#This Row],[مبالغ المحضر]]","v":0}]
[{"$f":"'نموذج تعبئة فواتير السلف'!A182","v":175},{"$f":"'نموذج تعبئة فواتير السلف'!J182","v":0},{"$f":"'نموذج تعبئة فواتير السلف'!E182","v":0},null,"",{"$f":"الجدول3[[#This Row],[مبالغ النموذج]]-الجدول3[[#This Row],[مبالغ المحضر]]","v":0}]
[{"$f":"'نموذج تعبئة فواتير السلف'!A183","v":176},{"$f":"'نموذج تعبئة فواتير السلف'!J183","v":0},{"$f":"'نموذج تعبئة فواتير السلف'!E183","v":0},null,"",{"$f":"الجدول3[[#This Row],[مبالغ النموذج]]-الجدول3[[#This Row],[مبالغ المحضر]]","v":0}]
[{"$f":"'نموذج تعبئة فواتير السلف'!A184","v":177},{"$f":"'نموذج تعبئة فواتير السلف'!J184","v":0},{"$f":"'نموذج تعبئة فواتير السلف'!E184","v":0},null,"",{"$f":"الجدول3[[#This Row],[مبالغ النموذج]]-الجدول3[[#This Row],[مبالغ المحضر]]","v":0}]
[{"$f":"'نموذج تعبئة فواتير السلف'!A185","v":178},{"$f":"'نموذج تعبئة فواتير السلف'!J185","v":0},{"$f":"'نموذج تعبئة فواتير السلف'!E185","v":0},null,"",{"$f":"الجدول3[[#This Row],[مبالغ النموذج]]-الجدول3[[#This Row],[مبالغ المحضر]]","v":0}]
[{"$f":"'نموذج تعبئة فواتير السلف'!A186","v":179},{"$f":"'نموذج تعبئة فواتير السلف'!J186","v":0},{"$f":"'نموذج تعبئة فواتير السلف'!E186","v":0},null,"",{"$f":"الجدول3[[#This Row],[مبالغ النموذج]]-الجدول3[[#This Row],[مبالغ المحضر]]","v":0}]
[{"$f":"'نموذج تعبئة فواتير السلف'!A187","v":180},{"$f":"'نموذج تعبئة فواتير السلف'!J187","v":0},{"$f":"'نموذج تعبئة فواتير السلف'!E187","v":0},null,"",{"$f":"الجدول3[[#This Row],[مبالغ النموذج]]-الجدول3[[#This Row],[مبالغ المحضر]]","v":0}]
[{"$f":"'نموذج تعبئة فواتير السلف'!A188","v":181},{"$f":"'نموذج تعبئة فواتير السلف'!J188","v":0},{"$f":"'نموذج تعبئة فواتير السلف'!E188","v":0},null,"",{"$f":"الجدول3[[#This Row],[مبالغ النموذج]]-الجدول3[[#This Row],[مبالغ المحضر]]","v":0}]
[{"$f":"'نموذج تعبئة فواتير السلف'!A189","v":182},{"$f":"'نموذج تعبئة فواتير السلف'!J189","v":0},{"$f":"'نموذج تعبئة فواتير السلف'!E189","v":0},null,"",{"$f":"الجدول3[[#This Row],[مبالغ النموذج]]-الجدول3[[#This Row],[مبالغ المحضر]]","v":0}]
[{"$f":"'نموذج تعبئة فواتير السلف'!A190","v":183},{"$f":"'نموذج تعبئة فواتير السلف'!J190","v":0},{"$f":"'نموذج تعبئة فواتير السلف'!E190","v":0},null,"",{"$f":"الجدول3[[#This Row],[مبالغ النموذج]]-الجدول3[[#This Row],[مبالغ المحضر]]","v":0}]
[{"$f":"'نموذج تعبئة فواتير السلف'!A191","v":184},{"$f":"'نموذج تعبئة فواتير السلف'!J191","v":0},{"$f":"'نموذج تعبئة فواتير السلف'!E191","v":0},null,"",{"$f":"الجدول3[[#This Row],[مبالغ النموذج]]-الجدول3[[#This Row],[مبالغ المحضر]]","v":0}]
[{"$f":"'نموذج تعبئة فواتير السلف'!A192","v":185},{"$f":"'نموذج تعبئة فواتير السلف'!J192","v":0},{"$f":"'نموذج تعبئة فواتير السلف'!E192","v":0},null,"",{"$f":"الجدول3[[#This Row],[مبالغ النموذج]]-الجدول3[[#This Row],[مبالغ المحضر]]","v":0}]
[{"$f":"'نموذج تعبئة فواتير السلف'!A193","v":186},{"$f":"'نموذج تعبئة فواتير السلف'!J193","v":0},{"$f":"'نموذج تعبئة فواتير السلف'!E193","v":0},null,"",{"$f":"الجدول3[[#This Row],[مبالغ النموذج]]-الجدول3[[#This Row],[مبالغ المحضر]]","v":0}]
[{"$f":"'نموذج تعبئة فواتير السلف'!A194","v":187},{"$f":"'نموذج تعبئة فواتير السلف'!J194","v":0},{"$f":"'نموذج تعبئة فواتير السلف'!E194","v":0},null,"",{"$f":"الجدول3[[#This Row],[مبالغ النموذج]]-الجدول3[[#This Row],[مبالغ المحضر]]","v":0}]
[{"$f":"'نموذج تعبئة فواتير السلف'!A195","v":188},{"$f":"'نموذج تعبئة فواتير السلف'!J195","v":0},{"$f":"'نموذج تعبئة فواتير السلف'!E195","v":0},null,"",{"$f":"الجدول3[[#This Row],[مبالغ النموذج]]-الجدول3[[#This Row],[مبالغ المحضر]]","v":0}]
[{"$f":"'نموذج تعبئة فواتير السلف'!A196","v":189},{"$f":"'نموذج تعبئة فواتير السلف'!J196","v":0},{"$f":"'نموذج تعبئة فواتير السلف'!E196","v":0},null,"",{"$f":"الجدول3[[#This Row],[مبالغ النموذج]]-الجدول3[[#This Row],[مبالغ المحضر]]","v":0}]
[{"$f":"'نموذج تعبئة فواتير السلف'!A197","v":190},{"$f":"'نموذج تعبئة فواتير السلف'!J197","v":0},{"$f":"'نموذج تعبئة فواتير السلف'!E197","v":0},null,"",{"$f":"الجدول3[[#This Row],[مبالغ النموذج]]-الجدول3[[#This Row],[مبالغ المحضر]]","v":0}]
[{"$f":"'نموذج تعبئة فواتير السلف'!A198","v":191},{"$f":"'نموذج تعبئة فواتير السلف'!J198","v":0},{"$f":"'نموذج تعبئة فواتير السلف'!E198","v":0},null,"",{"$f":"الجدول3[[#This Row],[مبالغ النموذج]]-الجدول3[[#This Row],[مبالغ المحضر]]","v":0}]
[{"$f":"'نموذج تعبئة فواتير السلف'!A199","v":192},{"$f":"'نموذج تعبئة فواتير السلف'!J199","v":0},{"$f":"'نموذج تعبئة فواتير السلف'!E199","v":0},null,"",{"$f":"الجدول3[[#This Row],[مبالغ النموذج]]-الجدول3[[#This Row],[مبالغ المحضر]]","v":0}]
[{"$f":"'نموذج تعبئة فواتير السلف'!A200","v":193},{"$f":"'نموذج تعبئة فواتير السلف'!J200","v":0},{"$f":"'نموذج تعبئة فواتير السلف'!E200","v":0},null,"",{"$f":"الجدول3[[#This Row],[مبالغ النموذج]]-الجدول3[[#This Row],[مبالغ المحضر]]","v":0}]
[{"$f":"'نموذج تعبئة فواتير السلف'!A201","v":194},{"$f":"'نموذج تعبئة فواتير السلف'!J201","v":0},{"$f":"'نموذج تعبئة فواتير السلف'!E201","v":0},null,{"$f":"IF(F198=0,\"\",CHAR(251))","v":""},{"$f":"الجدول3[[#This Row],[مبالغ النموذج]]-الجدول3[[#This Row],[مبالغ المحضر]]","v":0}]
[{"$f":"'نموذج تعبئة فواتير السلف'!A202","v":195},{"$f":"'نموذج تعبئة فواتير السلف'!J202","v":0},{"$f":"'نموذج تعبئة فواتير السلف'!E202","v":0},null,"",{"$f":"الجدول3[[#This Row],[مبالغ النموذج]]-الجدول3[[#This Row],[مبالغ المحضر]]","v":0}]
[{"$f":"'نموذج تعبئة فواتير السلف'!A203","v":196},{"$f":"'نموذج تعبئة فواتير السلف'!J203","v":0},{"$f":"'نموذج تعبئة فواتير السلف'!E203","v":0},null,"",{"$f":"الجدول3[[#This Row],[مبالغ النموذج]]-الجدول3[[#This Row],[مبالغ المحضر]]","v":0}]
[{"$f":"'نموذج تعبئة فواتير السلف'!A204","v":197},{"$f":"'نموذج تعبئة فواتير السلف'!J204","v":0},{"$f":"'نموذج تعبئة فواتير السلف'!E204","v":0},null,"",{"$f":"الجدول3[[#This Row],[مبالغ النموذج]]-الجدول3[[#This Row],[مبالغ المحضر]]","v":0}]
[{"$f":"'نموذج تعبئة فواتير السلف'!A205","v":198},{"$f":"'نموذج تعبئة فواتير السلف'!J205","v":0},{"$f":"'نموذج تعبئة فواتير السلف'!E205","v":0},null,"",{"$f":"الجدول3[[#This Row],[مبالغ النموذج]]-الجدول3[[#This Row],[مبالغ المحضر]]","v":0}]
[{"$f":"'نموذج تعبئة فواتير السلف'!A206","v":199},{"$f":"'نموذج تعبئة فواتير السلف'!J206","v":0},{"$f":"'نموذج تعبئة فواتير السلف'!E206","v":0},null,"",{"$f":"الجدول3[[#This Row],[مبالغ النموذج]]-الجدول3[[#This Row],[مبالغ المحضر]]","v":0}]
[{"$f":"'نموذج تعبئة فواتير السلف'!A207","v":200},{"$f":"'نموذج تعبئة فواتير السلف'!J207","v":0},{"$f":"'نموذج تعبئة فواتير السلف'!E207","v":0},null,"",{"$f":"الجدول3[[#This Row],[مبالغ النموذج]]-الجدول3[[#This Row],[مبالغ المحضر]]","v":0}]
[{"$f":"'نموذج تعبئة فواتير السلف'!A208","v":201},{"$f":"'نموذج تعبئة فواتير السلف'!J208","v":0},{"$f":"'نموذج تعبئة فواتير السلف'!E208","v":0},null,"",{"$f":"الجدول3[[#This Row],[مبالغ النموذج]]-الجدول3[[#This Row],[مبالغ المحضر]]","v":0}]
[{"$f":"'نموذج تعبئة فواتير السلف'!A209","v":202},{"$f":"'نموذج تعبئة فواتير السلف'!J209","v":0},{"$f":"'نموذج تعبئة فواتير السلف'!E209","v":0},null,"",{"$f":"الجدول3[[#This Row],[مبالغ النموذج]]-الجدول3[[#This Row],[مبالغ المحضر]]","v":0}]
[{"$f":"'نموذج تعبئة فواتير السلف'!A210","v":203},{"$f":"'نموذج تعبئة فواتير السلف'!J210","v":0},{"$f":"'نموذج تعبئة فواتير السلف'!E210","v":0},null,"",{"$f":"الجدول3[[#This Row],[مبالغ النموذج]]-الجدول3[[#This Row],[مبالغ المحضر]]","v":0}]
[{"$f":"'نموذج تعبئة فواتير السلف'!A211","v":204},{"$f":"'نموذج تعبئة فواتير السلف'!J211","v":0},{"$f":"'نموذج تعبئة فواتير السلف'!E211","v":0},null,"",{"$f":"الجدول3[[#This Row],[مبالغ النموذج]]-الجدول3[[#This Row],[مبالغ المحضر]]","v":0}]
[{"$f":"'نموذج تعبئة فواتير السلف'!A212","v":205},{"$f":"'نموذج تعبئة فواتير السلف'!J212","v":0},{"$f":"'نموذج تعبئة فواتير السلف'!E212","v":0},null,"",{"$f":"الجدول3[[#This Row],[مبالغ النموذج]]-الجدول3[[#This Row],[مبالغ المحضر]]","v":0}]
[{"$f":"'نموذج تعبئة فواتير السلف'!A213","v":206},{"$f":"'نموذج تعبئة فواتير السلف'!J213","v":0},{"$f":"'نموذج تعبئة فواتير السلف'!E213","v":0},null,"",{"$f":"الجدول3[[#This Row],[مبالغ النموذج]]-الجدول3[[#This Row],[مبالغ المحضر]]","v":0}]
[{"$f":"'نموذج تعبئة فواتير السلف'!A214","v":207},{"$f":"'نموذج تعبئة فواتير السلف'!J214","v":0},{"$f":"'نموذج تعبئة فواتير السلف'!E214","v":0},null,"",{"$f":"الجدول3[[#This Row],[مبالغ النموذج]]-الجدول3[[#This Row],[مبالغ المحضر]]","v":0}]
[{"$f":"'نموذج تعبئة فواتير السلف'!A215","v":208},{"$f":"'نموذج تعبئة فواتير السلف'!J215","v":0},{"$f":"'نموذج تعبئة فواتير السلف'!E215","v":0},null,"",{"$f":"الجدول3[[#This Row],[مبالغ النموذج]]-الجدول3[[#This Row],[مبالغ المحضر]]","v":0}]
[{"$f":"'نموذج تعبئة فواتير السلف'!A216","v":209},{"$f":"'نموذج تعبئة فواتير السلف'!J216","v":0},{"$f":"'نموذج تعبئة فواتير السلف'!E216","v":0},null,"",{"$f":"الجدول3[[#This Row],[مبالغ النموذج]]-الجدول3[[#This Row],[مبالغ المحضر]]","v":0}]
[{"$f":"'نموذج تعبئة فواتير السلف'!A217","v":210},{"$f":"'نموذج تعبئة فواتير السلف'!J217","v":0},{"$f":"'نموذج تعبئة فواتير السلف'!E217","v":0},null,"",{"$f":"الجدول3[[#This Row],[مبالغ النموذج]]-الجدول3[[#This Row],[مبالغ المحضر]]","v":0}]
[{"$f":"'نموذج تعبئة فواتير السلف'!A218","v":211},{"$f":"'نموذج تعبئة فواتير السلف'!J218","v":0},{"$f":"'نموذج تعبئة فواتير السلف'!E218","v":0},null,"",{"$f":"الجدول3[[#This Row],[مبالغ النموذج]]-الجدول3[[#This Row],[مبالغ المحضر]]","v":0}]
[{"$f":"'نموذج تعبئة فواتير السلف'!A219","v":212},{"$f":"'نموذج تعبئة فواتير السلف'!J219","v":0},{"$f":"'نموذج تعبئة فواتير السلف'!E219","v":0},null,"",{"$f":"الجدول3[[#This Row],[مبالغ النموذج]]-الجدول3[[#This Row],[مبالغ المحضر]]","v":0}]
[{"$f":"'نموذج تعبئة فواتير السلف'!A220","v":213},{"$f":"'نموذج تعبئة فواتير السلف'!J220","v":0},{"$f":"'نموذج تعبئة فواتير السلف'!E220","v":0},null,"",{"$f":"الجدول3[[#This Row],[مبالغ النموذج]]-الجدول3[[#This Row],[مبالغ المحضر]]","v":0}]
[{"$f":"'نموذج تعبئة فواتير السلف'!A221","v":214},{"$f":"'نموذج تعبئة فواتير السلف'!J221","v":0},{"$f":"'نموذج تعبئة فواتير السلف'!E221","v":0},null,"",{"$f":"الجدول3[[#This Row],[مبالغ النموذج]]-الجدول3[[#This Row],[مبالغ المحضر]]","v":0}]
[{"$f":"'نموذج تعبئة فواتير السلف'!A222","v":215},{"$f":"'نموذج تعبئة فواتير السلف'!J222","v":0},{"$f":"'نموذج تعبئة فواتير السلف'!E222","v":0},null,"",{"$f":"الجدول3[[#This Row],[مبالغ النموذج]]-الجدول3[[#This Row],[مبالغ المحضر]]","v":0}]
[{"$f":"'نموذج تعبئة فواتير السلف'!A223","v":216},{"$f":"'نموذج تعبئة فواتير السلف'!J223","v":0},{"$f":"'نموذج تعبئة فواتير السلف'!E223","v":0},null,"",{"$f":"الجدول3[[#This Row],[مبالغ النموذج]]-الجدول3[[#This Row],[مبالغ المحضر]]","v":0}]
[{"$f":"'نموذج تعبئة فواتير السلف'!A224","v":217},{"$f":"'نموذج تعبئة فواتير السلف'!J224","v":0},{"$f":"'نموذج تعبئة فواتير السلف'!E224","v":0},null,"",{"$f":"الجدول3[[#This Row],[مبالغ النموذج]]-الجدول3[[#This Row],[مبالغ المحضر]]","v":0}]
[{"$f":"'نموذج تعبئة فواتير السلف'!A225","v":218},{"$f":"'نموذج تعبئة فواتير السلف'!J225","v":0},{"$f":"'نموذج تعبئة فواتير السلف'!E225","v":0},null,"",{"$f":"الجدول3[[#This Row],[مبالغ النموذج]]-الجدول3[[#This Row],[مبالغ المحضر]]","v":0}]
[{"$f":"'نموذج تعبئة فواتير السلف'!A226","v":219},{"$f":"'نموذج تعبئة فواتير السلف'!J226","v":0},{"$f":"'نموذج تعبئة فواتير السلف'!E226","v":0},null,"",{"$f":"الجدول3[[#This Row],[مبالغ النموذج]]-الجدول3[[#This Row],[مبالغ المحضر]]","v":0}]
[{"$f":"'نموذج تعبئة فواتير السلف'!A227","v":220},{"$f":"'نموذج تعبئة فواتير السلف'!J227","v":0},{"$f":"'نموذج تعبئة فواتير السلف'!E227","v":0},null,"",{"$f":"الجدول3[[#This Row],[مبالغ النموذج]]-الجدول3[[#This Row],[مبالغ المحضر]]","v":0}]
[{"$f":"'نموذج تعبئة فواتير السلف'!A228","v":221},{"$f":"'نموذج تعبئة فواتير السلف'!J228","v":0},{"$f":"'نموذج تعبئة فواتير السلف'!E228","v":0},null,"",{"$f":"الجدول3[[#This Row],[مبالغ النموذج]]-الجدول3[[#This Row],[مبالغ المحضر]]","v":0}]
[{"$f":"'نموذج تعبئة فواتير السلف'!A229","v":222},{"$f":"'نموذج تعبئة فواتير السلف'!J229","v":0},{"$f":"'نموذج تعبئة فواتير السلف'!E229","v":0},null,"",{"$f":"الجدول3[[#This Row],[مبالغ النموذج]]-الجدول3[[#This Row],[مبالغ المحضر]]","v":0}]
[{"$f":"'نموذج تعبئة فواتير السلف'!A230","v":223},{"$f":"'نموذج تعبئة فواتير السلف'!J230","v":0},{"$f":"'نموذج تعبئة فواتير السلف'!E230","v":0},null,"",{"$f":"الجدول3[[#This Row],[مبالغ النموذج]]-الجدول3[[#This Row],[مبالغ المحضر]]","v":0}]
[{"$f":"'نموذج تعبئة فواتير السلف'!A231","v":224},{"$f":"'نموذج تعبئة فواتير السلف'!J231","v":0},{"$f":"'نموذج تعبئة فواتير السلف'!E231","v":0},null,"",{"$f":"الجدول3[[#This Row],[مبالغ النموذج]]-الجدول3[[#This Row],[مبالغ المحضر]]","v":0}]
[{"$f":"'نموذج تعبئة فواتير السلف'!A232","v":225},{"$f":"'نموذج تعبئة فواتير السلف'!J232","v":0},{"$f":"'نموذج تعبئة فواتير السلف'!E232","v":0},null,"",{"$f":"الجدول3[[#This Row],[مبالغ النموذج]]-الجدول3[[#This Row],[مبالغ المحضر]]","v":0}]
[{"$f":"'نموذج تعبئة فواتير السلف'!A233","v":226},{"$f":"'نموذج تعبئة فواتير السلف'!J233","v":0},{"$f":"'نموذج تعبئة فواتير السلف'!E233","v":0},null,"",{"$f":"الجدول3[[#This Row],[مبالغ النموذج]]-الجدول3[[#This Row],[مبالغ المحضر]]","v":0}]
[{"$f":"'نموذج تعبئة فواتير السلف'!A234","v":227},{"$f":"'نموذج تعبئة فواتير السلف'!J234","v":0},{"$f":"'نموذج تعبئة فواتير السلف'!E234","v":0},null,"",{"$f":"الجدول3[[#This Row],[مبالغ النموذج]]-الجدول3[[#This Row],[مبالغ المحضر]]","v":0}]
[{"$f":"'نموذج تعبئة فواتير السلف'!A235","v":228},{"$f":"'نموذج تعبئة فواتير السلف'!J235","v":0},{"$f":"'نموذج تعبئة فواتير السلف'!E235","v":0},null,"",{"$f":"الجدول3[[#This Row],[مبالغ النموذج]]-الجدول3[[#This Row],[مبالغ المحضر]]","v":0}]
[{"$f":"'نموذج تعبئة فواتير السلف'!A236","v":229},{"$f":"'نموذج تعبئة فواتير السلف'!J236","v":0},{"$f":"'نموذج تعبئة فواتير السلف'!E236","v":0},null,"",{"$f":"الجدول3[[#This Row],[مبالغ النموذج]]-الجدول3[[#This Row],[مبالغ المحضر]]","v":0}]
[{"$f":"'نموذج تعبئة فواتير السلف'!A237","v":230},{"$f":"'نموذج تعبئة فواتير السلف'!J237","v":0},{"$f":"'نموذج تعبئة فواتير السلف'!E237","v":0},null,"",{"$f":"الجدول3[[#This Row],[مبالغ النموذج]]-الجدول3[[#This Row],[مبالغ المحضر]]","v":0}]
[{"$f":"'نموذج تعبئة فواتير السلف'!A238","v":231},{"$f":"'نموذج تعبئة فواتير السلف'!J238","v":0},{"$f":"'نموذج تعبئة فواتير السلف'!E238","v":0},null,"",{"$f":"الجدول3[[#This Row],[مبالغ النموذج]]-الجدول3[[#This Row],[مبالغ المحضر]]","v":0}]
[{"$f":"'نموذج تعبئة فواتير السلف'!A239","v":232},{"$f":"'نموذج تعبئة فواتير السلف'!J239","v":0},{"$f":"'نموذج تعبئة فواتير السلف'!E239","v":0},null,"",{"$f":"الجدول3[[#This Row],[مبالغ النموذج]]-الجدول3[[#This Row],[مبالغ المحضر]]","v":0}]
[{"$f":"'نموذج تعبئة فواتير السلف'!A240","v":233},{"$f":"'نموذج تعبئة فواتير السلف'!J240","v":0},{"$f":"'نموذج تعبئة فواتير السلف'!E240","v":0},null,"",{"$f":"الجدول3[[#This Row],[مبالغ النموذج]]-الجدول3[[#This Row],[مبالغ المحضر]]","v":0}]
[{"$f":"'نموذج تعبئة فواتير السلف'!A241","v":234},{"$f":"'نموذج تعبئة فواتير السلف'!J241","v":0},{"$f":"'نموذج تعبئة فواتير السلف'!E241","v":0},null,"",{"$f":"الجدول3[[#This Row],[مبالغ النموذج]]-الجدول3[[#This Row],[مبالغ المحضر]]","v":0}]
[{"$f":"'نموذج تعبئة فواتير السلف'!A242","v":235},{"$f":"'نموذج تعبئة فواتير السلف'!J242","v":0},{"$f":"'نموذج تعبئة فواتير السلف'!E242","v":0},null,"",{"$f":"الجدول3[[#This Row],[مبالغ النموذج]]-الجدول3[[#This Row],[مبالغ المحضر]]","v":0}]
[{"$f":"'نموذج تعبئة فواتير السلف'!A243","v":236},{"$f":"'نموذج تعبئة فواتير السلف'!J243","v":0},{"$f":"'نموذج تعبئة فواتير السلف'!E243","v":0},null,"",{"$f":"الجدول3[[#This Row],[مبالغ النموذج]]-الجدول3[[#This Row],[مبالغ المحضر]]","v":0}]
[{"$f":"'نموذج تعبئة فواتير السلف'!A244","v":237},{"$f":"'نموذج تعبئة فواتير السلف'!J244","v":0},{"$f":"'نموذج تعبئة فواتير السلف'!E244","v":0},null,"",{"$f":"الجدول3[[#This Row],[مبالغ النموذج]]-الجدول3[[#This Row],[مبالغ المحضر]]","v":0}]
[{"$f":"'نموذج تعبئة فواتير السلف'!A245","v":238},{"$f":"'نموذج تعبئة فواتير السلف'!J245","v":0},{"$f":"'نموذج تعبئة فواتير السلف'!E245","v":0},null,"",{"$f":"الجدول3[[#This Row],[مبالغ النموذج]]-الجدول3[[#This Row],[مبالغ المحضر]]","v":0}]
[{"$f":"'نموذج تعبئة فواتير السلف'!A246","v":239},{"$f":"'نموذج تعبئة فواتير السلف'!J246","v":0},{"$f":"'نموذج تعبئة فواتير السلف'!E246","v":0},null,"",{"$f":"الجدول3[[#This Row],[مبالغ النموذج]]-الجدول3[[#This Row],[مبالغ المحضر]]","v":0}]
[{"$f":"'نموذج تعبئة فواتير السلف'!A247","v":240},{"$f":"'نموذج تعبئة فواتير السلف'!J247","v":0},{"$f":"'نموذج تعبئة فواتير السلف'!E247","v":0},null,"",{"$f":"الجدول3[[#This Row],[مبالغ النموذج]]-الجدول3[[#This Row],[مبالغ المحضر]]","v":0}]
[{"$f":"'نموذج تعبئة فواتير السلف'!A248","v":241},{"$f":"'نموذج تعبئة فواتير السلف'!J248","v":0},{"$f":"'نموذج تعبئة فواتير السلف'!E248","v":0},null,"",{"$f":"الجدول3[[#This Row],[مبالغ النموذج]]-الجدول3[[#This Row],[مبالغ المحضر]]","v":0}]
[{"$f":"'نموذج تعبئة فواتير السلف'!A249","v":242},{"$f":"'نموذج تعبئة فواتير السلف'!J249","v":0},{"$f":"'نموذج تعبئة فواتير السلف'!E249","v":0},null,"",{"$f":"الجدول3[[#This Row],[مبالغ النموذج]]-الجدول3[[#This Row],[مبالغ المحضر]]","v":0}]
[{"$f":"'نموذج تعبئة فواتير السلف'!A250","v":243},{"$f":"'نموذج تعبئة فواتير السلف'!J250","v":0},{"$f":"'نموذج تعبئة فواتير السلف'!E250","v":0},null,"",{"$f":"الجدول3[[#This Row],[مبالغ النموذج]]-الجدول3[[#This Row],[مبالغ المحضر]]","v":0}]
[{"$f":"'نموذج تعبئة فواتير السلف'!A251","v":244},{"$f":"'نموذج تعبئة فواتير السلف'!J251","v":0},{"$f":"'نموذج تعبئة فواتير السلف'!E251","v":0},null,"",{"$f":"الجدول3[[#This Row],[مبالغ النموذج]]-الجدول3[[#This Row],[مبالغ المحضر]]","v":0}]
[{"$f":"'نموذج تعبئة فواتير السلف'!A252","v":245},{"$f":"'نموذج تعبئة فواتير السلف'!J252","v":0},{"$f":"'نموذج تعبئة فواتير السلف'!E252","v":0},null,"",{"$f":"الجدول3[[#This Row],[مبالغ النموذج]]-الجدول3[[#This Row],[مبالغ المحضر]]","v":0}]
[{"$f":"'نموذج تعبئة فواتير السلف'!A253","v":246},{"$f":"'نموذج تعبئة فواتير السلف'!J253","v":0},{"$f":"'نموذج تعبئة فواتير السلف'!E253","v":0},null,"",{"$f":"الجدول3[[#This Row],[مبالغ النموذج]]-الجدول3[[#This Row],[مبالغ المحضر]]","v":0}]
[{"$f":"'نموذج تعبئة فواتير السلف'!A254","v":247},{"$f":"'نموذج تعبئة فواتير السلف'!J254","v":0},{"$f":"'نموذج تعبئة فواتير السلف'!E254","v":0},null,"",{"$f":"الجدول3[[#This Row],[مبالغ النموذج]]-الجدول3[[#This Row],[مبالغ المحضر]]","v":0}]
[{"$f":"'نموذج تعبئة فواتير السلف'!A255","v":248},{"$f":"'نموذج تعبئة فواتير السلف'!J255","v":0},{"$f":"'نموذج تعبئة فواتير السلف'!E255","v":0},null,"",{"$f":"الجدول3[[#This Row],[مبالغ النموذج]]-الجدول3[[#This Row],[مبالغ المحضر]]","v":0}]
[{"$f":"'نموذج تعبئة فواتير السلف'!A256","v":249},{"$f":"'نموذج تعبئة فواتير السلف'!J256","v":0},{"$f":"'نموذج تعبئة فواتير السلف'!E256","v":0},null,"",{"$f":"الجدول3[[#This Row],[مبالغ النموذج]]-الجدول3[[#This Row],[مبالغ المحضر]]","v":0}]
[{"$f":"'نموذج تعبئة فواتير السلف'!A257","v":250},{"$f":"'نموذج تعبئة فواتير السلف'!J257","v":0},{"$f":"'نموذج تعبئة فواتير السلف'!E257","v":0},null,"",{"$f":"الجدول3[[#This Row],[مبالغ النموذج]]-الجدول3[[#This Row],[مبالغ المحضر]]","v":0}]
[{"$f":"'نموذج تعبئة فواتير السلف'!A258","v":251},{"$f":"'نموذج تعبئة فواتير السلف'!J258","v":0},{"$f":"'نموذج تعبئة فواتير السلف'!E258","v":0},null,"",{"$f":"الجدول3[[#This Row],[مبالغ النموذج]]-الجدول3[[#This Row],[مبالغ المحضر]]","v":0}]
[{"$f":"'نموذج تعبئة فواتير السلف'!A259","v":252},{"$f":"'نموذج تعبئة فواتير السلف'!J259","v":0},{"$f":"'نموذج تعبئة فواتير السلف'!E259","v":0},null,"",{"$f":"الجدول3[[#This Row],[مبالغ النموذج]]-الجدول3[[#This Row],[مبالغ المحضر]]","v":0}]
[{"$f":"'نموذج تعبئة فواتير السلف'!A260","v":253},{"$f":"'نموذج تعبئة فواتير السلف'!J260","v":0},{"$f":"'نموذج تعبئة فواتير السلف'!E260","v":0},null,"",{"$f":"الجدول3[[#This Row],[مبالغ النموذج]]-الجدول3[[#This Row],[مبالغ المحضر]]","v":0}]
[{"$f":"'نموذج تعبئة فواتير السلف'!A261","v":254},{"$f":"'نموذج تعبئة فواتير السلف'!J261","v":0},{"$f":"'نموذج تعبئة فواتير السلف'!E261","v":0},null,"",{"$f":"الجدول3[[#This Row],[مبالغ النموذج]]-الجدول3[[#This Row],[مبالغ المحضر]]","v":0}]
[{"$f":"'نموذج تعبئة فواتير السلف'!A262","v":255},{"$f":"'نموذج تعبئة فواتير السلف'!J262","v":0},{"$f":"'نموذج تعبئة فواتير السلف'!E262","v":0},null,"",{"$f":"الجدول3[[#This Row],[مبالغ النموذج]]-الجدول3[[#This Row],[مبالغ المحضر]]","v":0}]
[{"$f":"'نموذج تعبئة فواتير السلف'!A263","v":256},{"$f":"'نموذج تعبئة فواتير السلف'!J263","v":0},{"$f":"'نموذج تعبئة فواتير السلف'!E263","v":0},null,"",{"$f":"الجدول3[[#This Row],[مبالغ النموذج]]-الجدول3[[#This Row],[مبالغ المحضر]]","v":0}]
[{"$f":"'نموذج تعبئة فواتير السلف'!A264","v":257},{"$f":"'نموذج تعبئة فواتير السلف'!J264","v":0},{"$f":"'نموذج تعبئة فواتير السلف'!E264","v":0},null,"",{"$f":"الجدول3[[#This Row],[مبالغ النموذج]]-الجدول3[[#This Row],[مبالغ المحضر]]","v":0}]
[{"$f":"'نموذج تعبئة فواتير السلف'!A265","v":258},{"$f":"'نموذج تعبئة فواتير السلف'!J265","v":0},{"$f":"'نموذج تعبئة فواتير السلف'!E265","v":0},null,{"$f":"IF(F262=0,\"\",CHAR(251))","v":""},{"$f":"الجدول3[[#This Row],[مبالغ النموذج]]-الجدول3[[#This Row],[مبالغ المحضر]]","v":0}]
[{"$f":"'نموذج تعبئة فواتير السلف'!A266","v":259},{"$f":"'نموذج تعبئة فواتير السلف'!J266","v":0},{"$f":"'نموذج تعبئة فواتير السلف'!E266","v":0},null,"",{"$f":"الجدول3[[#This Row],[مبالغ النموذج]]-الجدول3[[#This Row],[مبالغ المحضر]]","v":0}]
[{"$f":"'نموذج تعبئة فواتير السلف'!A267","v":260},{"$f":"'نموذج تعبئة فواتير السلف'!J267","v":0},{"$f":"'نموذج تعبئة فواتير السلف'!E267","v":0},null,"",{"$f":"الجدول3[[#This Row],[مبالغ النموذج]]-الجدول3[[#This Row],[مبالغ المحضر]]","v":0}]
[{"$f":"'نموذج تعبئة فواتير السلف'!A268","v":261},{"$f":"'نموذج تعبئة فواتير السلف'!J268","v":0},{"$f":"'نموذج تعبئة فواتير السلف'!E268","v":0},null,"",{"$f":"الجدول3[[#This Row],[مبالغ النموذج]]-الجدول3[[#This Row],[مبالغ المحضر]]","v":0}]
[{"$f":"'نموذج تعبئة فواتير السلف'!A269","v":262},{"$f":"'نموذج تعبئة فواتير السلف'!J269","v":0},{"$f":"'نموذج تعبئة فواتير السلف'!E269","v":0},null,"",{"$f":"الجدول3[[#This Row],[مبالغ النموذج]]-الجدول3[[#This Row],[مبالغ المحضر]]","v":0}]
[{"$f":"'نموذج تعبئة فواتير السلف'!A270","v":263},{"$f":"'نموذج تعبئة فواتير السلف'!J270","v":0},{"$f":"'نموذج تعبئة فواتير السلف'!E270","v":0},null,"",{"$f":"الجدول3[[#This Row],[مبالغ النموذج]]-الجدول3[[#This Row],[مبالغ المحضر]]","v":0}]
[{"$f":"'نموذج تعبئة فواتير السلف'!A271","v":264},{"$f":"'نموذج تعبئة فواتير السلف'!J271","v":0},{"$f":"'نموذج تعبئة فواتير السلف'!E271","v":0},null,"",{"$f":"الجدول3[[#This Row],[مبالغ النموذج]]-الجدول3[[#This Row],[مبالغ المحضر]]","v":0}]
[{"$f":"'نموذج تعبئة فواتير السلف'!A272","v":265},{"$f":"'نموذج تعبئة فواتير السلف'!J272","v":0},{"$f":"'نموذج تعبئة فواتير السلف'!E272","v":0},null,"",{"$f":"الجدول3[[#This Row],[مبالغ النموذج]]-الجدول3[[#This Row],[مبالغ المحضر]]","v":0}]
[{"$f":"'نموذج تعبئة فواتير السلف'!A273","v":266},{"$f":"'نموذج تعبئة فواتير السلف'!J273","v":0},{"$f":"'نموذج تعبئة فواتير السلف'!E273","v":0},null,"",{"$f":"الجدول3[[#This Row],[مبالغ النموذج]]-الجدول3[[#This Row],[مبالغ المحضر]]","v":0}]
[{"$f":"'نموذج تعبئة فواتير السلف'!A274","v":267},{"$f":"'نموذج تعبئة فواتير السلف'!J274","v":0},{"$f":"'نموذج تعبئة فواتير السلف'!E274","v":0},null,"",{"$f":"الجدول3[[#This Row],[مبالغ النموذج]]-الجدول3[[#This Row],[مبالغ المحضر]]","v":0}]
[{"$f":"'نموذج تعبئة فواتير السلف'!A275","v":268},{"$f":"'نموذج تعبئة فواتير السلف'!J275","v":0},{"$f":"'نموذج تعبئة فواتير السلف'!E275","v":0},null,"",{"$f":"الجدول3[[#This Row],[مبالغ النموذج]]-الجدول3[[#This Row],[مبالغ المحضر]]","v":0}]
[{"$f":"'نموذج تعبئة فواتير السلف'!A276","v":269},{"$f":"'نموذج تعبئة فواتير السلف'!J276","v":0},{"$f":"'نموذج تعبئة فواتير السلف'!E276","v":0},null,"",{"$f":"الجدول3[[#This Row],[مبالغ النموذج]]-الجدول3[[#This Row],[مبالغ المحضر]]","v":0}]
[{"$f":"'نموذج تعبئة فواتير السلف'!A277","v":270},{"$f":"'نموذج تعبئة فواتير السلف'!J277","v":0},{"$f":"'نموذج تعبئة فواتير السلف'!E277","v":0},null,"",{"$f":"الجدول3[[#This Row],[مبالغ النموذج]]-الجدول3[[#This Row],[مبالغ المحضر]]","v":0}]
[{"$f":"'نموذج تعبئة فواتير السلف'!A278","v":271},{"$f":"'نموذج تعبئة فواتير السلف'!J278","v":0},{"$f":"'نموذج تعبئة فواتير السلف'!E278","v":0},null,"",{"$f":"الجدول3[[#This Row],[مبالغ النموذج]]-الجدول3[[#This Row],[مبالغ المحضر]]","v":0}]
[{"$f":"'نموذج تعبئة فواتير السلف'!A279","v":272},{"$f":"'نموذج تعبئة فواتير السلف'!J279","v":0},{"$f":"'نموذج تعبئة فواتير السلف'!E279","v":0},null,"",{"$f":"الجدول3[[#This Row],[مبالغ النموذج]]-الجدول3[[#This Row],[مبالغ المحضر]]","v":0}]
[{"$f":"'نموذج تعبئة فواتير السلف'!A280","v":273},{"$f":"'نموذج تعبئة فواتير السلف'!J280","v":0},{"$f":"'نموذج تعبئة فواتير السلف'!E280","v":0},null,"",{"$f":"الجدول3[[#This Row],[مبالغ النموذج]]-الجدول3[[#This Row],[مبالغ المحضر]]","v":0}]
[{"$f":"'نموذج تعبئة فواتير السلف'!A281","v":274},{"$f":"'نموذج تعبئة فواتير السلف'!J281","v":0},{"$f":"'نموذج تعبئة فواتير السلف'!E281","v":0},null,"",{"$f":"الجدول3[[#This Row],[مبالغ النموذج]]-الجدول3[[#This Row],[مبالغ المحضر]]","v":0}]
[{"$f":"'نموذج تعبئة فواتير السلف'!A282","v":275},{"$f":"'نموذج تعبئة فواتير السلف'!J282","v":0},{"$f":"'نموذج تعبئة فواتير السلف'!E282","v":0},null,"",{"$f":"الجدول3[[#This Row],[مبالغ النموذج]]-الجدول3[[#This Row],[مبالغ المحضر]]","v":0}]
[{"$f":"'نموذج تعبئة فواتير السلف'!A283","v":276},{"$f":"'نموذج تعبئة فواتير السلف'!J283","v":0},{"$f":"'نموذج تعبئة فواتير السلف'!E283","v":0},null,"",{"$f":"الجدول3[[#This Row],[مبالغ النموذج]]-الجدول3[[#This Row],[مبالغ المحضر]]","v":0}]
[{"$f":"'نموذج تعبئة فواتير السلف'!A284","v":277},{"$f":"'نموذج تعبئة فواتير السلف'!J284","v":0},{"$f":"'نموذج تعبئة فواتير السلف'!E284","v":0},null,"",{"$f":"الجدول3[[#This Row],[مبالغ النموذج]]-الجدول3[[#This Row],[مبالغ المحضر]]","v":0}]
[{"$f":"'نموذج تعبئة فواتير السلف'!A285","v":278},{"$f":"'نموذج تعبئة فواتير السلف'!J285","v":0},{"$f":"'نموذج تعبئة فواتير السلف'!E285","v":0},null,"",{"$f":"الجدول3[[#This Row],[مبالغ النموذج]]-الجدول3[[#This Row],[مبالغ المحضر]]","v":0}]
[{"$f":"'نموذج تعبئة فواتير السلف'!A286","v":279},{"$f":"'نموذج تعبئة فواتير السلف'!J286","v":0},{"$f":"'نموذج تعبئة فواتير السلف'!E286","v":0},null,"",{"$f":"الجدول3[[#This Row],[مبالغ النموذج]]-الجدول3[[#This Row],[مبالغ المحضر]]","v":0}]
[{"$f":"'نموذج تعبئة فواتير السلف'!A287","v":280},{"$f":"'نموذج تعبئة فواتير السلف'!J287","v":0},{"$f":"'نموذج تعبئة فواتير السلف'!E287","v":0},null,"",{"$f":"الجدول3[[#This Row],[مبالغ النموذج]]-الجدول3[[#This Row],[مبالغ المحضر]]","v":0}]
[{"$f":"'نموذج تعبئة فواتير السلف'!A288","v":281},{"$f":"'نموذج تعبئة فواتير السلف'!J288","v":0},{"$f":"'نموذج تعبئة فواتير السلف'!E288","v":0},null,"",{"$f":"الجدول3[[#This Row],[مبالغ النموذج]]-الجدول3[[#This Row],[مبالغ المحضر]]","v":0}]
[{"$f":"'نموذج تعبئة فواتير السلف'!A289","v":282},{"$f":"'نموذج تعبئة فواتير السلف'!J289","v":0},{"$f":"'نموذج تعبئة فواتير السلف'!E289","v":0},null,"",{"$f":"الجدول3[[#This Row],[مبالغ النموذج]]-الجدول3[[#This Row],[مبالغ المحضر]]","v":0}]
[{"$f":"'نموذج تعبئة فواتير السلف'!A290","v":283},{"$f":"'نموذج تعبئة فواتير السلف'!J290","v":0},{"$f":"'نموذج تعبئة فواتير السلف'!E290","v":0},null,"",{"$f":"الجدول3[[#This Row],[مبالغ النموذج]]-الجدول3[[#This Row],[مبالغ المحضر]]","v":0}]
[{"$f":"'نموذج تعبئة فواتير السلف'!A291","v":284},{"$f":"'نموذج تعبئة فواتير السلف'!J291","v":0},{"$f":"'نموذج تعبئة فواتير السلف'!E291","v":0},null,"",{"$f":"الجدول3[[#This Row],[مبالغ النموذج]]-الجدول3[[#This Row],[مبالغ المحضر]]","v":0}]
[{"$f":"'نموذج تعبئة فواتير السلف'!A292","v":285},{"$f":"'نموذج تعبئة فواتير السلف'!J292","v":0},{"$f":"'نموذج تعبئة فواتير السلف'!E292","v":0},null,"",{"$f":"الجدول3[[#This Row],[مبالغ النموذج]]-الجدول3[[#This Row],[مبالغ المحضر]]","v":0}]
[{"$f":"'نموذج تعبئة فواتير السلف'!A293","v":286},{"$f":"'نموذج تعبئة فواتير السلف'!J293","v":0},{"$f":"'نموذج تعبئة فواتير السلف'!E293","v":0},null,"",{"$f":"الجدول3[[#This Row],[مبالغ النموذج]]-الجدول3[[#This Row],[مبالغ المحضر]]","v":0}]
[{"$f":"'نموذج تعبئة فواتير السلف'!A294","v":287},{"$f":"'نموذج تعبئة فواتير السلف'!J294","v":0},{"$f":"'نموذج تعبئة فواتير السلف'!E294","v":0},null,"",{"$f":"الجدول3[[#This Row],[مبالغ النموذج]]-الجدول3[[#This Row],[مبالغ المحضر]]","v":0}]
[{"$f":"'نموذج تعبئة فواتير السلف'!A295","v":288},{"$f":"'نموذج تعبئة فواتير السلف'!J295","v":0},{"$f":"'نموذج تعبئة فواتير السلف'!E295","v":0},null,"",{"$f":"الجدول3[[#This Row],[مبالغ النموذج]]-الجدول3[[#This Row],[مبالغ المحضر]]","v":0}]
[{"$f":"'نموذج تعبئة فواتير السلف'!A296","v":289},{"$f":"'نموذج تعبئة فواتير السلف'!J296","v":0},{"$f":"'نموذج تعبئة فواتير السلف'!E296","v":0},null,"",{"$f":"الجدول3[[#This Row],[مبالغ النموذج]]-الجدول3[[#This Row],[مبالغ المحضر]]","v":0}]
[{"$f":"'نموذج تعبئة فواتير السلف'!A297","v":290},{"$f":"'نموذج تعبئة فواتير السلف'!J297","v":0},{"$f":"'نموذج تعبئة فواتير السلف'!E297","v":0},null,"",{"$f":"الجدول3[[#This Row],[مبالغ النموذج]]-الجدول3[[#This Row],[مبالغ المحضر]]","v":0}]
[{"$f":"'نموذج تعبئة فواتير السلف'!A298","v":291},{"$f":"'نموذج تعبئة فواتير السلف'!J298","v":0},{"$f":"'نموذج تعبئة فواتير السلف'!E298","v":0},null,"",{"$f":"الجدول3[[#This Row],[مبالغ النموذج]]-الجدول3[[#This Row],[مبالغ المحضر]]","v":0}]
[{"$f":"'نموذج تعبئة فواتير السلف'!A299","v":292},{"$f":"'نموذج تعبئة فواتير السلف'!J299","v":0},{"$f":"'نموذج تعبئة فواتير السلف'!E299","v":0},null,"",{"$f":"الجدول3[[#This Row],[مبالغ النموذج]]-الجدول3[[#This Row],[مبالغ المحضر]]","v":0}]
[{"$f":"'نموذج تعبئة فواتير السلف'!A300","v":293},{"$f":"'نموذج تعبئة فواتير السلف'!J300","v":0},{"$f":"'نموذج تعبئة فواتير السلف'!E300","v":0},null,"",{"$f":"الجدول3[[#This Row],[مبالغ النموذج]]-الجدول3[[#This Row],[مبالغ المحضر]]","v":0}]
[{"$f":"'نموذج تعبئة فواتير السلف'!A301","v":294},{"$f":"'نموذج تعبئة فواتير السلف'!J301","v":0},{"$f":"'نموذج تعبئة فواتير السلف'!E301","v":0},null,"",{"$f":"الجدول3[[#This Row],[مبالغ النموذج]]-الجدول3[[#This Row],[مبالغ المحضر]]","v":0}]
[{"$f":"'نموذج تعبئة فواتير السلف'!A302","v":295},{"$f":"'نموذج تعبئة فواتير السلف'!J302","v":0},{"$f":"'نموذج تعبئة فواتير السلف'!E302","v":0},null,"",{"$f":"الجدول3[[#This Row],[مبالغ النموذج]]-الجدول3[[#This Row],[مبالغ المحضر]]","v":0}]
[{"$f":"'نموذج تعبئة فواتير السلف'!A303","v":296},{"$f":"'نموذج تعبئة فواتير السلف'!J303","v":0},{"$f":"'نموذج تعبئة فواتير السلف'!E303","v":0},null,"",{"$f":"الجدول3[[#This Row],[مبالغ النموذج]]-الجدول3[[#This Row],[مبالغ المحضر]]","v":0}]
[{"$f":"'نموذج تعبئة فواتير السلف'!A304","v":297},{"$f":"'نموذج تعبئة فواتير السلف'!J304","v":0},{"$f":"'نموذج تعبئة فواتير السلف'!E304","v":0},null,"",{"$f":"الجدول3[[#This Row],[مبالغ النموذج]]-الجدول3[[#This Row],[مبالغ المحضر]]","v":0}]
[{"$f":"'نموذج تعبئة فواتير السلف'!A305","v":298},{"$f":"'نموذج تعبئة فواتير السلف'!J305","v":0},{"$f":"'نموذج تعبئة فواتير السلف'!E305","v":0},null,"",{"$f":"الجدول3[[#This Row],[مبالغ النموذج]]-الجدول3[[#This Row],[مبالغ المحضر]]","v":0}]
[{"$f":"'نموذج تعبئة فواتير السلف'!A306","v":299},{"$f":"'نموذج تعبئة فواتير السلف'!J306","v":0},{"$f":"'نموذج تعبئة فواتير السلف'!E306","v":0},null,"",{"$f":"الجدول3[[#This Row],[مبالغ النموذج]]-الجدول3[[#This Row],[مبالغ المحضر]]","v":0}]
[{"$f":"'نموذج تعبئة فواتير السلف'!A307","v":300},{"$f":"'نموذج تعبئة فواتير السلف'!J307","v":0},{"$f":"'نموذج تعبئة فواتير السلف'!E307","v":0},null,"",{"$f":"الجدول3[[#This Row],[مبالغ النموذج]]-الجدول3[[#This Row],[مبالغ المحضر]]","v":0}]
[{"$f":"'نموذج تعبئة فواتير السلف'!A308","v":301},{"$f":"'نموذج تعبئة فواتير السلف'!J308","v":0},{"$f":"'نموذج تعبئة فواتير السلف'!E308","v":0},null,"",{"$f":"الجدول3[[#This Row],[مبالغ النموذج]]-الجدول3[[#This Row],[مبالغ المحضر]]","v":0}]
[{"$f":"'نموذج تعبئة فواتير السلف'!A309","v":302},{"$f":"'نموذج تعبئة فواتير السلف'!J309","v":0},{"$f":"'نموذج تعبئة فواتير السلف'!E309","v":0},null,"",{"$f":"الجدول3[[#This Row],[مبالغ النموذج]]-الجدول3[[#This Row],[مبالغ المحضر]]","v":0}]
[{"$f":"'نموذج تعبئة فواتير السلف'!A310","v":303},{"$f":"'نموذج تعبئة فواتير السلف'!J310","v":0},{"$f":"'نموذج تعبئة فواتير السلف'!E310","v":0},null,"",{"$f":"الجدول3[[#This Row],[مبالغ النموذج]]-الجدول3[[#This Row],[مبالغ المحضر]]","v":0}]
[{"$f":"'نموذج تعبئة فواتير السلف'!A311","v":304},{"$f":"'نموذج تعبئة فواتير السلف'!J311","v":0},{"$f":"'نموذج تعبئة فواتير السلف'!E311","v":0},null,"",{"$f":"الجدول3[[#This Row],[مبالغ النموذج]]-الجدول3[[#This Row],[مبالغ المحضر]]","v":0}]
[{"$f":"'نموذج تعبئة فواتير السلف'!A312","v":305},{"$f":"'نموذج تعبئة فواتير السلف'!J312","v":0},{"$f":"'نموذج تعبئة فواتير السلف'!E312","v":0},null,"",{"$f":"الجدول3[[#This Row],[مبالغ النموذج]]-الجدول3[[#This Row],[مبالغ المحضر]]","v":0}]
[{"$f":"'نموذج تعبئة فواتير السلف'!A313","v":306},{"$f":"'نموذج تعبئة فواتير السلف'!J313","v":0},{"$f":"'نموذج تعبئة فواتير السلف'!E313","v":0},null,"",{"$f":"الجدول3[[#This Row],[مبالغ النموذج]]-الجدول3[[#This Row],[مبالغ المحضر]]","v":0}]
[{"$f":"'نموذج تعبئة فواتير السلف'!A314","v":307},{"$f":"'نموذج تعبئة فواتير السلف'!J314","v":0},{"$f":"'نموذج تعبئة فواتير السلف'!E314","v":0},null,"",{"$f":"الجدول3[[#This Row],[مبالغ النموذج]]-الجدول3[[#This Row],[مبالغ المحضر]]","v":0}]
[{"$f":"'نموذج تعبئة فواتير السلف'!A315","v":308},{"$f":"'نموذج تعبئة فواتير السلف'!J315","v":0},{"$f":"'نموذج تعبئة فواتير السلف'!E315","v":0},null,"",{"$f":"الجدول3[[#This Row],[مبالغ النموذج]]-الجدول3[[#This Row],[مبالغ المحضر]]","v":0}]
[{"$f":"'نموذج تعبئة فواتير السلف'!A316","v":309},{"$f":"'نموذج تعبئة فواتير السلف'!J316","v":0},{"$f":"'نموذج تعبئة فواتير السلف'!E316","v":0},null,"",{"$f":"الجدول3[[#This Row],[مبالغ النموذج]]-الجدول3[[#This Row],[مبالغ المحضر]]","v":0}]
[{"$f":"'نموذج تعبئة فواتير السلف'!A317","v":310},{"$f":"'نموذج تعبئة فواتير السلف'!J317","v":0},{"$f":"'نموذج تعبئة فواتير السلف'!E317","v":0},null,"",{"$f":"الجدول3[[#This Row],[مبالغ النموذج]]-الجدول3[[#This Row],[مبالغ المحضر]]","v":0}]
[{"$f":"'نموذج تعبئة فواتير السلف'!A318","v":311},{"$f":"'نموذج تعبئة فواتير السلف'!J318","v":0},{"$f":"'نموذج تعبئة فواتير السلف'!E318","v":0},null,"",{"$f":"الجدول3[[#This Row],[مبالغ النموذج]]-الجدول3[[#This Row],[مبالغ المحضر]]","v":0}]
[{"$f":"'نموذج تعبئة فواتير السلف'!A319","v":312},{"$f":"'نموذج تعبئة فواتير السلف'!J319","v":0},{"$f":"'نموذج تعبئة فواتير السلف'!E319","v":0},null,"",{"$f":"الجدول3[[#This Row],[مبالغ النموذج]]-الجدول3[[#This Row],[مبالغ المحضر]]","v":0}]
[{"$f":"'نموذج تعبئة فواتير السلف'!A320","v":313},{"$f":"'نموذج تعبئة فواتير السلف'!J320","v":0},{"$f":"'نموذج تعبئة فواتير السلف'!E320","v":0},null,"",{"$f":"الجدول3[[#This Row],[مبالغ النموذج]]-الجدول3[[#This Row],[مبالغ المحضر]]","v":0}]
[{"$f":"'نموذج تعبئة فواتير السلف'!A321","v":314},{"$f":"'نموذج تعبئة فواتير السلف'!J321","v":0},{"$f":"'نموذج تعبئة فواتير السلف'!E321","v":0},null,"",{"$f":"الجدول3[[#This Row],[مبالغ النموذج]]-الجدول3[[#This Row],[مبالغ المحضر]]","v":0}]
[{"$f":"'نموذج تعبئة فواتير السلف'!A322","v":315},{"$f":"'نموذج تعبئة فواتير السلف'!J322","v":0},{"$f":"'نموذج تعبئة فواتير السلف'!E322","v":0},null,"",{"$f":"الجدول3[[#This Row],[مبالغ النموذج]]-الجدول3[[#This Row],[مبالغ المحضر]]","v":0}]
[{"$f":"'نموذج تعبئة فواتير السلف'!A323","v":316},{"$f":"'نموذج تعبئة فواتير السلف'!J323","v":0},{"$f":"'نموذج تعبئة فواتير السلف'!E323","v":0},null,"",{"$f":"الجدول3[[#This Row],[مبالغ النموذج]]-الجدول3[[#This Row],[مبالغ المحضر]]","v":0}]
[{"$f":"'نموذج تعبئة فواتير السلف'!A324","v":317},{"$f":"'نموذج تعبئة فواتير السلف'!J324","v":0},{"$f":"'نموذج تعبئة فواتير السلف'!E324","v":0},null,"",{"$f":"الجدول3[[#This Row],[مبالغ النموذج]]-الجدول3[[#This Row],[مبالغ المحضر]]","v":0}]
[{"$f":"'نموذج تعبئة فواتير السلف'!A325","v":318},{"$f":"'نموذج تعبئة فواتير السلف'!J325","v":0},{"$f":"'نموذج تعبئة فواتير السلف'!E325","v":0},null,"",{"$f":"الجدول3[[#This Row],[مبالغ النموذج]]-الجدول3[[#This Row],[مبالغ المحضر]]","v":0}]
[{"$f":"'نموذج تعبئة فواتير السلف'!A326","v":319},{"$f":"'نموذج تعبئة فواتير السلف'!J326","v":0},{"$f":"'نموذج تعبئة فواتير السلف'!E326","v":0},null,"",{"$f":"الجدول3[[#This Row],[مبالغ النموذج]]-الجدول3[[#This Row],[مبالغ المحضر]]","v":0}]
[{"$f":"'نموذج تعبئة فواتير السلف'!A327","v":320},{"$f":"'نموذج تعبئة فواتير السلف'!J327","v":0},{"$f":"'نموذج تعبئة فواتير السلف'!E327","v":0},null,"",{"$f":"الجدول3[[#This Row],[مبالغ النموذج]]-الجدول3[[#This Row],[مبالغ المحضر]]","v":0}]
[{"$f":"'نموذج تعبئة فواتير السلف'!A328","v":321},{"$f":"'نموذج تعبئة فواتير السلف'!J328","v":0},{"$f":"'نموذج تعبئة فواتير السلف'!E328","v":0},null,"",{"$f":"الجدول3[[#This Row],[مبالغ النموذج]]-الجدول3[[#This Row],[مبالغ المحضر]]","v":0}]
[{"$f":"'نموذج تعبئة فواتير السلف'!A329","v":322},{"$f":"'نموذج تعبئة فواتير السلف'!J329","v":0},{"$f":"'نموذج تعبئة فواتير السلف'!E329","v":0},null,{"$f":"IF(F326=0,\"\",CHAR(251))","v":""},{"$f":"الجدول3[[#This Row],[مبالغ النموذج]]-الجدول3[[#This Row],[مبالغ المحضر]]","v":0}]
[{"$f":"'نموذج تعبئة فواتير السلف'!A330","v":323},{"$f":"'نموذج تعبئة فواتير السلف'!J330","v":0},{"$f":"'نموذج تعبئة فواتير السلف'!E330","v":0},null,"",{"$f":"الجدول3[[#This Row],[مبالغ النموذج]]-الجدول3[[#This Row],[مبالغ المحضر]]","v":0}]
[{"$f":"'نموذج تعبئة فواتير السلف'!A331","v":324},{"$f":"'نموذج تعبئة فواتير السلف'!J331","v":0},{"$f":"'نموذج تعبئة فواتير السلف'!E331","v":0},null,"",{"$f":"الجدول3[[#This Row],[مبالغ النموذج]]-الجدول3[[#This Row],[مبالغ المحضر]]","v":0}]
[{"$f":"'نموذج تعبئة فواتير السلف'!A332","v":325},{"$f":"'نموذج تعبئة فواتير السلف'!J332","v":0},{"$f":"'نموذج تعبئة فواتير السلف'!E332","v":0},null,"",{"$f":"الجدول3[[#This Row],[مبالغ النموذج]]-الجدول3[[#This Row],[مبالغ المحضر]]","v":0}]
[{"$f":"'نموذج تعبئة فواتير السلف'!A333","v":326},{"$f":"'نموذج تعبئة فواتير السلف'!J333","v":0},{"$f":"'نموذج تعبئة فواتير السلف'!E333","v":0},null,"",{"$f":"الجدول3[[#This Row],[مبالغ النموذج]]-الجدول3[[#This Row],[مبالغ المحضر]]","v":0}]
[{"$f":"'نموذج تعبئة فواتير السلف'!A334","v":327},{"$f":"'نموذج تعبئة فواتير السلف'!J334","v":0},{"$f":"'نموذج تعبئة فواتير السلف'!E334","v":0},null,"",{"$f":"الجدول3[[#This Row],[مبالغ النموذج]]-الجدول3[[#This Row],[مبالغ المحضر]]","v":0}]
[{"$f":"'نموذج تعبئة فواتير السلف'!A335","v":328},{"$f":"'نموذج تعبئة فواتير السلف'!J335","v":0},{"$f":"'نموذج تعبئة فواتير السلف'!E335","v":0},null,"",{"$f":"الجدول3[[#This Row],[مبالغ النموذج]]-الجدول3[[#This Row],[مبالغ المحضر]]","v":0}]
[{"$f":"'نموذج تعبئة فواتير السلف'!A336","v":329},{"$f":"'نموذج تعبئة فواتير السلف'!J336","v":0},{"$f":"'نموذج تعبئة فواتير السلف'!E336","v":0},null,"",{"$f":"الجدول3[[#This Row],[مبالغ النموذج]]-الجدول3[[#This Row],[مبالغ المحضر]]","v":0}]
[{"$f":"'نموذج تعبئة فواتير السلف'!A337","v":330},{"$f":"'نموذج تعبئة فواتير السلف'!J337","v":0},{"$f":"'نموذج تعبئة فواتير السلف'!E337","v":0},null,"",{"$f":"الجدول3[[#This Row],[مبالغ النموذج]]-الجدول3[[#This Row],[مبالغ المحضر]]","v":0}]
[{"$f":"'نموذج تعبئة فواتير السلف'!A338","v":331},{"$f":"'نموذج تعبئة فواتير السلف'!J338","v":0},{"$f":"'نموذج تعبئة فواتير السلف'!E338","v":0},null,"",{"$f":"الجدول3[[#This Row],[مبالغ النموذج]]-الجدول3[[#This Row],[مبالغ المحضر]]","v":0}]
[{"$f":"'نموذج تعبئة فواتير السلف'!A339","v":332},{"$f":"'نموذج تعبئة فواتير السلف'!J339","v":0},{"$f":"'نموذج تعبئة فواتير السلف'!E339","v":0},null,"",{"$f":"الجدول3[[#This Row],[مبالغ النموذج]]-الجدول3[[#This Row],[مبالغ المحضر]]","v":0}]
[{"$f":"'نموذج تعبئة فواتير السلف'!A340","v":333},{"$f":"'نموذج تعبئة فواتير السلف'!J340","v":0},{"$f":"'نموذج تعبئة فواتير السلف'!E340","v":0},null,"",{"$f":"الجدول3[[#This Row],[مبالغ النموذج]]-الجدول3[[#This Row],[مبالغ المحضر]]","v":0}]
[{"$f":"'نموذج تعبئة فواتير السلف'!A341","v":334},{"$f":"'نموذج تعبئة فواتير السلف'!J341","v":0},{"$f":"'نموذج تعبئة فواتير السلف'!E341","v":0},null,"",{"$f":"الجدول3[[#This Row],[مبالغ النموذج]]-الجدول3[[#This Row],[مبالغ المحضر]]","v":0}]
[{"$f":"'نموذج تعبئة فواتير السلف'!A342","v":335},{"$f":"'نموذج تعبئة فواتير السلف'!J342","v":0},{"$f":"'نموذج تعبئة فواتير السلف'!E342","v":0},null,"",{"$f":"الجدول3[[#This Row],[مبالغ النموذج]]-الجدول3[[#This Row],[مبالغ المحضر]]","v":0}]
[{"$f":"'نموذج تعبئة فواتير السلف'!A343","v":336},{"$f":"'نموذج تعبئة فواتير السلف'!J343","v":0},{"$f":"'نموذج تعبئة فواتير السلف'!E343","v":0},null,"",{"$f":"الجدول3[[#This Row],[مبالغ النموذج]]-الجدول3[[#This Row],[مبالغ المحضر]]","v":0}]
[{"$f":"'نموذج تعبئة فواتير السلف'!A344","v":337},{"$f":"'نموذج تعبئة فواتير السلف'!J344","v":0},{"$f":"'نموذج تعبئة فواتير السلف'!E344","v":0},null,"",{"$f":"الجدول3[[#This Row],[مبالغ النموذج]]-الجدول3[[#This Row],[مبالغ المحضر]]","v":0}]
[{"$f":"'نموذج تعبئة فواتير السلف'!A345","v":338},{"$f":"'نموذج تعبئة فواتير السلف'!J345","v":0},{"$f":"'نموذج تعبئة فواتير السلف'!E345","v":0},null,"",{"$f":"الجدول3[[#This Row],[مبالغ النموذج]]-الجدول3[[#This Row],[مبالغ المحضر]]","v":0}]
[{"$f":"'نموذج تعبئة فواتير السلف'!A346","v":339},{"$f":"'نموذج تعبئة فواتير السلف'!J346","v":0},{"$f":"'نموذج تعبئة فواتير السلف'!E346","v":0},null,"",{"$f":"الجدول3[[#This Row],[مبالغ النموذج]]-الجدول3[[#This Row],[مبالغ المحضر]]","v":0}]
[{"$f":"'نموذج تعبئة فواتير السلف'!A347","v":340},{"$f":"'نموذج تعبئة فواتير السلف'!J347","v":0},{"$f":"'نموذج تعبئة فواتير السلف'!E347","v":0},null,"",{"$f":"الجدول3[[#This Row],[مبالغ النموذج]]-الجدول3[[#This Row],[مبالغ المحضر]]","v":0}]
[{"$f":"'نموذج تعبئة فواتير السلف'!A348","v":341},{"$f":"'نموذج تعبئة فواتير السلف'!J348","v":0},{"$f":"'نموذج تعبئة فواتير السلف'!E348","v":0},null,"",{"$f":"الجدول3[[#This Row],[مبالغ النموذج]]-الجدول3[[#This Row],[مبالغ المحضر]]","v":0}]
[{"$f":"'نموذج تعبئة فواتير السلف'!A349","v":342},{"$f":"'نموذج تعبئة فواتير السلف'!J349","v":0},{"$f":"'نموذج تعبئة فواتير السلف'!E349","v":0},null,"",{"$f":"الجدول3[[#This Row],[مبالغ النموذج]]-الجدول3[[#This Row],[مبالغ المحضر]]","v":0}]
[{"$f":"'نموذج تعبئة فواتير السلف'!A350","v":343},{"$f":"'نموذج تعبئة فواتير السلف'!J350","v":0},{"$f":"'نموذج تعبئة فواتير السلف'!E350","v":0},null,"",{"$f":"الجدول3[[#This Row],[مبالغ النموذج]]-الجدول3[[#This Row],[مبالغ المحضر]]","v":0}]
[{"$f":"'نموذج تعبئة فواتير السلف'!A351","v":344},{"$f":"'نموذج تعبئة فواتير السلف'!J351","v":0},{"$f":"'نموذج تعبئة فواتير السلف'!E351","v":0},null,"",{"$f":"الجدول3[[#This Row],[مبالغ النموذج]]-الجدول3[[#This Row],[مبالغ المحضر]]","v":0}]
[{"$f":"'نموذج تعبئة فواتير السلف'!A352","v":345},{"$f":"'نموذج تعبئة فواتير السلف'!J352","v":0},{"$f":"'نموذج تعبئة فواتير السلف'!E352","v":0},null,"",{"$f":"الجدول3[[#This Row],[مبالغ النموذج]]-الجدول3[[#This Row],[مبالغ المحضر]]","v":0}]
[{"$f":"'نموذج تعبئة فواتير السلف'!A353","v":346},{"$f":"'نموذج تعبئة فواتير السلف'!J353","v":0},{"$f":"'نموذج تعبئة فواتير السلف'!E353","v":0},null,"",{"$f":"الجدول3[[#This Row],[مبالغ النموذج]]-الجدول3[[#This Row],[مبالغ المحضر]]","v":0}]
[{"$f":"'نموذج تعبئة فواتير السلف'!A354","v":347},{"$f":"'نموذج تعبئة فواتير السلف'!J354","v":0},{"$f":"'نموذج تعبئة فواتير السلف'!E354","v":0},null,"",{"$f":"الجدول3[[#This Row],[مبالغ النموذج]]-الجدول3[[#This Row],[مبالغ المحضر]]","v":0}]
[{"$f":"'نموذج تعبئة فواتير السلف'!A355","v":348},{"$f":"'نموذج تعبئة فواتير السلف'!J355","v":0},{"$f":"'نموذج تعبئة فواتير السلف'!E355","v":0},null,"",{"$f":"الجدول3[[#This Row],[مبالغ النموذج]]-الجدول3[[#This Row],[مبالغ المحضر]]","v":0}]
[{"$f":"'نموذج تعبئة فواتير السلف'!A356","v":349},{"$f":"'نموذج تعبئة فواتير السلف'!J356","v":0},{"$f":"'نموذج تعبئة فواتير السلف'!E356","v":0},null,"",{"$f":"الجدول3[[#This Row],[مبالغ النموذج]]-الجدول3[[#This Row],[مبالغ المحضر]]","v":0}]
[{"$f":"'نموذج تعبئة فواتير السلف'!A357","v":350},{"$f":"'نموذج تعبئة فواتير السلف'!J357","v":0},{"$f":"'نموذج تعبئة فواتير السلف'!E357","v":0},null,"",{"$f":"الجدول3[[#This Row],[مبالغ النموذج]]-الجدول3[[#This Row],[مبالغ المحضر]]","v":0}]
[null,null,{"$f":"'نموذج تعبئة فواتير السلف'!H6","v":0},{"$f":"SUBTOTAL(109,D5:D354)","v":1}]

{"sheet":"عبدالرحمن السالم","index":3,"n_rows":870,"n_cols":9,"rows_kept":870,"cut":false,"hidden":true,"merged":[]}
["م","رقم الملف","الإســـــــــــــــــــــــــم","المسمى الوظيفي"]
[1,"96873","ابتسام بنت عمهوج بن شرار العتيبي","مساعد إداري"]
[2,"95872","ابتسام خلف سعد المطيري","مساعد إداري"]
[3,"10252","ابتسام سعد فهد الشدي","أستاذ"]
[4,"11430","ابتسام عبدالرحمن محمد الجساس","صيدلي"]
[5,"10940","ابتسام ناصر عبدالله السلطان","صيدلي اول"]
[6,"10974","ابتهال سليمان العبدالله","أستاذ"]
[7,"96344","ابتهال محمد عبدالعزيز الغيث","مراقب طلبة"]
[8,"34085","ابرار عوض عبدالله المطيري","فني"]
[9,"14717","ابراهيم احمد محمد العلى ",0]
[10,"102233","ابراهيم الجيلاني ساليس","أستاذ مساعد"]
[11,"95583","ابراهيم بن عبدالله بن فالح النفيعي العتيبي","فني أجهزة"]
[12,"17041","ابراهيم سليمان عبدالله الخليفى ",0]
[13,"20210","ابراهيم عبدالرحمن الجفالي","أستاذ مشارك"]
[14,"26244","ابراهيم عبدالرحمن خليفه الرويس","صيدلي"]
[15,116926,"ابراهيم عبدالرزاق السويدان","أستاذ مشارك"]
[16,11767,"ابراهيم عبدالله ابراهيم السراء","أستاذ"]
[17,"73231","ابراهيم علي محمد درويش","أستاذ"]
[18,"70373","ابراهيم مصطفى عبدالفتاح الباجورى ",0]
[19,"95542","اثير ناصر حامد محمد ينبعاوي","فني"]
[20,23213,"احلام محمد عمر الحسيني","أستاذ مساعد"]
[21,"77548","احمد بري","أستاذ مشارك"]
[22,"94891","احمد بن مانع بن هادي ال شهي","فني أجهزة"]
[23,"94893","احمد بن هادي بن محمد معشي","فني مختبرات"]
[24,"30129","احمد جمعه محمد عبيد الله","أستاذ مساعد"]
[25,"22649","احمد سعد ثبيت الشهرانى","أخصائي"]
[26,"55890","احمد صديق على خليفه","مساعد باحث"]
[27,27687,"احمد صياح مزيد جعفري العنزي","معيد"]
[28,"75394","احمد عبدالوهاب عبدالمجيد شهبه","باحث"]
[29,"27392","احمد علي احمد ناحي الغامدي","أستاذ مساعد"]
[30,"36260","احمد فاخر فايز الدمرداش","أستاذ مساعد"]
[31,24767,"احمد لا في دوجان العوفي","أستاذ مساعد"]
[32,"23376","احمد محمد هليل شامان","أستاذ مساعد"]
[33,66169,"احمد محمود احمد العفيفى ","أستاذ مساعد"]
[34,"106510","احمد نديم نسيم الدين","أستاذ مشارك"]
[35,"58828","احمد يعقوب مايت","أستاذ"]
[36,"90030","ارم كمال الدين حسين الطاهر","باحثة"]
[37,"100108","اروى بنت صالح بن عبدالمحسن بن ناصر بن مفيريج","مساعد إداري"]
[38,"95062","اروى بنت منصور بن عبيدالله المحمدي","فني"]
[39,"104545","اريج بنت يحي بن رشيد مؤذنه","فني"]
[40,"12278","اريج محمد عبدالله الطويل","أستاذ"]
[41,"101927","ازمت علي خان","أستاذ مشارك"]
[42,"18277","ازهر مصطفى محي الدين عرفه","أستاذ مساعد"]
[43,"96209","اسماء بنت عبدالله بن على المقيل","مساعد إداري"]
[44,"94897","اسماعيل بن حسين بن سالم ال قامس اليامي","فني سجلات طبية"]
[45,"13548","اشرف فاروق محمود شاهين","صيدلي"]
[46,"96515","اشواق بنت براهيم بن علي الدغيم","مساعد إداري"]
[47,"105036","اشواق علي ابن معيوف الفدعاني العنزي","فني"]
[48,"106606","افضل حسين انتصار حسين","أستاذ مشارك"]
[49,"115302","افنان العربي سليم عبدالرحمن","باحث ب"]
[50,"97289","اكسيو   ونهوي ",0]
[51,"24859","الاء احمد محمد العنتيت","محاضر"]
[52,"27440","الجازي سامي ابراهيم المزيد","معيد"]
[53,"106810","الجوهره عبدالعزيز بن تركي بن سليمان التركي","كاتب"]
[54,"4281","الجوهره فالح مهدى الدوسرى","ناسخ آله"]
[55,93494,"الطاف خان اطهار","أستاذ مساعد"]
[56,"100538","العنود بنت عبدالحميد مبروك حسن السماعيل","فني"]
[57,"14279","العنود صنهات برك المرشدي","أستاذ مساعد"]
[58,31911,"العنود محمد سعد الطلال","معيد"]
[59,76305,"امال السايح فضل ابو العلا","أستاذ مشارك"]
[60,"75395","امانى زين العابدين محمود الشهيدى","باحث"]
[61,"97214","اماني محمد بن مسلم الشويمان","مساعد إداري"]
[62,"96832","امتنان بنت معلا بن ناقي اليحيوي الحربي","محاضر"]
[63,"6026","امل جميل ياسين فطاني","أستاذ"]
[64,"92103","امل عبدالعزيز علي العجلان","مساعد إداري"]
[65,"93397","امل عطا حمود السبيتي","معيد"]
[66,"98563","امنه حسن على فقيهي","مساعد إداري"]
[67,"97013","اميره ظافر عبدالله الشهري","مراقب طلبة"]
[68,"108874","اميمه محمد نور الجوهري","أستاذ"]
[69,"96879","امينه عوض بن تركي بن الدلبحي العتيبي","مساعد إداري"]
[70,"17521","اوس ابراهيم سليمان الشمسان","أستاذ"]
[71,"103694","ايمان بنت يوسف بن حسين الجاسم","فني"]
[72,"79013","ايمان سعد السعيد عيسى","باحث"]
[73,"93359","ايمان عبدالله محمد القرني","معيد"]
[74,"12368","ايمان على عبدالله الدحيم","صيدلي"]
[75,"38102","ايمان علي محمد التركي","معيد"]
[76,24994,"ايمان محمد راشد الفقيه","أستاذ مساعد"]
[77,"70374","ايمن محمد جمال الدين احمد محمود ",0]
[78,"95548","ايناس بنت عمر بن علي برناوي السباك","فني"]
[79,127410,"ايهاب مصطفى سعد الزيات","أستاذ مساعد"]
[80,"75156","ايهاب مصطفى سعد الزيات","باحث"]
[81,"77821","إيناس أحمد زكريا حنفي","محاضر"]
[82,74333,"إيهاب إبراهيم طه البدوي","أستاذ"]
[83,"90062","أحمد حسن حسب الله بخيت","باحث"]
[84,"91511","أحمد حسن حمد ارباب","باحث أ"]
[85,37259,"أحمد زويعل شطي العنزي","أستاذ مساعد"]
[86,"91314","أحمد عبدالرحمن عبدالجليل أحمد","باحث"]
[87,121998,"أحمد عبدالعزيز التويجري","معيد"]
[88,"104517","أريج عبدالله حمود التويجري","مساعد إداري"]
[89,null,"أسماء سامي العنزي","أستاذ مساعد"]
[90,"98510","أشواق عثمان بن منصور أباحسين","فني مختبر"]
[91,"38509","أشواق علي عبدالعزيز الرومي","مساعد إداري"]
[92,"93296","أعجاز أحمد غلام نبي غني","أستاذ مشارك"]
[93,91350,"أمجاد بنت فيحان بن عبدالعزيز بن لبده","صيدلي"]
[94,"92316","أميرة عيسى عبد الرحمن العيسى","مساعد إداري"]
[95,"94766","أميره محمد بن عويد العنزي","فني"]
[96,null,"أنفال فهد بن دايل","أستاذ مساعد"]
[97,"88249","أي أف أم مطيع الرحمن","أستاذ مشارك"]
[98,"38510","آلاء علي عبدالعزيز الرومي","مساعد إداري"]
[99,"113547","باسط لطيف جان","باحث متفرغ"]
[100,"36104","بدر احمد محمد مريشد","فني"]
[101,"94921","بدر بن حايف بن ماجد الدريعي الحربي ",0]
[102,"24854","بدر سعود ابراهيم السعدى","فني"]
[103,"97866","بدور بنت بجاد بن صالح الحنتوشي العتيبي","مراقب طلبة"]
[104,"96079","بدور بنت سلمان بن مناور المطيري","مترجم"]
[105,"28319","برجس سمير صقار العنزى","مساعد إداري"]
[106,"93739","برويز عالم شيخه","أستاذ مشارك"]
[107,"93565","بسمه حامد صالح الفاجح","معيد"]
[108,"28553","بسمه عبدالله حمدان العنزى","صيدلي"]
[109,"8847","بسمه ناصر عبدالله الدوسري","محاضر"]
[110,"23426","بسمه يوسف يعقوب كنتاب","محاضر"]
[111,"94771","بشاير علي بن صالح العصفور","فني"]
[112,11771,"بشرى توفيق محمد القضيب","أستاذ مساعد"]
[113,"24743","بندر سمير حسن بلخي","أستاذ مشارك"]
[114,"35594","بندر عبدالله المفرج","سكرتير"]
[115,"29877","بهيه عبدالرحمن سعد الجبرين","صيدلي"]
[116,"96502","بيان ابراهيم عبدالله العريفى","مساعد إداري"]
[117,"109782","تبيان عمر محمد ميرغني","باحث ب"]
[118,"28386","تركى عبدالعزيز على العواد","كاتب"]
[119,"100539","تغريد بنت صغير بن دحلان بن ناصر القوادي الشراري","فني"]
[120,"73629","تغريد عبده ابراهيم شحاته","أستاذ مشارك"]
[121,"77783","تنوير احمد واني","أستاذ مشارك"]
[122,"93390","تهاني إبراهيم محمد الخضيري","مراقب طلبة"]
[123,"10686","توفيق عبدالله سليمان الهويريني","أستاذ"]
[124,"2180","توفيق على عمر النجار ",0]
[125,"120652","توفيق علي عمر النجار","أستاذ"]
[126,76744,"تيد   مورتن ","أستاذ مشارك"]
[127,"71545","تيسير راشد اليعقوب المنيزل","فني مختبر"]
[128,"90653","ثامر حمد صالح البكيري","أستاذ مساعد"]
[129,"32072","ثامر عبدالعزيز عبدالعزيز المنقور","أستاذ مساعد"]
[130,"38929","جسار علي محمد السبيعي","ناسخ آله"]
[131,75807,"جمال الدين ابراهيم احمد هريسه","أستاذ"]
[132,"73310","جمال عبدالحفيظ مصطفى مصطفى","أستاذ"]
[133,"79520","جمال عبدالغني شاذلي احمد","أستاذ"]
[134,"57101","جمال محمد محروس رماح","أستاذ"]
[135,"5435","جميله ابراهيم احمد الهبدان","ناسخ آله"]
[136,"5052","جميله احمد توفيق عايديه","سكرتير"]
[137,"27406","جميله احمد عبدالرزاق السعيدان","محاضر"]
[138,"31936","جميله محمد ظافر الشهري","معيد"]
[139,"84845","جهير محمد زيد المطيويع","مشغل آلات مكتبية"]
[140,"27403","جواهر حمد ضويحي القحطاني","معيد"]
[141,"91679","جواهر فهد محمد الوايلي","ناسخ آله"]
[142,"96897","جوزاء غازى ابن كميخ العتيبي","مساعد إداري"]
[143,"24789","جوزاء فهد نايف السبهان","أستاذ مساعد"]
[144,"27444","حاتم احمد محمد ابوالعز","أستاذ مشارك"]
[145,77792,"حاتم عبدالقادر عبدالعزيز محمد ","أستاذ مشارك"]
[146,"75695","حاتم مصطفى رضوان ابوحشيش ",0]
[147,"114557","حازم احمد المرسى غبور","أستاذ مساعد"]
[148,"34158","حامد عضيبان فارع السلمي","كاتب"]
[149,"93908","حسام فيصل مفضي الجبير","صيدلي"]
[150,"30128","حسام محمد عبداللطيف البسام","أستاذ مساعد"]
[151,"95573","حسن بن ابراهيم بن سليمان ادريس","فني مختبر"]
[152,"94820","حسين بن رضي بن احمد العبدالعال ",0]
[153,"15361","حسين عبدالرحمن عبدالله العمر","أستاذ مساعد"]
[154,"103666","حسين ناصر علي الهمامي","أستاذ مساعد"]
[155,"28485","حصه احمد عبدالرحمن الكنهل","ناسخ آله"]
[156,"96933","حصه محمد بن مسلم الشويمان","فني مختبر"]
[157,"38918","حصه مسفر مصلح المالكي","مسجل معلومات"]
[158,"94819","حمد بن عبدالرحمن بن محمد الثاري","فني"]
[159,10909,"حمد ضويحى مجمش القحطانى ",0]
[160,"21079","حمد على بدين الرشيدى","فني مختبر"]
[161,7263,"حمد مبارك على الحنايا","فني"]
[162,"25080","حمد مسفر حمد القحطاني","أستاذ مساعد"]
[163,"27391","حمود ذياب ساعد الضبيطي المطيري","أستاذ مساعد"]
[164,31774,"حمود مقبل راشد ابوسبيع السبيعي","أستاذ مساعد"]
[165,"38013","حنان خالد هذال الغبيوي","معيد"]
[166,"38956","حنان عوض محسن المالكي","ناسخ آله"]
[167,"109674","حنان محمد حمد الشبل","معيد"]
[168,"24179","حنان محمد سعد اليوسف","أستاذ مشارك"]
[169,"27574","حنان يحيى عبدالله عاتى","محاضر"]
[170,"95540","حنين ابراهيم عبدالله بن شقيران","فني"]
[171,"25094","حنين سعود احمد مارنقا","معيد"]
[172,null,"حنين عبدالله المزروع","أستاذ مساعد"]
[173,90563,"خالد احمد سعد الهزاني","أستاذ مساعد"]
[174,"94939","خالد بن محمد بن حسن العسيري","فني صيدلة"]
[175,"16065","خالد سليمان ناصر الشامخ","فني"]
[176,"37098","خالد عبدالعزيز ابراهيم المفرج","مراسل"]
[177,89845,"خالد عبدالله راشد اليحيى","معيد"]
[178,12289,"خالد عبدالله محمد الحسيني","أستاذ مساعد"]
[179,"101553","خالد عبدالمحسن - الرشود","أستاذ"]
[180,"27394","خالد عدنان ناصر البريكان","أستاذ مشارك"]
[181,"9188","خالد محمد ابراهيم بن خرفي","أستاذ"]
[182,"91057","خالد محمد المعتصم الزكري","ناسخ آله بلغتين"]
[183,"29876","خالده محمد ربحى الشنطى","صيدلي"]
[184,"95459","خديجه بنت عمر بن احمد المساوي","فني"]
[185,"95472","خديجه محمد عباس برناوى","فني"]
[186,"100542","خلود عبدالامين حسن يامي","فني"]
[187,"101549","خليل ابراهيم محمد الخميس ",0]
[188,"91767","خولة فهد سعد المفرج","مساعد إداري مشرف"]
[189,"95134","خوله بنت خليف بن زنار الخريصي العنزي","فني"]
[190,"77572","خيرى محمد عبدالله زهير","أستاذ مساعد"]
[191,"63190","د. راو مظفر على خان ",0]
[192,"20842","دخيل الله على صالح الغامدى","فني"]
[193,"100548","دعاء بنت عبد الوهاب بن عبد الأله المطيع","فني"]
[194,"16296","دعاء حسن ابراهيم الشورى","أستاذ مساعد"]
[195,"108968","دلال احمد ناصر الخلب","معيد"]
[196,"92384","دلال علي سليمان الوهيبي","مساعد إداري مشرف"]
[197,"26899","ديما عوض تركى التركى","صيدلي"]
[198,"35327","ديمه خالد ابراهيم القدير","كاتب"]
[199,"27908","راشد سعد محمد الحديبى","كاتب"]
[200,"36123","راكان محمد العصاى","ناسخ آله"]
[201,"104793","رانيه ابراهيم ناصر الجديد","أستاذ مساعد"]
[202,"64440","رائد محمد عادل السهلى ",0]
[203,"92015","رباب عبدالمنعم خليل الديب","أستاذ مشارك"]
[204,"94472","رباب محمد عتيق الصريوفي","فني"]
[205,"66734","رجب ابراهيم مرسى سعيد ",0]
[206,"111899","رحاب أحمد محمد علي","باحث متفرغ"]
[207,"95545","رحمه بنت احمد ابن ابوبكر ابن حسن الكشناوي","فني"]
[208,"78229","رشاد عبدالرحمن احمد الصلاحي","أستاذ مشارك"]
[209,"35592","رغده حمزه محمد ابو طربوش","ناسخ آله"]
[210,"93360","رفعه حقيب سالم العجمي","معيد"]
[211,"100550","رقيه بنت فريد بن معتوق المبروك","فني"]
[212,"75501","رمزى احمد عبدالله مثنى","أستاذ"]
[213,"104792","رنا ابراهيم ناصر الجديد","أستاذ مساعد"]
[214,"91211","رنا عبدالغني خالد المطيري","فني"]
[215,"21789","رها سعود محمد اورفلي","أستاذ مشارك"]
[216,"101678","روابي بنت علي بن تركي التركي","مساعد إداري"]
[217,30165,"روان انور حسين فتيحي","معيد"]
[218,122716,"روان فهد عبدالعزيز الزايدي","معيد"]
[219,"98824","رويدا ناصر بن صالح بن علي عبدالرحمن الزغيبي","مساعد إداري"]
[220,119273,"رياض الله سعيد  أكبر ","باحث"]
[221,103662,"رياض فيصل عبدالله الزهراني","معيد"]
[222,"104998","ريان بن عبد الله بن إبراهيم المنصور","فني صيدلية"]
[223,"91340","ريس الدين علي محمد","باحث"]
[224,"99677","ريم ابراهيم رشيد بن مجلي","مساعد إداري"]
[225,"12477","ريم ابراهيم محمد الوابلي","أستاذ مشارك"]
[226,"105114","ريم سعود ابراهيم الطريري","مساعد إداري"]
[227,"38511","ريم عبدالله عقيل الطيار","مطور برامج مساعد"]
[228,"27981","ريم محمد عبدالله ابوحجيل","محاضر"]
[229,"36127","ريما محمد جابر الشهرى","مسجل معلومات"]
[230,26922,"ريهاف راضي طلال الفرج","محاضر"]
[231,"104216","زايد بن مجاهد بن عواد الوسيدي الحربي","فني"]
[232,"95206","زهراء بنت صادق بن جعفر الدار","فني"]
[233,"97907","زهره بنت عباس بن جعفر بن عباس الحكري","فني"]
[234,"99801","زهير عبد الرحمن سيف آل مطير القحطاني","معيد"]
[235,20209,"زياد سعود علي بن خثلان","أستاذ مشارك"]
[236,"36424","زياد سليمان محمد الربيعه","أستاذ مساعد"]
[237,"29884","زيد محمد زيد العشبان","صيدلي اول"]
[238,"98480","زينب بنت حسين بن فرحان بن ليفان السبيعي العنزي","مساعد إداري"]
[239,"36781","سارة سالم احمد شريف","مشغل أجهزة مكتبية"]
[240,24919,"ساره ابراهيم روزى بخارى","أستاذ مساعد"]
[241,"97633","ساره بنت توفيق بن عبدالله الرشيد","باحث احصاء"]
[242,"91788","ساره سفر سعيد الدوسري","مساعد إداري"]
[243,"35605","ساره سلطان عبدالله الحبيشى","كاتب"]
[244,"16425","ساره طارق عبدالمحسن الرشود","أستاذ مشارك"]
[245,"100527","ساره عبدالرحمن حمد العسيمي","معيد"]
[246,"92045","ساره عبدالله سعود بن طالب","مساعد إداري"]
[247,122296,"ساره محمد عبد الله الراجح","معيد"]
[248,"24441","ساره محمد عبدالمحسن اللعبون","صيدلي"]
[249,"115628","ساره مقرن فهد الربيع","معيد"]
[250,36246,"ساري ابراهيم صالح الصانع","أستاذ مساعد"]
[251,13867,"سالم صالح علي الرجيعي","أستاذ"]
[252,"107279","سالمين دقيل عمر بابلغيث","أستاذ مساعد"]
[253,"12612","سامى عبدالله حمد المنيع","منسق قبول وتسجيل"]
[254,"94950","سامي بن عبدالله بن عيضه العمري السفياني","فني صيدلة"]
[255,90041,"ساميه الحرير سالم الحبردي","معيد"]
[256,"103657","ساميه بنت عبدالرزاق بن فوزي سوار","مراسل مكتبي"]
[257,"38084","ساميه محمد عبدالله الشهري","أستاذ مساعد"]
[258,"27407","سجى حميد ابراهيم المزروع","محاضر"]
[259,"102207","سرفارزا احمد محد احمد","أستاذ مشارك"]
[260,"101564","سعد ابراهيم سعد العبيد","أستاذ مساعد"]
[261,"88851","سعد سعيد سعد الشهراني","فني"]
[262,"39350","سعد فهد سعد المفرج","مساعد إداري"]
[263,95577,"سعود بن عبدالرحمن بن سعود السويداء","فني مختبرات"]
[264,95000,"سعيد عبدالله الغامدي","فني"]
[265,"24794","سعيد علي دليم ال شامر القحطاني","أستاذ مشارك"]
[266,"88684","سعيد علي سيد","أستاذ مساعد"]
[267,"93946","سفره عبدالله حمود البقمي","منسق قبول وتسجيل"]
[268,"105244","سلطان بن خالد بن بدر العسكر","فني تخدير"]
[269,"106219","سلطان بن سعود بن عبدالعزيز الموسى","فني أجهزة طبية"]
[270,"30859","سلطان حسين ابراهيم الهديب ",0]
[271,"27415","سلطان سعد عبدالله المديميغ","محاضر"]
[272,"30999","سلطان عبدالله على العجلان ",0]
[273,"15143","سلطان على عبدالله الشعلانى","فني مختبر"]
[274,"35583","سلطان محمد سليمان الربيعان ",0]
[275,"36242","سلطان محمد عبدالعزيز الغدير","أستاذ مشارك"]
[276,30937,"سلطان محمد ناصر ال سليمان الشهري","أستاذ مشارك"]
[277,"16303","سلمى صنهات برك سالم المرشدى","صيدلي"]
[278,"95420","سلوى بنت محمد بن علي فلاته","فني"]
[279,"19992","سليم محمد سالم العصاى","ناسخ آله"]
[280,"105784","سليمان بن عبد العزيز بن سليمان الجربوع","فني مختبر"]
[281,92784,"سليمان صالح سليمان الحديثي","معيد"]
[282,"7663","سليمان عبدالرحمن المطرودى","مسجل معلومات"]
[283,"11514","سليمان محمد سليمان الربيعان","مأمور صرف"]
[284,"29926","سليمان محمد سليمان القعود","فني"]
[285,"78557","سمر عبدالعزيز أحمد عفيفي","أستاذ مشارك"]
[286,"102164","سميره بنت عبدالله بن عيد بن حمدان القرعاوي الحويطي","فني"]
[287,"97293","سميره عبدالله بن علي الشهري","مساعد إداري"]
[288,"100857","سميه بنت خالدبن صالح بن علي المديميغ","مساعد إداري"]
[289,"96206","سميه ناصر محمد الصبيح","مساعد إداري"]
[290,"95653","سهى بنت فائز بن عبدالحميد الغامدي","فني"]
[291,"34287","سؤدد يوسف ياسين الحزيمي","كاتب"]
[292,"54223","سيد   رفعت الله ",0]
[293,"101945","سيد حسن محمد عوده","أستاذ مشارك"]
[294,"77644","سيد رضوان احمد","أستاذ مساعد"]
[295,"106245","سيد رفعت الله","باحث"]
[296,"116322","سيد هداية الله رحمة الله","باحث"]
[297,"11234","سيناء عبدالمحسن العقيل","أستاذ مشارك"]
[298,"77602","شاغفته بروين","أستاذ"]
[299,78936,"شاكر خان  خان ",0]
[300,"89448","شاكر دخيل زايد الشراري","أستاذ مشارك"]
[301,"94370","شاهانا فاج خان داوود خان","أستاذ مساعد"]
[302,"96633","شذى بنت سليمان عبدالعزيز محمد اليعيش","كاتب"]
[303,"10554","شذى محمد عادل المعصرانى","أستاذ"]
[304,"24672","شروق محمد عبدالله الطويل","معيد"]
[305,"84054","شريفه صالح عبدالله الدايود","مراسل"]
[306,"98647","شعاع عبدالرحمن عبدالعزيز الشايع","مساعد إداري"]
[307,"82685","شماء حمدان سليمان الدوسرى","مراسل"]
[308,"93399","شيخه صبحي عبدالرزاق العوجان","أستاذ مساعد"]
[309,"15379","شيخه محمد على السيف","صيدلي"]
[310,"75128","شيرين محمد احمد محمود شحاته","باحث أ"]
[311,"13294","صالح ابراهيم صالح القسومي","أستاذ"]
[312,"94968","صالح بن علي بن صالح ال سالم الغامدي","فني صيدلة"]
[313,"94991","صالح بن مهدي بن حمد بن نديل المحامض","فني سجلات طبية"]
[314,"94809","صالح بن هادي بن محمد الحسني ",0]
[315,"6531","صالح عبدالرحمن ابراهيم البخيت","أستاذ"]
[316,"2179","صالح عبدالله عمر باوزير ",0]
[317,5125,"صالح عبدالله منصور السويح","أستاذ"]
[318,"25592","صالح محمد صالح الكنعان","مساعد إداري"]
[319,"35188","صالح محمد صنيدح النفيعى العتيبى","سكرتير"]
[320,"26555","صالحه علي محمد جوخب","محاضر"]
[321,"73917","صبري محمد عبده عطيه","أستاذ"]
[322,"116324","صديقي أكبر أنصاري","أستاذ مساعد"]
[323,"95514","صفاء بنت علي بن حسن القحافي","فني"]
[324,"101405","صفاء بنت علي صالح الياسين","مساعد إداري"]
[325,"5319","صلاح سالم محمد المدوح","مساعد إداري"]
[326,"28952","صيفى راشد صيفى العطيات الشلالى","فني زراعي"]
[327,"66907","ضياء الدين زيدان شعبان","فني"]
[328,72967,"طارق ابوالفضل محمد حسن ","أستاذ"]
[329,94586,"طارق أحمد صبيح العطوي","فني مختبرات"]
[330,"110156","طارق قبل عطية المطرفي","فني"]
[331,"22678","طارق محمد عبدالله الحواسي","أستاذ مشارك"]
[332,"76807","طلال السمانى  الامام البشير ",0]
[333,"94972","عادل بن سعد بن علي الحسيكي الحارثي","فني"]
[334,"71211","عادل رشاد احمد عبدالله ",0]
[335,"72464","عادل شعبان عزب مرسى","أستاذ"]
[336,24766,"عادل علي بخيت الحويان","محاضر"]
[337,"26809","عادل فالح ال غيث","أستاذ مساعد"]
[338,94577,"عادل فتحي ابراهيم جريبي","فني مختبرات"]
[339,"52769","عاطف محمد احمد شبل ",0]
[340,"18823","عامر معيوف مخيمر العنزي","أستاذ"]
[341,"94818","عايض بن محمد بن عائض آل جاري القرني","فني"]
[342,"94957","عايض بن محمد بن محيل الصواط","فني مختبرات"]
[343,"35256","عائشه على عبدالله حسانى","مراقب طلبة"]
[344,"105111","عبد الرحمن بن سعيد بن عزيز ال مغرم الغامدي","فني صيدلية"]
[345,105284,"عبد الرحمن بن عبد العزيز بن ابراهيم المجحد","فني أجهزة طبية"]
[346,"77911","عبد العارف خان","أستاذ مشارك"]
[347,"105007","عبد العزيز بن محمد بن عساف الفدعاني العنزي","فني أجهزة طبية"]
[348,"111600","عبد الله بن مبارك بن محمد الجميعه","فني أجهزة طبية"]
[349,"105291","عبد الله بن محمد بن عبد العزيز المهنا","فني تخدير"]
[350,"108732","عبد المجيد بن لافي بن نهار المخلفي الحربي","فني مختبر"]
[351,"101408","عبدالاله بن محمد بن رزق الله حارثي","فني"]
[352,94368,"عبدالأحد شمشاد","أستاذ مشارك"]
[353,77712,"عبدالجليل السيد عمرو","أستاذ"]
[354,"8890","عبدالحكيم عبدالعزيز  الماجد ",0]
[355,"101528","عبدالرحمن ابراهيم ناصر المقبل","مساعد إداري"]
[356,"7798","عبدالرحمن احمد سليمان الماجد","أستاذ"]
[357,"95008","عبدالرحمن بن سعد بن نويجي الرحيلي","فني صيدلة"]
[358,"97787","عبدالرحمن بن عبدالعزيز بن علي السالم","مساعد إداري"]
[359,"15860","عبدالرحمن سلطان عبدالرحمن سلطان","ناسخ آله بلغتين"]
[360,"88361","عبدالرحمن عايض فيحان العتيبي","كاتب"]
[361,"24746","عبدالرحمن عبدالعزيز مهيزع المهيزع","أستاذ مشارك"]
[362,"857","عبدالرحمن عبدالله عبدالمحسن المطرفى ",0]
[363,107231,"عبدالرحمن عبدالله عبدالمحسن المطرفي","أستاذ"]
[364,"22647","عبدالرحمن عبدالله محمد كريرى","أخصائي مختبر"]
[365,"36256","عبدالرحمن محمد صالح الوهيبي","أستاذ مساعد"]
[366,120825,"عبدالرحمن محمد عبدالرحمن الدبيس ","كاتب"]
[367,"29925","عبدالرحمن محمد عبدالرحمن الشليل","فني"]
[368,"10377","عبدالرحمن محمد عبدالعزيز الغدير","أخصائي"]
[369,116927,"عبدالرحمن محمد عبدالمحسن العبيد","أستاذ"]
[370,"1863","عبدالرحمن محمد عبدالمحسن العبيد ",0]
[371,"92894","عبدالرحمن محمد علي الشمري","أستاذ مساعد"]
[372,"94574","عبدالرحمن وراد جبر الرويلي ",0]
[373,"115319","عبدالرحمن يحيى علي علي شريف","باحث ب"]
[374,"12962","عبدالسلام عبدالرحمن الدرويش","سكرتير خاص"]
[375,"93261","عبدالعاطي عبدالعزيز شحات حسين","أستاذ"]
[376,"94573","عبدالعزيز احمد فايز السبيعي","فني مختبرات"]
[377,"94563","عبدالعزيز أحمد حسن عسيري ",0]
[378,"95585","عبدالعزيز بن حمد بن على الصويلح","فني مختبرات"]
[379,"95587","عبدالعزيز بن خالف بن سرور الظويفري المطيري ",0]
[380,"94556","عبدالعزيز سعد على العقيفي","فني سكرتير طبي"]
[381,"37327","عبدالعزيز سعود عبدالله الحمد","مسجل معلومات"]
[382,"6975","عبدالعزيز عبدالرحمن السحيبانى","مشرف خدمات"]
[383,"10144","عبدالعزيز عبدالرحمن اليحيى","أستاذ مشارك"]
[384,"36148","عبدالعزيز عبدالله عبدالعزيز بن مهوس","كاتب"]
[385,12415,"عبدالعزيز محمد العيسى","أستاذ"]
[386,"94561","عبدالعزيز محمد إبراهيم القحطاني","فني سكرتير طبي"]
[387,24613,"عبدالعزيز محمد سعد ال سعد","أستاذ مشارك"]
[388,"24656","عبدالعزيز محمد عبدالعزيز الباحوث","مساعد إداري مشرف"]
[389,"27393","عبدالعزيز محمد عبدالعزيز الحصان","أستاذ مساعد"]
[390,"94557","عبدالعزيز محمد معدي القحطاني","فني مختبرات"]
[391,"15223","عبدالعزيز ناصر عبدالله المقبل","فني"]
[392,"94112","عبدالغفور عبدالمغيث عبدالجبار محمد ",0]
[393,58746,"عبدالفتاح عفيفى عبدالخالق","مساعد باحث"]
[394,"73986","عبدالقادر البدوي عباس عاشور","أستاذ مشارك"]
[395,"105122","عبدالقادر عبدالرحمن 0 الحيدر","أستاذ"]
[396,"863","عبدالقادر عبدالرحمن 0 الحيدر ",0]
[397,"22812","عبدالكريم هديان عطالله المطيرى","فني"]
[398,"2720","عبداللطيف احمد علي الضويلع ال غيهب","أستاذ"]
[399,"35585","عبدالله ابراهيم المزيرعى","مساعد إداري"]
[400,"121002","عبدالله بن توفيق بن عبدالله الهويريني","معيد"]
[401,"95408","عبدالله بن حسن بن عبدالله ال دهيم القحطاني","فني صيدلي"]
[402,"95021","عبدالله بن رفاعي بن وصل الشاطري المطيري","فني"]
[403,"95039","عبدالله بن عمر بن غصاب الحجري العنزي ",0]
[404,"98439","عبدالله بن ناصر بن حويد العتيبي ",0]
[405,12974,"عبدالله حسن عبدالله العمراني","أستاذ مشارك"]
[406,15950,"عبدالله حماد عبيد الحماد","فني مختبر"]
[407,"89639","عبدالله حمد ابراهيم الزير","أستاذ مساعد"]
[408,89465,"عبدالله خالد عبدالله الشميمري","أستاذ مساعد"]
[409,"88506","عبدالله رجاء علي الشملاني","معيد"]
[410,"28966","عبدالله زيد سيف المشارى","ناسخ آله بلغتين"]
[411,23497,"عبدالله سعد عبدالكريم العبدالكريم","معيد"]
[412,"24745","عبدالله صالح علي سلطان","أستاذ مساعد"]
[413,"98509","عبدالله صالح مدالله الحامد","أستاذ مساعد"]
[414,37329,"عبدالله طايع عبدالله باوزير","محضر مختبر"]
[415,"23309","عبدالله عاشى دعسان العنزى","فني"]
[416,"34166","عبدالله عبدالرحمن ابراهيم الخميس","سكرتير"]
[417,"18839","عبدالله عبدالرحمن عبدالله المشارى","أخصائي"]
[418,"36477","عبدالله عبدالرحمن نياز تركستاني","معيد"]
[419,"15082","عبدالله عبدالعزيز  البدر ",0]
[420,"17298","عبدالله عبدالعزيز سعد المعيلى","رئيس قسم"]
[421,"92505","عبدالله عبدالعزيز محمد القحيز","مساعد إداري"]
[422,"24698","عبدالله علي مبارك الدوسري","أستاذ مساعد"]
[423,97567,"عبدالله فايز حسن الاسمري","أستاذ مساعد"]
[424,109843,"عبدالله محمد السيد يوسف","باحث"]
[425,"18377","عبدالله محمد سعد الاحمرى","أخصائي"]
[426,10885,"عبدالله محمد سعد المهيزع","أستاذ"]
[427,"29952","عبدالله محمد عبدالله التركى","فني"]
[428,"23403","عبدالله محمد عبدالله الحصيني","أستاذ مساعد"]
[429,"24765","عبدالله موسى عبدالله الحماد","أستاذ مساعد"]
[430,"16009","عبدالله ناصر صالح الصياح","مراقب مخزون"]
[431,"95034","عبدالمجيد بن عبدالكريم بن بخيت الدهماني الثبيتي","فني صيدلة"]
[432,"99646","عبدالملك بن عبدالرحيم بن عبدالله دربي","فني صيدلي"]
[433,"98629","عبدالملك بن محمد بن عبدالله الطخيس ",0]
[434,"20994","عبيد صنت شديد الروقى","فني"]
[435,121463,"عبير بنت محمد بن نافع المضياني العنزي ","معيد"]
[436,"93853","عبير عبدالرحمن عبدالله المقرن","مسجل معلومات"]
[437,"112956","عبير عبدالكريم ابراهيم العبيداء","معيد"]
[438,"95600","عبير عمر محمد احمد","فني"]
[439,116734,"عثمان عبدالله الشبانه","أستاذ"]
[440,"860","عثمان عبدالله عثمان الشبانه ",0]
[441,"75137","عثمان يوسف مضوى محمد ",0]
[442,"114579","عثمان يوسف مضوي محمد","باحث أ"]
[443,"11770","عدنان احمد ابوبكر قاضي","أستاذ"]
[444,"7478","عدنان جذلان الرحيلي الحربي","أستاذ"]
[445,"91922","عزه عبدالله محمد الأسمري","مساعد إداري"]
[446,"76614","عزه محمد سعيد زكريا","أستاذ مساعد"]
[447,"92011","عزه محمد عامر المطيري","مساعد إداري"]
[448,"95613","عزيزه بنت محمدبن عبدالمحسن بن عبدالله المحيسن","فني"]
[449,"95432","عساف بن عيسى بن صالح آل عبدالواحد الكثيري","فني صيدلة"]
[450,"87510","عصام عز الدين حسن احمد علي","أستاذ مشارك"]
[451,"77938","عطا الله فؤاد علي أحمد","أستاذ"]
[452,"95045","عطيه بن سليمان بن سليم صدفان العطوي","فني صيدلة"]
[453,"100544","عفاف بنت عيسى بن حسين بن علي السروج","فني"]
[454,"94806","عقاب بن حمود بن حجاب الحربي","فني صيدلة"]
[455,"92771","عقيله عبد اللطيف حسن اعبيدان","مطور برامج"]
[456,"73029","علاء عبدالمؤنس عبدالعزيز محمد","أستاذ"]
[457,"26590","على محمد على ابوسعيد","كاتب"]
[458,"20993","على محمد على عسيرى","أخصائي"]
[459,"21053","على معتوق سلمان العايش","ناسخ آله"]
[460,"2856","على منصور احمد عكاش","فني مختبر"]
[461,"78934","علي اختر عبدول","باحث"]
[462,105237,"علي بن عايد بن محمد البراك الرشيدي","فني أجهزة طبية"]
[463,"95051","علي بن مشرع بن جبار الرفاعي الغامدي","فني صيدلة"]
[464,"23408","علي راشد سيف الحوشاني","أستاذ مشارك"]
[465,"24531","علي سعيد علي القحطاني","أستاذ مشارك"]
[466,"92272","علي صابر عبدالحميد محمد","أستاذ"]
[467,"75352","علي عبدالرحمن الامام","أستاذ"]
[468,37262,"علي عبدالله علي الشمراني","أستاذ مساعد"]
[469,"73619","علي علي حسن الجمل","أستاذ"]
[470,103358,"علياء سليمان بن علي الصالحي","معيد"]
[471,"25077","علياء عبدالجبار احمد المؤمن","أستاذ مساعد"]
[472,"95588","عماد بن حامد بن على البشري العمري ",0]
[473,"94865","عماد بن سالم بن فوزان العوني المطيري","فني"]
[474,"24216","عماد عبدالله سعيد السرحانى","فني"]
[475,"103950","عمر ابراهيم عمر الفنتوخ","أستاذ مساعد"]
[476,2895,"عمر احمد عبدالله الذييب ","أستاذ"]
[477,"75818","عمر احمد محمد باسودان","أستاذ مساعد"]
[478,"101830","عمر بن أحمد بن علي الجار الله ",0]
[479,"36266","عمر عبدالرحمن سالم ال محمد","أستاذ مساعد"]
[480,"54243","عمر محمد  ميرغنى ",0]
[481,121359,"عمر محمد علي صالح المرفدي ","باحث ب"]
[482,"111847","عمر محمد علي نعمان","باحث"]
[483,"55817","عمر منصور محمد احمد","أخصائي"]
[484,"78443","عمرو عبدالفتاح عماره محمد ",0]
[485,"89456","عمشاء سعود مبرد السقياني","معيد"]
[486,"98656","عهود بنت زيدبن عبدالعزيز بن سعود ال دهام","فني مختبر"]
[487,75825,"عواد عبده رضوان سلامه","أستاذ"]
[488,"23619","عواطف بكر راشد البكر","أستاذ مساعد"]
[489,"30789","عواطف على محمد مغرم","صيدلي"]
[490,"55939","عوض ابوالقاسم محمد عبدالقادر ",0]
[491,"88834","عيسى محمد عيسى عسيرى","مساعد إداري"]
[492,"93886","غاده ابراهيم عبدالعزيز ابوحيمد","محاضر"]
[493,"75032","غاده احمد فوزي زين الدين","أستاذ مشارك"]
[494,"93607","غاده أسعد محمد عسيري","محاضر"]
[495,"98637","غاده بنت حمزه بن محمد ابوطربوش","مساعد إداري"]
[496,"73266","غاده عبدالرحيم محمد باوزير","أستاذ مساعد"]
[497,"37808","غاده عبدالعزيز صالح الحمود","أستاذ مساعد"]
[498,"29878","غاده عبدالعزيز محمد الخميس","صيدلي"]
[499,"30955","غاده عبدالله عبدالعزيز الحزيمي","معيد"]
[500,"105137","غدير بنت فرحان بن زيد الاسعدي العتيبي","كاتب"]
[501,"29875","فاتن محمد على العضيب","صيدلي"]
[502,"105296","فارس بن ابراهيم بن ريس الريس","فني أجهزة طبية"]
[503,"103707","فارس عبدالله عتيق المطيري","معيد"]
[504,13042,"فارس قاعد مسعود العنزي","أستاذ"]
[505,"96279","فاطمة عبدالعزيز عبدالله الثميري","مراقب طلبة"]
[506,"88524","فاطمة مطلق مرزوق الدوسري","مراقب خدمات"]
[507,"103691","فاطمه احمد خليل فلاته","فني"]
[508,"95598","فاطمه بنت فرحان بن خلف بن جمعان التمام العنزي","فني"]
[509,"102304","فاطمه بنت محمد بن على بن مطلق الدليمان الشراري","فني"]
[510,"95465","فاطمه بنت نجيب بن محمد الخليفه","فني"]
[511,"94027","فاطمه صالح سليمان البلوي","معيد"]
[512,"13328","فاطمه عبدالعزيز محمد العمري","أستاذ مشارك"]
[513,"92883","فالح مشبب سعيد القحطاني","أستاذ مساعد"]
[514,93542,"فاياز شاكيل شاكيل احمد","أستاذ مشارك"]
[515,"31823","فايزه احمد صالح بن جبير","محاضر"]
[516,"106135","فايزه بنت مانع بن سعيد سعد","موزع"]
[517,"94954","فائزه عطاالله ابراهيم البلوي","فني"]
[518,"64462","فتح الرحمن محمد احمد الطيب","فني مختبر"]
[519,"99858","فراس بن عبدالله بن عجلان العجلان","كاتب"]
[520,"14268","فريد جلال محمد المهتدى ",0]
[521,"95603","فريده بنت هليل بن علي بن مناور الزبيني العنزي","فني"]
[522,"95457","فضيله بنت عباس بن علي آل فاضل","فني"]
[523,20919,"فضيله صفوق شويش العنزي","أستاذ مشارك"]
[524,"94953","فضيه عطاالله ابراهيم البلوي","فني"]
[525,"95619","فلاح بن كنيدر بن سمر الفريجي الرويلي ",0]
[526,22780,"فلوه يحيى صالح القحطانى","أستاذ مشارك"]
[527,8889,"فهد ابراهيم عبدالرحمن الجنوبي","أستاذ"]
[528,"95634","فهد بن سلامة بن عايش الكلبي الجهني ",0]
[529,"110098","فهد راشد عبدالله آل عزمه","فني"]
[530,"4431","فهد سعد عبدالعزيز المفرج ",0]
[531,"27252","فهد غازى الحميدى التوم العتيبى","ناسخ آله"]
[532,"38912","فهد محمد حمد السبيعى","مسجل معلومات"]
[533,"95218","فواز بن علي بن عبدان الحميد الزهراني ",0]
[534,98083,"فواز فايز محمد الاسمري","أستاذ مساعد"]
[535,"94139","فواز محمد سعيد المطيري","صيدلي"]
[536,"77889","فود خورشيد محمد خورشيد سلفي","محاضر"]
[537,101907,"فون هونغ كون  ","أستاذ"]
[538,"100551","في بنت سعيد بن خلف البركات","فني"]
[539,38000,"في علي ناصر الكثيري","محاضر"]
[540,"92993","فياض أحمد شيخ","أستاذ مشارك"]
[541,"29885","فيصل ابراهيم محمد بن هزاع","صيدلي"]
[542,104714,"فيصل امام موهد","أستاذ مساعد"]
[543,"98157","فيصل بن عبيد بن محمد ابورقطه القحطاني","مساعد إداري"]
[544,"21049","فيصل مبارك سليمان الغوينم","كاتب"]
[545,"76433","كازي محسن","أستاذ مشارك"]
[546,"63988","كمال الدين الطيب  محمد ",0]
[547,"108149","كمال الدين الطيب محمد","باحث"]
[548,"60161","كمال الدين حسين الطاهر","أستاذ"]
[549,"24696","لبنى عبدالله علي الجفالى","محاضر"]
[550,"116335","لبنى عصام سعيد المزين","معيد"]
[551,9711,"لبنى يوسف محمد عشرى","أستاذ مساعد"]
[552,"100541","لطيفه بنت ناوي بن جعيثن بن شطي السبيعي العنزي","فني"]
[553,"99986","لمى فهد صالح الخضر","معيد"]
[554,"29224","لمى فواز صبحى فرعون","معيد"]
[555,"96876","لمياء بنت عبدالله بن زايد المطيري","مساعد إداري"]
[556,121462,"لمياء بنت محمد  عمر البكر ","معيد"]
[557,"13306","لمياء صالح عبدالله النعيم","أستاذ مشارك"]
[558,"92964","لمياء محمد عبدالرحمن المشعل","مأمور عهدة"]
[559,"11131","لولوه احمد محمد الغامدى","ناسخ آله بلغتين"]
[560,"28100","لولوه عبدالعزيز محمد النمر","كاتب"]
[561,"14504","لولوه محمد عبدالله الخضيرى","ناسخ آله"]
[562,"107584","ليلى بنت علوي بن خضر العوامي","فني"]
[563,"37338","ليلى عبدالرحمن عبدالله السعدى","مساعد إداري"]
[564,"37339","ليلى محمد عيسى طميحى","ناسخ آله"]
[565,"73732","ليلى محمد محمد حسن فضه","أستاذ"]
[566,"69052","لينا فيصل راشد عاشور","محاضر"]
[567,"106034","ماجد بن صنات بن عزيز العضياني العتيبي","فني تخدير"]
[568,18310,"ماجد علي محمد القنيه","أستاذ مساعد"]
[569,"18782","ماجد محمد عبدالله الاسمرى","أخصائي"]
[570,"24465","ماجد مسفر سحلى الشيبانى","ناسخ آله بلغتين"]
[571,"62912","مالك حسن انتظام اوقلو ",0]
[572,"64700","مالك سعود احمد","مساعد صحي ب"]
[573,"12396","ماهر احمد محمد باسكران","مساعد إداري مشرف"]
[574,"6209","ماهر محمد على الجبل","أخصائي"]
[575,"93073","متعب صالح عيسي الحربي","أستاذ مساعد"]
[576,"30888","متعب محمد سعيد شاهر ",0]
[577,"77903","مجده امام حسين هيبه","أستاذ مشارك"]
[578,"77610","محسن   خورشيد ",0]
[579,68821,"محسن عبدالمنعم بيومي","أستاذ"]
[580,"2181","محمد ابراهيم طلب الحسان ",0]
[581,"87479","محمد ابراهيم عطية عبداللطيف","أستاذ"]
[582,"56247","محمد احمد محمد مخير","فنى مساعد"]
[583,null,"محمد العيسى","أستاذ مساعد"]
[584,"98327","محمد بن ابراهيم بن محمد المهنا","مساعد صيدلي"]
[585,"88395","محمد بن ابراهيم بن محمد النامي","مساعد إداري"]
[586,"95628","محمد بن احمد بن فيصل السراني ",0]
[587,"100410","محمد بن راشد بن محمد الهزاني","فني"]
[588,"107308","محمد بن ساير بن محمد العلوي الحربي","فني مختبر"]
[589,"94674","محمد بن صالح بن جريبيع الزهراني","فني"]
[590,"94816","محمد بن عبد الله بن عتيق الحربي","فني"]
[591,"94689","محمد بن عبدالله بن احمد العمري ",0]
[592,"95627","محمد بن فايز بن رده الربيعي","فني مختبر"]
[593,"96061","محمد بن فهد بن محمد السملق","مساعد إداري"]
[594,"95144","محمد بن مطر بن مظهور الجنفاوي ",0]
[595,"104136","محمد بن منصور بن صالح الحميد القحطاني","أستاذ مساعد"]
[596,"2657","محمد جابر محمد اليمانى ",0]
[597,75693,"محمد جبر ابراهيم قاسم ","أستاذ مشارك"]
[598,"91441","محمد جمال عبدالمنعم حسن ",0]
[599,73700,"محمد حامد محمد العجمي","أستاذ"]
[600,"17484","محمد حسن مصطفى الجوادى","أستاذ مساعد"]
[601,"107232","محمد حمد محمد الصالح","فني"]
[602,"87540","محمد خالد برفيز خالد","أستاذ مشارك"]
[603,"77809","محمد رايش محمد حليم","أستاذ مشارك"]
[604,93495,"محمد رشيد خان","أستاذ مساعد"]
[605,"13037","محمد سالم خلف الدوسري","أستاذ"]
[606,"105041","محمد سعد عبدالرحمن الحميد","أستاذ"]
[607,"6303","محمد سعد عبدالرحمن الحميد ",0]
[608,27755,"محمد سعيد علي ال ثابت القحطاني","أستاذ مساعد"]
[609,"12274","محمد سلطان محمد السلطان","أستاذ مشارك"]
[610,25120,"محمد سليمان ابراهيم السلمان","محاضر"]
[611,"112376","محمد سليمان علي الصالحي","معيد"]
[612,"63976","محمد شميم  احمد ",0]
[613,87495,"محمد صبحي عبدالمحسن محمدغنام ","أستاذ"]
[614,"75586","محمد عباس ابراهيم حموده","أستاذ"]
[615,"78975","محمد عباس علي حميد الدين","باحث أ"]
[616,"6142","محمد عبدالرحمن سليمان المشعل ",0,null,null,"الضريبة","صلاحية المحضر","النوع"]
[617,24507,"محمد عبدالرحمن محمد السنيدي","أستاذ مشارك",null,null,"15%",null,"مستهلك"]
[618,"12123","محمد عبدالرحمن محمد العمر","أستاذ",null,null,"5%",null,"مستديم"]
[619,"23494","محمد عبدالعزيز ابراهيم اليحيى","أستاذ",null,null,"0%"]
[620,"35586","محمد عبدالعزيز الدرعان","ناسخ آله"]
[621,27797,"محمد عبدالعزيز محمد ال مبارك التميمي","أستاذ مشارك"]
[622,"93102","محمد عبدالله احمد اليامي","معيد"]
[623,"93907","محمد عبدالله علي ابوناصف","أستاذ"]
[624,null,"اسم المستلم","المسمى الوظيفي"]
[625,"93429","محمد عبدالله محمد عسيري","أستاذ مساعد"]
[626,"90951","محمد علي  عبد الرحمن ",0]
[627,97471,"محمد علي محمد القنيه","أستاذ مساعد"]
[628,"94633","محمد علي محمد المطوع","أخصائي"]
[629,"74551","محمد فرج عبدالحليم عبدالله","باحث أ"]
[630,"22651","محمد فرحان عليوى العنزى","كهربائي"]
[631,"29880","محمد فهد حسين العجمي","أستاذ"]
[632,"34656","محمد فهد عبدلله حوال","معيد"]
[633,"89481","محمد ماطر عياده العنزي","أستاذ مساعد"]
[634,"63129","محمد محبوب الدين احمد","فني"]
[635,"87652","محمد محمد اسماعيل يوسف","أستاذ مساعد"]
[636,"72228","محمد محمد سيد احمد","أستاذ"]
[637,"71851","محمد محمود السيد حفناوي","أستاذ"]
[638,"76625","محمد محمود حافظ احمد","أستاذ مشارك"]
[639,"87555","محمد محمود محمد محمد بدران","أستاذ مشارك"]
[640,"37261","محمد مشاري عوض المطيري","محاضر"]
[641,"1844","محمد مطر زيد الحربى ",0]
[642,"119989","محمد مطر زيد الحربي","أستاذ"]
[643,"93072","محمد مفضي حمد العنزي","أستاذ مساعد"]
[644,"5757","محمد ناصر سعود العريفي","أستاذ"]
[645,119398,"محمد نديم اشرف  محمد  اشرف","أستاذ مساعد"]
[646,"109354","محمد نور علم","أستاذ مساعد"]
[647,"74976","محمد وجيه زيدان عطوه","باحث"]
[648,121060,"محمد يحي عبدالله ال يحي ","معيد"]
[649,"77587","محمد يوسف محمد يعقوب ",0]
[650,"72425","محمود البدرى عبدالمطلب عبدالرحمن ",0]
[651,"66358","محمود نشات ناجي احمد","أستاذ"]
[652,"116435","مد تابيش رحمان","باحث"]
[653,"95595","مرام ابراهيم عبد الرحمن السويلم","فني"]
[654,"97601","مرام بنت ابراهيم بن عبدالعزيز بن عبدالله الشبري","مساعد إداري"]
[655,"95610","مرام بنت شلاش بن مران الثابتي الشمري","فني"]
[656,"97366","مرام بنت صالح بن عبدالعزيز بن حمد التويجري","مساعد إداري"]
[657,"95512","مرام بنت صويلح بن عساج بن مناكد السويلمي العنزي","فني"]
[658,"97840","مرام بنت صياح بن عويد بن مسعد الدهمشي العنزي","فني"]
[659,"13776","مرزوق محمد سعود المبارك","مساعد إداري"]
[660,119583,"مروان  عبدالرحمن بن سليمان الرشيد","معيد"]
[661,"32024","مروه محمد عبدالله السمهري","معيد"]
[662,"101938","مريم بنت عبدالله بن علي الزاهر","فني"]
[663,"95642","مريم بنت على بن عبدالله السعيد","فني"]
[664,"95927","مريم حمد بن عبدالهادي المخلفي الحربي","مساعد إداري"]
[665,27693,"مساعد عبدالله سليمان الخليف","أستاذ مشارك"]
[666,27417,"مساعد علي دريعي الحدب الشمري","أستاذ مساعد"]
[667,"95523","مستوره بنت هديب بن خلف بن غضبان المسعودي الشمري","فني"]
[668,"77872","مسرات امينه حيدر","أستاذ مساعد"]
[669,"120952","مشاري عبدالعزيز سليمان الفريح","معيد"]
[670,"95462","مشاعل بنت منصور بن صالح الظاهري","فني"]
[671,"92665","مشاعل عبدالعزيز صالح المقبل","باحث علمي"]
[672,"92346","مشاعل عبدالله سعود بن طالب","مساعد إداري"]
[673,"37042","مشاعل غانم فاران العنزي","معيد"]
[674,"88540","مشتاق أحمد أنصاري","أستاذ مشارك"]
[675,"114704","مشعان بن لافي بن عماش الدليمي","باحث"]
[676,"99491","مشعل بن ناجي بن عوض بديوي ",0]
[677,24515,"مشعل مطني عيد المطيري","أستاذ مساعد"]
[678,"78140","مصطفى سيد محمد أحمد","محاضر"]
[679,"54242","مصطفى عمر  خالد ",0]
[680,76082,"مصطفى محمد سليمان غراب ","أستاذ"]
[681,"74611","مصطفى محمد محمود ابوالنجا طايل ",0]
[682,"100161","مصلحه خليفه بن سعد السلمي","مترجم"]
[683,"77835","مظفر اقبال أبو ظفر","أستاذ مشارك"]
[684,"77782","معشوق احمد بهات","أستاذ مشارك"]
[685,"95333","مقبول بن مريف بن غظيف الهتاهته العمري","فني صيدلة"]
[686,"104520","منال بنت سعد بن عبدالله بن جمعه","مساعد إداري"]
[687,"36170","منال عبدالله محمد العبدان","مساعد إداري"]
[688,"75566","منال عبدالمجيد العوضى الجندى","باحث أ"]
[689,"94048","منال مصلح ثاني العنزي","معيد"]
[690,"77545","منصور آدم محمود محمد","باحث"]
[691,"39761","منصور سليمان ابراهيم السعيد","أستاذ"]
[692,"26277","منصور صالح المتوزي","أستاذ مساعد"]
[693,"94927","منوه بنت مشعل بن عيسى بن عفيف الغيثيي الدوسري","فني"]
[694,"95599","منى بنت دحام بن لواح بن عاشق السلطاني العنزي","فني"]
[695,"95226","منى بنت عبد القادر عثمان عبد الله فلاته","فني"]
[696,"102469","منى بنت فهد بن حمد بن فهد البسام","فني"]
[697,"92051","منى عبدالله سعود بن طالب","مساعد إداري"]
[698,"102445","منى عيسى علي خويري","فني"]
[699,"70856","منى محمد ابوالفتوح قدرى الخطيب","أستاذ مشارك"]
[700,"12713","منى محمد ظافر الشهرى","أستاذ"]
[701,"75138","منير ابراهيم محمد حسين","باحث"]
[702,"75613","منير محمد محمد سالم بخيت","أستاذ مشارك"]
[703,"95271","منيره بنت اسماعيل بن حمد مباركي","فني"]
[704,"96829","منيره بنت جارالله بن سعيد القحطاني","معيد"]
[705,"101592","منيره بنت علي بن عبدالله العسيري ",0]
[706,"100536","منيره بنت ناصر بن معتق الشهراني","فني"]
[707,"39033","منيره محمد عبدالله الامير","كاتب"]
[708,"24921","منيره منصور سليمان الوهيبي","أستاذ مشارك"]
[709,"105951","مها بنت عامر بن علي بن عامر الوطيباني المطيري","فني"]
[710,"10556","مها سلطان محمد المطيري","أستاذ مشارك"]
[711,"98520","مها ظيف الله حاسن العمري","مترجم"]
[712,"36917","مها عبدالرحمن عبدالله الرويتع","فني صيدلة"]
[713,"91159","مها عبدالعزيز حمد المشعل","صيدلي"]
[714,"75027","مها عبدالعظيم حسن محمد","أستاذ مشارك"]
[715,"106809","مها محمد مشبب عسيري","فني"]
[716,"99167","مها مسفر مصلح المالكي","مساعد إداري"]
[717,"12640","مها مشعل عبدالله الرشيد","أستاذ مساعد"]
[718,"104824","مهاه عبدالرزاق بن حميد بن سرد القعيشيش العنزي","فني"]
[719,28756,"مورق راشد عبدالله الروقي العتيبي","أستاذ مشارك"]
[720,"94833","موسى بن علي بن محمد ساري","فني صيدلية"]
[721,"23334","موسى حسن على الشهرى","فني مختبر"]
[722,"18856","موسى محمد على قشيش","معيد"]
[723,"99259","موضي بنت فهيدبن وليد بن فهيدالشويه السبيعي","مساعد إداري"]
[724,"77904","موهد افتاب عالم","أستاذ مشارك"]
[725,93499,"موهد عبد الكلام","أستاذ مشارك"]
[726,"94705","مؤيد بن محمد بن عبدالحميد الخطيب ",0]
[727,"98167","مي بنت علي بن صالح العطيه","مراقب طلبة"]
[728,"11982","مي محمد عبدالله العقيل","أستاذ مشارك"]
[729,"102284","ميان أحسان الحق كوكر ابن ميان","باحث"]
[730,"14283","ميسون سعد عبدالله الغامدى","صيدلي"]
[731,"6040","ناديه جميل سعيد حارس","أستاذ مشارك"]
[732,36456,"ناصر بدر عبدالله الصالح","أستاذ مساعد"]
[733,"95531","ناصر بن مهدي بن محمد ال زمانان اليامي","فني سجلات طبية"]
[734,"72413","ناصر ربيع احمد البرلسى ",0]
[735,"30876","ناصر عبدالله ناصر السليم ",0]
[736,"76230","ناصر علي صديقي","أستاذ"]
[737,93550,"ناظر الحق رضوان الحق","أستاذ مساعد"]
[738,"94703","نافع بن مفيد بن نافع الشخص","فني أجهزة"]
[739,"95455","نايف بن جميعان بن ظاهر الجابري","فني صيدلية"]
[740,95445,"نايف بن حميد بن حمدي الصاعدي","فني صيدلة"]
[741,"105316","نايف بن سلامه بن مسلم البراك الرشيدي","فني أجهزة طبية"]
[742,"95633","نايف بن عليان بن صالح الخياري الرشيدي ",0]
[743,"29788","نايف عبيد مشيلح الحربي","أستاذ"]
[744,"24077","نايف فهد رشيد الحربى","سكرتير"]
[745,"94073","نجلاء جاسم محمد الزيد","معيد"]
[746,"92084","نجلاء عبدالله فايز الشهري","فنى صيانة حاسب"]
[747,"92624","نجود دميثان صالح المطيرى","مسجل معلومات"]
[748,31886,"نجود عبدالعزيز حمد التويجري","أستاذ مساعد"]
[749,"100286","نداء فهد عثمان العثمان","مراقب طلبة"]
[750,"103140","ندى بنت سالم بن سليم الذياب","معيد"]
[751,"91668","ندى داود سليمان بن نصار","فني"]
[752,"97848","ندى شقران سعد الملفي الرشيدي","فني"]
[753,"107238","نسرين بنت مصطفى بن صفوان النخلي","فني"]
[754,"95632","نشمى بن نغيمش بن عبدالرحمن المرواني الحربي ",0]
[755,"64701","نصر يحيى خليل","أستاذ مشارك"]
[756,"23410","نهله عقيل محمد العقيل","محاضر"]
[757,"26379","نهى عبدالله سليمان العلولا","أستاذ مساعد"]
[758,"75551","نهى محمود سيد احمد سليمان","باحث ب"]
[759,"111589","نواف بن سلمان بن عبدالعزيز المعيلي","مساعد إداري"]
[760,"27754","نواف عبدالعزيز سالم السيف","أستاذ مساعد"]
[761,"96871","نوال بنت جزاء بن عشيش بن عبيدالمخلفي الحربي","مساعد إداري"]
[762,"99151","نوال بنت محمد بن عبدالله بن مصلح الدهيس المالكي","مساعد إداري"]
[763,"95273","نوال طلال عبدالله العنزي","فني"]
[764,"12512","نوال محمد ابراهيم الرشيد","أستاذ مشارك"]
[765,"100546","نوال محمد بن علي الجاهري الحربي","فني"]
[766,"9528","نوال مسيب عبدالله المسيب","أستاذ"]
[767,"101928","نوال يحي حسين حكمي","فني"]
[768,"95266","نوره بنت احمد بن يحي بن سلمان مطارقي غزواني","فني"]
[769,"100577","نوره بنت زيد بن سيف المشاري","مترجم"]
[770,"100823","نوره بنت عبدالله بن مطلق بن ضاوي الاسعدي العتيبي","مساعد إداري"]
[771,"96252","نوره بنت مرزوق بن حجيف المخلفي الحربي","مراقب طلبة"]
[772,"8367","نوره زومان عبدالله الزومان","أستاذ"]
[773,"98431","نوره زيد سعد خترش","مساعد إداري"]
[774,"100524","نوره عبدالله علي الخضير","أستاذ مساعد"]
[775,"7897","نوره عثمان ناصر ابانمي","أستاذ مساعد"]
[776,"93415","نوره عرفان عادل قلعجي","محاضر"]
[777,"24920","نوره عوده نيتول العنزي","صيدلي"]
[778,"26278","نوره محمد باجد العصيمي","محاضر"]
[779,"97247","نوره محمد بن سعيد بن محمد الهاجري","مساعد إداري"]
[780,"101231","نوره معجب محمد المسردي القحطاني","مساعد إداري"]
[781,"78983","نوشاد علي","باحث"]
[782,119823,"نوف  محمد  ضيف الله العبود","معيد"]
[783,"99346","نوف ابراهيم عبدالرحمن المشعل","معيد"]
[784,118685,"نوف بنت احمد بن محمد السالم","معيد"]
[785,"95695","نوف بنت حسين بن عبدالله العييد","فني"]
[786,"102155","نوف بنت عبدالعزيز بن ابراهيم علي","فني"]
[787,"89497","نوف خالد محمد القحطاني","معيد"]
[788,"92640","نوف سلطان محمد المطيرى","محاسب"]
[789,"32007","نوف طلال محمد الدامري","معيد"]
[790,"11109","نوف محمد ابراهيم الرشيد","أستاذ"]
[791,"16034","نوف محمد عبدالرحمن العوده","أستاذ مساعد"]
[792,"99099","نوف محمد عبدالله المبيريك","مساعد إداري"]
[793,"92114","نيدا نيار فارشوري","أستاذ مشارك"]
[794,"73760","نيره احمد محمد عبدالباقي","أستاذ مشارك"]
[795,"92442","هاجر عبدالرحمن رشيد الغانم","مساعد إداري"]
[796,"73922","هاله ابوالفتوح عطيه سالم","أستاذ مشارك"]
[797,"97818","هاله شبيب حمدان المطيري","معيد"]
[798,"89597","هاني وجيه عبدالفتاح درويش","أستاذ"]
[799,"115738","هبه عبدالعزيز عبدالله الشايع","معيد"]
[800,"115307","هتان عدنان جذلان الحربي","معيد"]
[801,"30289","هدى سالم عبدالله السالم","أستاذ مساعد"]
[802,"11985","هدى سلوم سالم الاحمدى","مشرف اجتماعي"]
[803,"26054","هدى عبدالعزيز عبدالله العويرضى","محاضر"]
[804,"29865","هدى عبدالله خلف الراشد","فني"]
[805,"88498","هدير محمد ماهر شلبي","أستاذ"]
[806,"95746","هديل عبد الرحمن عبد الله زامل","مساعد إداري"]
[807,"23750","هديل عبدالرحمن محمد القفيدي","أستاذ مساعد"]
[808,"94118","هديل عبدالكريم عيد الغبين","فني"]
[809,"106888","هزار ابراهيم يعقوب الخوري","أستاذ مشارك"]
[810,73295,"هشام حسن رضوان","أستاذ"]
[811,"14718","هشام سعد سعدان الجضعي","أستاذ مشارك"]
[812,"63148","هشام سليمان سليمان ابوعوده","أستاذ مشارك"]
[813,"75042","هشام محمد قرشي","أستاذ مشارك"]
[814,"55945","همايون هارون  ميرزا ",0]
[815,72491,"هناء عبدالمنعم محمود الصغير","أستاذ"]
[816,"91081","هناء محمد عبدالمحسن التويجري","محاضر"]
[817,"30017","هناء محمد مطر الحربي","معيد"]
[818,"76491","هناء نجيب عبدالسلام العجمى","باحث"]
[819,"27958","هنادي حسين عبدالله عسيري","معيد"]
[820,"98522","هند بنت ناصر بن هادي بن مفرج العتيبي","معيد"]
[821,"26895","هند عبدالله رشيد الرشيدي","معيد"]
[822,"92381","هند علي عبدالله الدخيل","ناسخ آله"]
[823,"112415","هنوف عمر احمد الذييب","معيد"]
[824,"110627","هيا ابراهيم حمد الجوهر","أستاذ مشارك"]
[825,"19525","هيا محمد علي الملق","أستاذ مساعد"]
[826,"94028","هياء محمد عبدالله الراجح","معيد"]
[827,"23101","هيثم خالد محمد الربيعه","أستاذ مشارك"]
[828,"93747","هيثم فادى محمد مصطفى","محاضر"]
[829,"100278","هيفاء بنت عبدالعزيز بن جاسر الخضيري","مترجم"]
[830,"100024","هيفاء بنت مبارك بن عبدالله الجوهر الدوسري","مساعد إداري"]
[831,"30138","هيفاء شامي محمد الظاهري","معيد"]
[832,"93342","هيله عبدالرحمن عبدالمحسن المغيره","معيد"]
[833,"90900","واجد علي سيد","باحث"]
[834,92893,"وايل عبدالله سويلم العنزي","أستاذ مساعد"]
[835,"98340","وائل بن عايض بن بريك الوصاري العتيبي","محضر مختبر"]
[836,"104491","وائل بن علي بن إبراهيم دربشي","فني"]
[837,"73895","وائل حمدي سيد منسي","أستاذ مساعد"]
[838,27827,"وائل علي حسن مهدي","أستاذ مساعد"]
[839,"102187","وائل مصطفى عبدالمجيد مصطفى","أستاذ مساعد"]
[840,"98099","وجدان بنت عبدالكريم بن صالح القوسي","مساعد إداري"]
[841,"104928","وجدان محمد عبدالرحمن الوسيدي","مساعد إداري"]
[842,93881,"وجه القمر ادريس","أستاذ مساعد"]
[843,"37811","وداد شبيلي حسن صروي","أستاذ مساعد"]
[844,"100655","وداد محمد ناصر بن هزاع","مساعد إداري"]
[845,"75136","وضاح جمال احمد عثمان ",0]
[846,"100779","وضحه فاتن بن شجاع العامري السبيعي","أخصائي"]
[847,"95605","وفاء بنت بكر بن عمر فلاته","فني"]
[848,"97451","وفاء بنت علي عبدالله عبدالرحمن الدخيل","مراقب طلبة"]
[849,"39029","وفاء سعيد محمد العمري","مسجل معلومات"]
[850,"95678","ولاء ابراهيم محمد قره علي","فني"]
[851,"100540","ولاء بنت عبد الله بن سالم السبهان","فني"]
[852,"75111","ولاء محمد عبدالوارث مندور","باحث أ"]
[853,"14364","وليد احمد ناجى ابوالغيث","أخصائي"]
[854,"95340","وليد بن دوبح بن فرحه آل مسعود الغامدي ",0]
[855,"92604","وليد ثابت ميزان الحربي","مساعد إداري"]
[856,87517,"وليد عبدالعظيم مصطفى حبيب","أستاذ مساعد"]
[857,"15152","وليد عبدالله عبدالعزيز السلمي","محاضر"]
[858,"35593","وليد فهد صالح السبيعى ",0]
[859,"98623","ياسر ذكار نائف البقمي","محاضر"]
[860,"115300","يحيى بن محمدكامل بن فريد توفيق","معيد"]
[861,"24755","يزيد سليمان حمود الرثيع","أستاذ مشارك"]
[862,"104102","يزيد محمد سعيد غواء","معيد"]
[863,"78992","يلدز عبدالخالق احمد بسيوني","أستاذ"]
[864,"116104","ين وينكي - -","باحث ب"]
[865,"95115","يوسف بن اعبيد بن محمد الدسم الحربي ",0]
[866,"98118","يوسف بن عبدالرحمن بن ابراهيم الحرابي","مساعد إداري"]
[867,"39305","يوسف عبدالعزيز عبدالرحمن المحسن ",0]
[868,31712,"يوسف عبدالله محمد بن جردان","أستاذ مساعد"]
[869,"6211","يوسف عبده عبدالله عسيري","أستاذ"]